Organisation Name,Organisation Code,Date Paid,Transaction Number,Amount,Supplier Name,Supplier ID,Supplier post code (first 4 digits),Directorate,Service Area,General Ledger code Description,BVACOP class,Revenue/ Capital Spend
Wiltshire,http://opendatacommunities.org/id/unitary-authority/wiltshire,04/06/2019,5107349968,5521.4,Zurich Assurance Ltd ,127057,.,Neighbourhood & Planning,Off Street Parking,Property Maintenance,Premises Related,REVENUE
Wiltshire,http://opendatacommunities.org/id/unitary-authority/wiltshire,18/06/2019,5107351313,316.2,Zoggs International Limited ,113037,GU16,Neighbourhood & Planning,Tidworth,Traded Goods Purchases,Supplies and Services,REVENUE
Wiltshire,http://opendatacommunities.org/id/unitary-authority/wiltshire,11/06/2019,5107351698,780.3,Zoggs International Limited ,113037,GU16,Neighbourhood & Planning,Marlborough,Traded Goods Purchases,Supplies and Services,REVENUE
Wiltshire,http://opendatacommunities.org/id/unitary-authority/wiltshire,11/06/2019,5107351698,780.3,Zoggs International Limited ,113037,GU16,Neighbourhood & Planning,Calne Leisure Centre,Traded Goods Purchases,Supplies and Services,REVENUE
Wiltshire,http://opendatacommunities.org/id/unitary-authority/wiltshire,12/06/2019,5107351764,1385.48,Zoggs International Limited ,113037,GU16,Neighbourhood & Planning,Marlborough,Traded Goods Purchases,Supplies and Services,REVENUE
Wiltshire,http://opendatacommunities.org/id/unitary-authority/wiltshire,28/06/2019,5107359076,6397.39,Zoggs International Limited ,113037,GU16,Neighbourhood & Planning,Five Rivers,Traded Goods Purchases,Supplies and Services,REVENUE
Wiltshire,http://opendatacommunities.org/id/unitary-authority/wiltshire,12/06/2019,1902171603,297.47,Zip Heaters (UK) Limited ,133074,NR19,Resources,5 Rivers LC,Property Maintenance,Premises Related,REVENUE
Wiltshire,http://opendatacommunities.org/id/unitary-authority/wiltshire,12/06/2019,1902249176,508,Zip Heaters (UK) Limited ,133074,NR19,Wiltshire Council,Wiltshire Council,Equipment Purchase,Supplies and Services,CAPITAL
Wiltshire,http://opendatacommunities.org/id/unitary-authority/wiltshire,12/06/2019,1902356564,1340.65,Zip Heaters (UK) Limited ,133074,NR19,Resources,5 Rivers LC,Property Maintenance,Premises Related,REVENUE
Wiltshire,http://opendatacommunities.org/id/unitary-authority/wiltshire,20/06/2019,1902359963,2681.28,Zip Heaters (UK) Limited ,133074,NR19,Resources,Corsham Campus,Property Maintenance,Premises Related,REVENUE
Wiltshire,http://opendatacommunities.org/id/unitary-authority/wiltshire,20/06/2019,1902359964,10054.8,Zip Heaters (UK) Limited ,133074,NR19,Resources,County Hall Complex,Property Maintenance,Premises Related,REVENUE
Wiltshire,http://opendatacommunities.org/id/unitary-authority/wiltshire,21/06/2019,1902359965,4021.92,Zip Heaters (UK) Limited ,133074,NR19,Resources,Monkton Park,Property Maintenance,Premises Related,REVENUE
Wiltshire,http://opendatacommunities.org/id/unitary-authority/wiltshire,18/06/2019,1902359159,1440,Your Taxi LLP ,142988,SP4 ,Neighbourhood & Planning,SEN Secondary,Transport Contracts,Third Party Payments,REVENUE
Wiltshire,http://opendatacommunities.org/id/unitary-authority/wiltshire,18/06/2019,1902359161,1394,Your Taxi LLP ,142988,SP4 ,Neighbourhood & Planning,SEN Primary,Transport Contracts,Third Party Payments,REVENUE
Wiltshire,http://opendatacommunities.org/id/unitary-authority/wiltshire,18/06/2019,1902359162,654.5,Your Taxi LLP ,142988,SP4 ,Neighbourhood & Planning,Mainstream Primary,Transport Contracts,Third Party Payments,REVENUE
Wiltshire,http://opendatacommunities.org/id/unitary-authority/wiltshire,18/06/2019,1902359165,643.71,Your Taxi LLP ,142988,SP4 ,Community Services,CTPLD Placements,Transport Contracts,Third Party Payments,REVENUE
Wiltshire,http://opendatacommunities.org/id/unitary-authority/wiltshire,18/06/2019,1902359168,493,Your Taxi LLP ,142988,SP4 ,Neighbourhood & Planning,SEN Secondary,Transport Contracts,Third Party Payments,REVENUE
Wiltshire,http://opendatacommunities.org/id/unitary-authority/wiltshire,20/06/2019,1902360014,325,Your Taxi LLP ,142988,SP4 ,Neighbourhood & Planning,SEN Secondary,Transport Contracts,Third Party Payments,REVENUE
Wiltshire,http://opendatacommunities.org/id/unitary-authority/wiltshire,20/06/2019,1902360014,360,Your Taxi LLP ,142988,SP4 ,Children & Education,CIC Team South,Transport Contracts,Third Party Payments,REVENUE
Wiltshire,http://opendatacommunities.org/id/unitary-authority/wiltshire,20/06/2019,1902360014,1615,Your Taxi LLP ,142988,SP4 ,Neighbourhood & Planning,SEN 16+ Secondary,Transport Contracts,Third Party Payments,REVENUE
Wiltshire,http://opendatacommunities.org/id/unitary-authority/wiltshire,13/06/2019,5107351940,7882,Your Lifestyle Nationwide Ltd ,145261,GL2 ,Community Services,MH AOWA N&E Locality,Supported Living,Third Party Payments,REVENUE
Wiltshire,http://opendatacommunities.org/id/unitary-authority/wiltshire,13/06/2019,5107351941,5908,Your Lifestyle Nationwide Ltd ,145261,GL2 ,Community Services,MH AOWA West Localit,Supported Living,Third Party Payments,REVENUE
Wiltshire,http://opendatacommunities.org/id/unitary-authority/wiltshire,18/06/2019,1902359071,6271.9,York House Nursery ,146003,SP1 ,Children & Education,Free Enttlmnt 3 & 4y,Childcare Free Entitlement Early Years,Supplies and Services,REVENUE
Wiltshire,http://opendatacommunities.org/id/unitary-authority/wiltshire,18/06/2019,1902359072,414.96,York House Nursery ,146003,SP1 ,Children & Education,Free Entitlement 2 Y,Childcare Free Entitlement Early Years,Supplies and Services,REVENUE
Wiltshire,http://opendatacommunities.org/id/unitary-authority/wiltshire,18/06/2019,1902359095,11779.04,YMCA Redland Nursery ,112244,SN14,Children & Education,Free Enttlmnt 3 & 4y,Childcare Free Entitlement Early Years,Supplies and Services,REVENUE
Wiltshire,http://opendatacommunities.org/id/unitary-authority/wiltshire,18/06/2019,1902359096,1037.4,YMCA Redland Nursery ,112244,SN14,Children & Education,Free Entitlement 2 Y,Childcare Free Entitlement Early Years,Supplies and Services,REVENUE
Wiltshire,http://opendatacommunities.org/id/unitary-authority/wiltshire,18/06/2019,1902359069,1123.85,YMCA Mansion House Preschool ,145931,SN13,Children & Education,Free Entitlement 2 Y,Childcare Free Entitlement Early Years,Supplies and Services,REVENUE
Wiltshire,http://opendatacommunities.org/id/unitary-authority/wiltshire,18/06/2019,1902358815,5448.3,YMCA Little Shoots Day Nursery ,129534,BA14,Children & Education,Free Enttlmnt 3 & 4y,Childcare Free Entitlement Early Years,Supplies and Services,REVENUE
Wiltshire,http://opendatacommunities.org/id/unitary-authority/wiltshire,18/06/2019,1902358816,2558.92,YMCA Little Shoots Day Nursery ,129534,BA14,Children & Education,Free Entitlement 2 Y,Childcare Free Entitlement Early Years,Supplies and Services,REVENUE
Wiltshire,http://opendatacommunities.org/id/unitary-authority/wiltshire,18/06/2019,1902359029,3038.38,YMCA Kingfisher Preschool ,144668,BA13,Children & Education,Free Enttlmnt 3 & 4y,Childcare Free Entitlement Early Years,Supplies and Services,REVENUE
Wiltshire,http://opendatacommunities.org/id/unitary-authority/wiltshire,18/06/2019,1902358954,6086.2,YMCA Humpty Dumpty Nursery ,141700,SN11,Children & Education,Free Enttlmnt 3 & 4y,Childcare Free Entitlement Early Years,Supplies and Services,REVENUE
Wiltshire,http://opendatacommunities.org/id/unitary-authority/wiltshire,18/06/2019,1902358955,788.42,YMCA Humpty Dumpty Nursery ,141700,SN11,Children & Education,Free Entitlement 2 Y,Childcare Free Entitlement Early Years,Supplies and Services,REVENUE
Wiltshire,http://opendatacommunities.org/id/unitary-authority/wiltshire,14/06/2019,1902357322,960,Yell Cabs ,125854,SN14,Neighbourhood & Planning,Mainstream Primary,Transport Contracts,Third Party Payments,REVENUE
Wiltshire,http://opendatacommunities.org/id/unitary-authority/wiltshire,14/06/2019,1902357323,323,Yell Cabs ,125854,SN14,Neighbourhood & Planning,Mainstream Primary,Transport Contracts,Third Party Payments,REVENUE
Wiltshire,http://opendatacommunities.org/id/unitary-authority/wiltshire,14/06/2019,1902357323,323,Yell Cabs ,125854,SN14,Neighbourhood & Planning,Mainstream Secondary,Transport Contracts,Third Party Payments,REVENUE
Wiltshire,http://opendatacommunities.org/id/unitary-authority/wiltshire,07/06/2019,5107351069,22075,Xenzone Ltd ,143474,EC3R,Children & Education,Primary MH Service,Other Social & Welfare Costs,Third Party Payments,REVENUE
Wiltshire,http://opendatacommunities.org/id/unitary-authority/wiltshire,26/06/2019,5107354783,2859.56,Wren House Ltd ,124808,BA12,Community Services,West Care Packages,Adult Residential Placements - Spot Purchase,Third Party Payments,REVENUE
Wiltshire,http://opendatacommunities.org/id/unitary-authority/wiltshire,04/06/2019,1902347293,8650,WOOTTON BASSETT TOWN COUNCIL ,113015,SN4 ,Community Services,Area Board RWB,Area Board Grants,Supplies and Services,REVENUE
Wiltshire,http://opendatacommunities.org/id/unitary-authority/wiltshire,26/06/2019,5107353894,3768.32,Woodstock House ,135316,SP1 ,Community Services,MH AOWA West Localit,Adult Residential Placements - Spot Purchase,Third Party Payments,REVENUE
Wiltshire,http://opendatacommunities.org/id/unitary-authority/wiltshire,26/06/2019,5107353905,3764.56,Woodstock House ,135316,SP1 ,Community Services,MH AOWA South Locali,Adult Residential Placements - Spot Purchase,Third Party Payments,REVENUE
Wiltshire,http://opendatacommunities.org/id/unitary-authority/wiltshire,26/06/2019,5107354348,3800,Woodstock House ,135316,SP1 ,Community Services,MH AOWA South Locali,Adult Residential Placements - Spot Purchase,Third Party Payments,REVENUE
Wiltshire,http://opendatacommunities.org/id/unitary-authority/wiltshire,26/06/2019,5107355090,3727.36,Woodstock House ,135316,SP1 ,Community Services,MH AOWA N&E Locality,Adult Residential Placements - Spot Purchase,Third Party Payments,REVENUE
Wiltshire,http://opendatacommunities.org/id/unitary-authority/wiltshire,26/06/2019,5107355109,3727.36,Woodstock House ,135316,SP1 ,Community Services,MH AOWA West Localit,Adult Residential Placements - Spot Purchase,Third Party Payments,REVENUE
Wiltshire,http://opendatacommunities.org/id/unitary-authority/wiltshire,26/06/2019,5107355347,3680,Woodstock House ,135316,SP1 ,Community Services,MH AOWA South Locali,Adult Residential Placements - Spot Purchase,Third Party Payments,REVENUE
Wiltshire,http://opendatacommunities.org/id/unitary-authority/wiltshire,26/06/2019,5107357361,3346.28,Woodstock House ,135316,SP1 ,Community Services,MH AOWA South Locali,Adult Residential Placements - Spot Purchase,Third Party Payments,REVENUE
Wiltshire,http://opendatacommunities.org/id/unitary-authority/wiltshire,26/06/2019,5107357765,3727.36,Woodstock House ,135316,SP1 ,Community Services,MH AOWA South Locali,Adult Residential Placements - Spot Purchase,Third Party Payments,REVENUE
Wiltshire,http://opendatacommunities.org/id/unitary-authority/wiltshire,26/06/2019,5107357849,3686.4,Woodstock House ,135316,SP1 ,Community Services,MH AOWA South Locali,Adult Residential Placements - Spot Purchase,Third Party Payments,REVENUE
Wiltshire,http://opendatacommunities.org/id/unitary-authority/wiltshire,27/06/2019,5107359109,649.6,Woodstock House ,135316,SP1 ,Community Services,MH AOWA South Locali,Supported Living,Third Party Payments,REVENUE
Wiltshire,http://opendatacommunities.org/id/unitary-authority/wiltshire,27/06/2019,5107359110,649.6,Woodstock House ,135316,SP1 ,Community Services,MH AOWA South Locali,Supported Living,Third Party Payments,REVENUE
Wiltshire,http://opendatacommunities.org/id/unitary-authority/wiltshire,27/06/2019,5107359270,487.2,Woodstock House ,135316,SP1 ,Community Services,MH AOWA South Locali,Supported Living,Third Party Payments,REVENUE
Wiltshire,http://opendatacommunities.org/id/unitary-authority/wiltshire,18/06/2019,1902358957,3041,Woodland Adventurers Ltd ,142208,SN13,Children & Education,Free Enttlmnt 3 & 4y,Childcare Free Entitlement Early Years,Supplies and Services,REVENUE
Wiltshire,http://opendatacommunities.org/id/unitary-authority/wiltshire,18/06/2019,1902358975,2511.6,Woodland Adventurers Ltd ,142208,SN13,Children & Education,Free Enttlmnt 3 & 4y,Childcare Free Entitlement Early Years,Supplies and Services,REVENUE
Wiltshire,http://opendatacommunities.org/id/unitary-authority/wiltshire,18/06/2019,1902358976,276.64,Woodland Adventurers Ltd ,142208,SN13,Children & Education,Free Entitlement 2 Y,Childcare Free Entitlement Early Years,Supplies and Services,REVENUE
Wiltshire,http://opendatacommunities.org/id/unitary-authority/wiltshire,26/06/2019,5107354626,2821.92,Woodfalls Care Ltd ,113010,BH9 ,Community Services,South Care Packages,Adult Residential Placements - Spot Purchase,Third Party Payments,REVENUE
Wiltshire,http://opendatacommunities.org/id/unitary-authority/wiltshire,26/06/2019,5107355249,3008.4,Woodfalls Care Ltd ,113010,BH9 ,Community Services,South Care Packages,Adult Residential Placements - Spot Purchase,Third Party Payments,REVENUE
Wiltshire,http://opendatacommunities.org/id/unitary-authority/wiltshire,26/06/2019,5107357561,2684,Woodfalls Care Ltd ,113010,BH9 ,Community Services,South Care Packages,Adult Residential Placements - Spot Purchase,Third Party Payments,REVENUE
Wiltshire,http://opendatacommunities.org/id/unitary-authority/wiltshire,26/06/2019,5107357751,2755.8,Woodfalls Care Ltd ,113010,BH9 ,Community Services,South Care Packages,Adult Residential Placements - Spot Purchase,Third Party Payments,REVENUE
Wiltshire,http://opendatacommunities.org/id/unitary-authority/wiltshire,26/06/2019,5107355115,10116,Witham Valley ,144802,NG24,Community Services,CTPLD Placements,Adult Residential Placements - Spot Purchase,Third Party Payments,REVENUE
Wiltshire,http://opendatacommunities.org/id/unitary-authority/wiltshire,26/06/2019,5107357531,5387.36,Winton Nursing Home ,125342,SO20,Community Services,South Care Packages,Adult Care Nursing Placements - Spot,Third Party Payments,REVENUE
Wiltshire,http://opendatacommunities.org/id/unitary-authority/wiltshire,13/06/2019,5107351982,997.04,Winterbourne Care Centre ,123516,SP1 ,Community Services,Placement Block Cont,Adult Care Nursing Placements- Block Contract,Third Party Payments,REVENUE
Wiltshire,http://opendatacommunities.org/id/unitary-authority/wiltshire,13/06/2019,5107351984,2537.96,Winterbourne Care Centre ,123516,SP1 ,Community Services,Placement Block Cont,Adult Care Nursing Placements- Block Contract,Third Party Payments,REVENUE
Wiltshire,http://opendatacommunities.org/id/unitary-authority/wiltshire,26/06/2019,5107352463,3381.48,Winterbourne Care Centre ,123516,SP1 ,Community Services,Placement Block Cont,Adult Care Nursing Placements- Block Contract,Third Party Payments,REVENUE
Wiltshire,http://opendatacommunities.org/id/unitary-authority/wiltshire,26/06/2019,5107352551,2662.4,Winterbourne Care Centre ,123516,SP1 ,Community Services,South Care Packages,Adult Residential Placements - Spot Purchase,Third Party Payments,REVENUE
Wiltshire,http://opendatacommunities.org/id/unitary-authority/wiltshire,26/06/2019,5107352553,2247.16,Winterbourne Care Centre ,123516,SP1 ,Community Services,South Care Packages,Adult Residential Placements - Spot Purchase,Third Party Payments,REVENUE
Wiltshire,http://opendatacommunities.org/id/unitary-authority/wiltshire,26/06/2019,5107352998,2537.96,Winterbourne Care Centre ,123516,SP1 ,Community Services,Placement Block Cont,Adult Care Nursing Placements- Block Contract,Third Party Payments,REVENUE
Wiltshire,http://opendatacommunities.org/id/unitary-authority/wiltshire,26/06/2019,5107353249,2175.36,Winterbourne Care Centre ,123516,SP1 ,Community Services,South Care Packages,Adult Care Nursing Placements - Spot,Third Party Payments,REVENUE
Wiltshire,http://opendatacommunities.org/id/unitary-authority/wiltshire,26/06/2019,5107353999,2537.96,Winterbourne Care Centre ,123516,SP1 ,Community Services,Placement Block Cont,Adult Care Nursing Placements- Block Contract,Third Party Payments,REVENUE
Wiltshire,http://opendatacommunities.org/id/unitary-authority/wiltshire,26/06/2019,5107354282,3381.48,Winterbourne Care Centre ,123516,SP1 ,Community Services,Placement Block Cont,Adult Care Nursing Placements- Block Contract,Third Party Payments,REVENUE
Wiltshire,http://opendatacommunities.org/id/unitary-authority/wiltshire,26/06/2019,5107354392,2537.96,Winterbourne Care Centre ,123516,SP1 ,Community Services,Placement Block Cont,Adult Care Nursing Placements- Block Contract,Third Party Payments,REVENUE
Wiltshire,http://opendatacommunities.org/id/unitary-authority/wiltshire,26/06/2019,5107354398,2537.96,Winterbourne Care Centre ,123516,SP1 ,Community Services,Placement Block Cont,Adult Care Nursing Placements- Block Contract,Third Party Payments,REVENUE
Wiltshire,http://opendatacommunities.org/id/unitary-authority/wiltshire,26/06/2019,5107354428,2537.96,Winterbourne Care Centre ,123516,SP1 ,Community Services,Placement Block Cont,Adult Care Nursing Placements- Block Contract,Third Party Payments,REVENUE
Wiltshire,http://opendatacommunities.org/id/unitary-authority/wiltshire,26/06/2019,5107354455,453.2,Winterbourne Care Centre ,123516,SP1 ,Community Services,Placement Block Cont,Adult Care Nursing Placements- Block Contract,Third Party Payments,REVENUE
Wiltshire,http://opendatacommunities.org/id/unitary-authority/wiltshire,26/06/2019,5107354457,2537.96,Winterbourne Care Centre ,123516,SP1 ,Community Services,Placement Block Cont,Adult Care Nursing Placements- Block Contract,Third Party Payments,REVENUE
Wiltshire,http://opendatacommunities.org/id/unitary-authority/wiltshire,26/06/2019,5107354611,2537.96,Winterbourne Care Centre ,123516,SP1 ,Community Services,Placement Block Cont,Adult Care Nursing Placements- Block Contract,Third Party Payments,REVENUE
Wiltshire,http://opendatacommunities.org/id/unitary-authority/wiltshire,26/06/2019,5107354648,2537.96,Winterbourne Care Centre ,123516,SP1 ,Community Services,Placement Block Cont,Adult Care Nursing Placements- Block Contract,Third Party Payments,REVENUE
Wiltshire,http://opendatacommunities.org/id/unitary-authority/wiltshire,26/06/2019,5107354700,2537.96,Winterbourne Care Centre ,123516,SP1 ,Community Services,Placement Block Cont,Adult Care Nursing Placements- Block Contract,Third Party Payments,REVENUE
Wiltshire,http://opendatacommunities.org/id/unitary-authority/wiltshire,26/06/2019,5107354833,3744,Winterbourne Care Centre ,123516,SP1 ,Community Services,Home Loans,Adult Care Loans,Capital charges and Expenditure,REVENUE
Wiltshire,http://opendatacommunities.org/id/unitary-authority/wiltshire,26/06/2019,5107354884,3381.48,Winterbourne Care Centre ,123516,SP1 ,Community Services,Placement Block Cont,Adult Care Nursing Placements- Block Contract,Third Party Payments,REVENUE
Wiltshire,http://opendatacommunities.org/id/unitary-authority/wiltshire,26/06/2019,5107354934,2537.96,Winterbourne Care Centre ,123516,SP1 ,Community Services,Placement Block Cont,Adult Care Nursing Placements- Block Contract,Third Party Payments,REVENUE
Wiltshire,http://opendatacommunities.org/id/unitary-authority/wiltshire,26/06/2019,5107354969,2537.96,Winterbourne Care Centre ,123516,SP1 ,Community Services,Placement Block Cont,Adult Care Nursing Placements- Block Contract,Third Party Payments,REVENUE
Wiltshire,http://opendatacommunities.org/id/unitary-authority/wiltshire,26/06/2019,5107355361,4217.84,Winterbourne Care Centre ,123516,SP1 ,Community Services,Placement Block Cont,Adult Care Nursing Placements- Block Contract,Third Party Payments,REVENUE
Wiltshire,http://opendatacommunities.org/id/unitary-authority/wiltshire,26/06/2019,5107356060,1540.88,Winterbourne Care Centre ,123516,SP1 ,Community Services,Placement Block Cont,Adult Care Nursing Placements- Block Contract,Third Party Payments,REVENUE
Wiltshire,http://opendatacommunities.org/id/unitary-authority/wiltshire,26/06/2019,5107356195,3381.48,Winterbourne Care Centre ,123516,SP1 ,Community Services,Placement Block Cont,Adult Care Nursing Placements- Block Contract,Third Party Payments,REVENUE
Wiltshire,http://opendatacommunities.org/id/unitary-authority/wiltshire,26/06/2019,5107357352,4096,Winterbourne Care Centre ,123516,SP1 ,Community Services,MH AOWA South Locali,Adult Residential Placements - Spot Purchase,Third Party Payments,REVENUE
Wiltshire,http://opendatacommunities.org/id/unitary-authority/wiltshire,26/06/2019,5107357865,3381.48,Winterbourne Care Centre ,123516,SP1 ,Community Services,Placement Block Cont,Adult Care Nursing Placements- Block Contract,Third Party Payments,REVENUE
Wiltshire,http://opendatacommunities.org/id/unitary-authority/wiltshire,26/06/2019,5107357870,3381.48,Winterbourne Care Centre ,123516,SP1 ,Community Services,Placement Block Cont,Adult Care Nursing Placements- Block Contract,Third Party Payments,REVENUE
Wiltshire,http://opendatacommunities.org/id/unitary-authority/wiltshire,26/06/2019,5107358382,3381.48,Winterbourne Care Centre ,123516,SP1 ,Community Services,Placement Block Cont,Adult Care Nursing Placements- Block Contract,Third Party Payments,REVENUE
Wiltshire,http://opendatacommunities.org/id/unitary-authority/wiltshire,26/06/2019,5107358440,2537.96,Winterbourne Care Centre ,123516,SP1 ,Community Services,Placement Block Cont,Adult Care Nursing Placements- Block Contract,Third Party Payments,REVENUE
Wiltshire,http://opendatacommunities.org/id/unitary-authority/wiltshire,26/06/2019,5107358471,4217.84,Winterbourne Care Centre ,123516,SP1 ,Community Services,Placement Block Cont,Adult Care Nursing Placements- Block Contract,Third Party Payments,REVENUE
Wiltshire,http://opendatacommunities.org/id/unitary-authority/wiltshire,26/06/2019,5107358945,1958.32,Winterbourne Care Centre ,123516,SP1 ,Community Services,Placement Block Cont,Adult Care Nursing Placements- Block Contract,Third Party Payments,REVENUE
Wiltshire,http://opendatacommunities.org/id/unitary-authority/wiltshire,18/06/2019,1902358785,4608.24,Winsley Acorns Pre School Nursery ,122677,BA15,Children & Education,Free Enttlmnt 3 & 4y,Childcare Free Entitlement Early Years,Supplies and Services,REVENUE
Wiltshire,http://opendatacommunities.org/id/unitary-authority/wiltshire,26/06/2019,5107355185,3635.28,Windsor House Trident Reach the People Charity,132386,B23 ,Community Services,MH OP N&E Locality,Adult Residential Placements - Spot Purchase,Third Party Payments,REVENUE
Wiltshire,http://opendatacommunities.org/id/unitary-authority/wiltshire,18/06/2019,1902358506,4512.69,Windrush Nursery 413 ,122672,SP5 ,Children & Education,Free Enttlmnt 3 & 4y,Childcare Free Entitlement Early Years,Supplies and Services,REVENUE
Wiltshire,http://opendatacommunities.org/id/unitary-authority/wiltshire,18/06/2019,1902358905,6961.5,Wind in the Willows Pre-School Ltd ,130012,SP2 ,Children & Education,Free Enttlmnt 3 & 4y,Childcare Free Entitlement Early Years,Supplies and Services,REVENUE
Wiltshire,http://opendatacommunities.org/id/unitary-authority/wiltshire,18/06/2019,1902358906,778.05,Wind in the Willows Pre-School Ltd ,130012,SP2 ,Children & Education,Free Entitlement 2 Y,Childcare Free Entitlement Early Years,Supplies and Services,REVENUE
Wiltshire,http://opendatacommunities.org/id/unitary-authority/wiltshire,18/06/2019,1902359059,1244.88,Wind in the Willows Pre-School Ltd ,130012,SP2 ,Children & Education,Free Enttlmnt 3 & 4y,Childcare Free Entitlement Early Years,Supplies and Services,REVENUE
Wiltshire,http://opendatacommunities.org/id/unitary-authority/wiltshire,18/06/2019,1902359121,8515.08,Wind in the Willows Day Nursery ,148344,SP4 ,Children & Education,Free Enttlmnt 3 & 4y,Childcare Free Entitlement Early Years,Supplies and Services,REVENUE
Wiltshire,http://opendatacommunities.org/id/unitary-authority/wiltshire,18/06/2019,1902359122,1576.85,Wind in the Willows Day Nursery ,148344,SP4 ,Children & Education,Free Entitlement 2 Y,Childcare Free Entitlement Early Years,Supplies and Services,REVENUE
Wiltshire,http://opendatacommunities.org/id/unitary-authority/wiltshire,18/06/2019,1902358361,369.34,Wimborne Business Systems Ltd ,122666,BH21,Neighbourhood & Planning,Cranbourn Chase AONB,Premises Rental,Premises Related,REVENUE
Wiltshire,http://opendatacommunities.org/id/unitary-authority/wiltshire,18/06/2019,1902358365,369.34,Wimborne Business Systems Ltd ,122666,BH21,Neighbourhood & Planning,Cranbourn Chase AONB,Premises Rental,Premises Related,REVENUE
Wiltshire,http://opendatacommunities.org/id/unitary-authority/wiltshire,18/06/2019,1902358369,544,Wimborne Business Systems Ltd ,122666,BH21,Neighbourhood & Planning,Cranbourn Chase AONB,ICT - Support arrangements,Supplies and Services,REVENUE
Wiltshire,http://opendatacommunities.org/id/unitary-authority/wiltshire,19/06/2019,1902359257,544,Wimborne Business Systems Ltd ,122666,BH21,Neighbourhood & Planning,Cranbourn Chase AONB,ICT - Support arrangements,Supplies and Services,REVENUE
Wiltshire,http://opendatacommunities.org/id/unitary-authority/wiltshire,06/06/2019,5107351036,750,Wiltshire Wildlife Trust ,112994,SN10,Children & Education,SpecialistProvision,Educational Fees,Supplies and Services,REVENUE
Wiltshire,http://opendatacommunities.org/id/unitary-authority/wiltshire,06/06/2019,5107351043,750,Wiltshire Wildlife Trust ,112994,SN10,Children & Education,SpecialistProvision,Educational Fees,Supplies and Services,REVENUE
Wiltshire,http://opendatacommunities.org/id/unitary-authority/wiltshire,21/06/2019,5107354548,2500,Wiltshire Wildlife Trust ,112994,SN10,Children & Education,Pupil Premium LAC,Educational Fees,Supplies and Services,REVENUE
Wiltshire,http://opendatacommunities.org/id/unitary-authority/wiltshire,25/06/2019,5107357282,750,Wiltshire Wildlife Trust ,112994,SN10,Children & Education,SpecialistProvision,Educational Fees,Supplies and Services,REVENUE
Wiltshire,http://opendatacommunities.org/id/unitary-authority/wiltshire,25/06/2019,5107357283,750,Wiltshire Wildlife Trust ,112994,SN10,Children & Education,SpecialistProvision,Educational Fees,Supplies and Services,REVENUE
Wiltshire,http://opendatacommunities.org/id/unitary-authority/wiltshire,03/06/2019,5107350632,395,Wiltshire Transport Training  and Development Ltd,122658,SN10,Resources,HR Central Training,Staff Training - General,Employee Related,REVENUE
Wiltshire,http://opendatacommunities.org/id/unitary-authority/wiltshire,04/06/2019,5107350836,38750,Wiltshire Parent Carer Council ,129234,BA14,Children & Education,SEND Commissioning,Other Social & Welfare Costs,Third Party Payments,REVENUE
Wiltshire,http://opendatacommunities.org/id/unitary-authority/wiltshire,21/06/2019,5107356105,800,Wiltshire Outdoor Learning Team ,134696,BA12,Children & Education,EOTAS Service,Educational Fees,Supplies and Services,REVENUE
Wiltshire,http://opendatacommunities.org/id/unitary-authority/wiltshire,11/06/2019,1902346310,1500,Wiltshire Music Centre Trust Ltd ,112987,BA15,Community Services,Area Board Trow,Area Board Grants,Supplies and Services,REVENUE
Wiltshire,http://opendatacommunities.org/id/unitary-authority/wiltshire,13/06/2019,1902347294,1500,Wiltshire Music Centre Trust Ltd ,112987,BA15,Community Services,Area Board Calne,Area Board Grants,Supplies and Services,REVENUE
Wiltshire,http://opendatacommunities.org/id/unitary-authority/wiltshire,17/06/2019,1902347348,1500,Wiltshire Music Centre Trust Ltd ,112987,BA15,Community Services,Area Board Salisbury,Area Board Grants,Supplies and Services,REVENUE
Wiltshire,http://opendatacommunities.org/id/unitary-authority/wiltshire,28/06/2019,1902361593,1500,Wiltshire Music Centre Trust Ltd ,112987,BA15,Community Services,Area Board RWB,Area Board Grants,Supplies and Services,REVENUE
Wiltshire,http://opendatacommunities.org/id/unitary-authority/wiltshire,27/06/2019,5107359073,700,Wiltshire First Aid Training ,143017,SN11,Children & Education,In house fostering t,Carer Recruitment & Training,Third Party Payments,REVENUE
Wiltshire,http://opendatacommunities.org/id/unitary-authority/wiltshire,21/06/2019,1902360066,169040.84,Wiltshire Cricket Ltd ,148617,SN15,Wiltshire Council,Wiltshire Council,S106 Public Open Spaces Contributions,Balance Sheet Accounts,REVENUE
Wiltshire,http://opendatacommunities.org/id/unitary-authority/wiltshire,28/06/2019,5107359395,702,Wiltshire County Scout Centre ,140977,SN2 ,Resources,Systems Thinking,Premises Rental,Premises Related,REVENUE
Wiltshire,http://opendatacommunities.org/id/unitary-authority/wiltshire,24/06/2019,1902361316,401210,Wiltshire Citizens Advice ,122493,BA14,Community Services,ASC Community C&G,Grants Expenditure,Supplies and Services,REVENUE
Wiltshire,http://opendatacommunities.org/id/unitary-authority/wiltshire,26/06/2019,1902363610,2058.81,Wiltshire CIL (Child) ,136525,SN10,Children & Education,0-25 extnl disabty p,Other Social & Welfare Costs,Third Party Payments,REVENUE
Wiltshire,http://opendatacommunities.org/id/unitary-authority/wiltshire,18/06/2019,1902358348,87101,Wiltshire Centre for Independent Li ,125272,SN10,Community Services,ASC Community C&G,Grants Expenditure,Supplies and Services,REVENUE
Wiltshire,http://opendatacommunities.org/id/unitary-authority/wiltshire,25/06/2019,1902362285,250,Wilts and Swindon Users Network ,112975,BA14,Community Services,ASYE,Consultants Fees,Supplies and Services,REVENUE
Wiltshire,http://opendatacommunities.org/id/unitary-authority/wiltshire,18/06/2019,1902358353,682.5,Wilts  and  Berks Canal Trust ,122581,SN15,Resources,Rural Estates,Premises Rental,Premises Related,REVENUE
Wiltshire,http://opendatacommunities.org/id/unitary-authority/wiltshire,18/06/2019,1902358354,682.5,Wilts  and  Berks Canal Trust ,122581,SN15,Resources,Rural Estates,Premises Rental,Premises Related,REVENUE
Wiltshire,http://opendatacommunities.org/id/unitary-authority/wiltshire,18/06/2019,1902358355,682.5,Wilts  and  Berks Canal Trust ,122581,SN15,Resources,Rural Estates,Premises Rental,Premises Related,REVENUE
Wiltshire,http://opendatacommunities.org/id/unitary-authority/wiltshire,10/06/2019,5107351385,631.86,Wilson Plumbing Supplies Limited ,137989,SP4 ,Neighbourhood & Planning,DLO,Equipment Purchase,Supplies and Services,REVENUE
Wiltshire,http://opendatacommunities.org/id/unitary-authority/wiltshire,10/06/2019,5107351396,715.85,Wilson Plumbing Supplies Limited ,137989,SP4 ,Neighbourhood & Planning,DLO,Equipment Purchase,Supplies and Services,REVENUE
Wiltshire,http://opendatacommunities.org/id/unitary-authority/wiltshire,27/06/2019,5107359030,727.25,Wilson Plumbing Supplies Limited ,137989,SP4 ,Neighbourhood & Planning,DLO,Equipment Purchase,Supplies and Services,REVENUE
Wiltshire,http://opendatacommunities.org/id/unitary-authority/wiltshire,27/06/2019,5107359032,262.87,Wilson Plumbing Supplies Limited ,137989,SP4 ,Neighbourhood & Planning,DLO,Equipment Purchase,Supplies and Services,REVENUE
Wiltshire,http://opendatacommunities.org/id/unitary-authority/wiltshire,28/06/2019,5107359040,436.62,Wilson Plumbing Supplies Limited ,137989,SP4 ,Neighbourhood & Planning,DLO,Equipment Purchase,Supplies and Services,REVENUE
Wiltshire,http://opendatacommunities.org/id/unitary-authority/wiltshire,25/06/2019,5107357334,17106.25,Willoughbys Procurement Unit ,148487,CM3 ,Children & Education,Troubled Families Gr,Consultants Fees,Supplies and Services,REVENUE
Wiltshire,http://opendatacommunities.org/id/unitary-authority/wiltshire,25/06/2019,5107357335,19837.5,Willoughbys Procurement Unit ,148487,CM3 ,Children & Education,Troubled Families Gr,Consultants Fees,Supplies and Services,REVENUE
Wiltshire,http://opendatacommunities.org/id/unitary-authority/wiltshire,11/06/2019,5107351677,985,Willis Palmer ,134639,CO4 ,Children & Education,Supp & Safe West 2,Other Social & Welfare Costs,Third Party Payments,REVENUE
Wiltshire,http://opendatacommunities.org/id/unitary-authority/wiltshire,11/06/2019,5107351678,595.25,Willis Palmer ,134639,CO4 ,Children & Education,Supp & Safe West 2,Legal Fees,Supplies and Services,REVENUE
Wiltshire,http://opendatacommunities.org/id/unitary-authority/wiltshire,06/06/2019,5107351052,482390.17,White Horse Education Partnership Ltd,112959,BS1 ,Resources,NWilts Schools PFI,PFI Schemes,Supplies and Services,REVENUE
Wiltshire,http://opendatacommunities.org/id/unitary-authority/wiltshire,06/06/2019,5107351053,13619.23,White Horse Education Partnership Ltd,112959,BS1 ,Resources,NWilts Schools PFI,PFI Schemes,Supplies and Services,REVENUE
Wiltshire,http://opendatacommunities.org/id/unitary-authority/wiltshire,06/06/2019,5107351054,17839.32,White Horse Education Partnership Ltd,112959,BS1 ,Resources,NWilts Schools PFI,PFI Schemes,Supplies and Services,REVENUE
Wiltshire,http://opendatacommunities.org/id/unitary-authority/wiltshire,06/06/2019,5107351055,4216.18,White Horse Education Partnership Ltd,112959,BS1 ,Resources,NWilts Schools PFI,PFI Schemes,Supplies and Services,REVENUE
Wiltshire,http://opendatacommunities.org/id/unitary-authority/wiltshire,26/06/2019,5107353365,7050.68,White Horse Care Trust ,112958,SN4 ,Community Services,CTPLD Placements,Adult Residential Placements - Spot Purchase,Third Party Payments,REVENUE
Wiltshire,http://opendatacommunities.org/id/unitary-authority/wiltshire,26/06/2019,5107353433,5078.4,White Horse Care Trust ,112958,SN4 ,Community Services,CTPLD Placements,Adult Care Nursing Placements - Spot,Third Party Payments,REVENUE
Wiltshire,http://opendatacommunities.org/id/unitary-authority/wiltshire,26/06/2019,5107353859,6027.04,White Horse Care Trust ,112958,SN4 ,Community Services,CTPLD Placements,Adult Residential Placements - Spot Purchase,Third Party Payments,REVENUE
Wiltshire,http://opendatacommunities.org/id/unitary-authority/wiltshire,26/06/2019,5107354117,6081,White Horse Care Trust ,112958,SN4 ,Community Services,CTPLD Placements,Adult Residential Placements - Spot Purchase,Third Party Payments,REVENUE
Wiltshire,http://opendatacommunities.org/id/unitary-authority/wiltshire,26/06/2019,5107354367,7391.48,White Horse Care Trust ,112958,SN4 ,Community Services,CTPLD Placements,Adult Residential Placements - Spot Purchase,Third Party Payments,REVENUE
Wiltshire,http://opendatacommunities.org/id/unitary-authority/wiltshire,26/06/2019,5107354583,6328.56,White Horse Care Trust ,112958,SN4 ,Community Services,CTPLD Placements,Adult Residential Placements - Spot Purchase,Third Party Payments,REVENUE
Wiltshire,http://opendatacommunities.org/id/unitary-authority/wiltshire,26/06/2019,5107354601,6926.32,White Horse Care Trust ,112958,SN4 ,Community Services,CTPLD Placements,Adult Residential Placements - Spot Purchase,Third Party Payments,REVENUE
Wiltshire,http://opendatacommunities.org/id/unitary-authority/wiltshire,26/06/2019,5107354633,6705.12,White Horse Care Trust ,112958,SN4 ,Community Services,CTPLD Placements,Adult Residential Placements - Spot Purchase,Third Party Payments,REVENUE
Wiltshire,http://opendatacommunities.org/id/unitary-authority/wiltshire,26/06/2019,5107354808,7307.56,White Horse Care Trust ,112958,SN4 ,Community Services,CTPLD Placements,Adult Residential Placements - Spot Purchase,Third Party Payments,REVENUE
Wiltshire,http://opendatacommunities.org/id/unitary-authority/wiltshire,26/06/2019,5107354829,6172.68,White Horse Care Trust ,112958,SN4 ,Community Services,CTPLD Placements,Adult Residential Placements - Spot Purchase,Third Party Payments,REVENUE
Wiltshire,http://opendatacommunities.org/id/unitary-authority/wiltshire,26/06/2019,5107354837,7893,White Horse Care Trust ,112958,SN4 ,Community Services,CTPLD Placements,Adult Residential Placements - Spot Purchase,Third Party Payments,REVENUE
Wiltshire,http://opendatacommunities.org/id/unitary-authority/wiltshire,26/06/2019,5107354887,6354.36,White Horse Care Trust ,112958,SN4 ,Community Services,CTPLD Placements,Adult Residential Placements - Spot Purchase,Third Party Payments,REVENUE
Wiltshire,http://opendatacommunities.org/id/unitary-authority/wiltshire,26/06/2019,5107354941,6155.48,White Horse Care Trust ,112958,SN4 ,Community Services,CTPLD Placements,Adult Residential Placements - Spot Purchase,Third Party Payments,REVENUE
Wiltshire,http://opendatacommunities.org/id/unitary-authority/wiltshire,26/06/2019,5107354995,6160.4,White Horse Care Trust ,112958,SN4 ,Community Services,CTPLD Placements,Adult Residential Placements - Spot Purchase,Third Party Payments,REVENUE
Wiltshire,http://opendatacommunities.org/id/unitary-authority/wiltshire,26/06/2019,5107355263,4827.28,White Horse Care Trust ,112958,SN4 ,Community Services,CTPLD Placements,Adult Residential Placements - Spot Purchase,Third Party Payments,REVENUE
Wiltshire,http://opendatacommunities.org/id/unitary-authority/wiltshire,26/06/2019,5107355355,7175.8,White Horse Care Trust ,112958,SN4 ,Community Services,CTPLD Placements,Adult Residential Placements - Spot Purchase,Third Party Payments,REVENUE
Wiltshire,http://opendatacommunities.org/id/unitary-authority/wiltshire,26/06/2019,5107355368,7509.4,White Horse Care Trust ,112958,SN4 ,Community Services,West Care Packages,Adult Care Nursing Placements - Spot,Third Party Payments,REVENUE
Wiltshire,http://opendatacommunities.org/id/unitary-authority/wiltshire,26/06/2019,5107355418,7602.16,White Horse Care Trust ,112958,SN4 ,Community Services,CTPLD Placements,Adult Residential Placements - Spot Purchase,Third Party Payments,REVENUE
Wiltshire,http://opendatacommunities.org/id/unitary-authority/wiltshire,26/06/2019,5107357588,7476.52,White Horse Care Trust ,112958,SN4 ,Community Services,CTPLD Placements,Adult Care Nursing Placements - Spot,Third Party Payments,REVENUE
Wiltshire,http://opendatacommunities.org/id/unitary-authority/wiltshire,26/06/2019,5107357708,7217.16,White Horse Care Trust ,112958,SN4 ,Community Services,CTPLD Placements,Adult Residential Placements - Spot Purchase,Third Party Payments,REVENUE
Wiltshire,http://opendatacommunities.org/id/unitary-authority/wiltshire,26/06/2019,5107357816,9265.96,White Horse Care Trust ,112958,SN4 ,Community Services,CTPLD Placements,Adult Care Nursing Placements - Spot,Third Party Payments,REVENUE
Wiltshire,http://opendatacommunities.org/id/unitary-authority/wiltshire,26/06/2019,5107358373,5584.96,White Horse Care Trust ,112958,SN4 ,Community Services,CTPLD Placements,Adult Care Nursing Placements - Spot,Third Party Payments,REVENUE
Wiltshire,http://opendatacommunities.org/id/unitary-authority/wiltshire,25/06/2019,1902362381,750,Wheelers Travel Ltd ,140206,SO16,Neighbourhood & Planning,Concessionary Fares,Concessionary fares,Third Party Payments,REVENUE
Wiltshire,http://opendatacommunities.org/id/unitary-authority/wiltshire,07/06/2019,1902353916,328.78,WFL (UK) Ltd ,122950,SN15,Neighbourhood & Planning,SH Nadder Close,Other Fuels,Premises Related,REVENUE
Wiltshire,http://opendatacommunities.org/id/unitary-authority/wiltshire,07/06/2019,1902353917,3280.05,WFL (UK) Ltd ,122950,SN15,Neighbourhood & Planning,SH Nadder Close,Other Fuels,Premises Related,REVENUE
Wiltshire,http://opendatacommunities.org/id/unitary-authority/wiltshire,07/06/2019,5107351232,8242.06,WFL (UK) Ltd ,122950,SN15,Neighbourhood & Planning,Fleet,Vehicle Fuel,Transport Related,REVENUE
Wiltshire,http://opendatacommunities.org/id/unitary-authority/wiltshire,10/06/2019,5107351425,11006.1,WFL (UK) Ltd ,122950,SN15,Neighbourhood & Planning,Fleet,Vehicle Fuel,Transport Related,REVENUE
Wiltshire,http://opendatacommunities.org/id/unitary-authority/wiltshire,11/06/2019,5107351609,10557.87,WFL (UK) Ltd ,122950,SN15,Neighbourhood & Planning,Fleet,Vehicle Fuel,Transport Related,REVENUE
Wiltshire,http://opendatacommunities.org/id/unitary-authority/wiltshire,11/06/2019,5107351624,9449.1,WFL (UK) Ltd ,122950,SN15,Neighbourhood & Planning,Fleet,Vehicle Fuel,Transport Related,REVENUE
Wiltshire,http://opendatacommunities.org/id/unitary-authority/wiltshire,26/06/2019,5107359026,4989,WFL (UK) Ltd ,122950,SN15,Neighbourhood & Planning,Fleet,Vehicle Fuel,Transport Related,REVENUE
Wiltshire,http://opendatacommunities.org/id/unitary-authority/wiltshire,27/06/2019,5107359029,10170.59,WFL (UK) Ltd ,122950,SN15,Neighbourhood & Planning,Fleet,Vehicle Fuel,Transport Related,REVENUE
Wiltshire,http://opendatacommunities.org/id/unitary-authority/wiltshire,18/06/2019,1902358569,17253.6,Westview Day Nursery ,122518,BA15,Children & Education,Free Enttlmnt 3 & 4y,Childcare Free Entitlement Early Years,Supplies and Services,REVENUE
Wiltshire,http://opendatacommunities.org/id/unitary-authority/wiltshire,18/06/2019,1902358570,622.44,Westview Day Nursery ,122518,BA15,Children & Education,Free Entitlement 2 Y,Childcare Free Entitlement Early Years,Supplies and Services,REVENUE
Wiltshire,http://opendatacommunities.org/id/unitary-authority/wiltshire,26/06/2019,5107354715,3549.4,Westcliff Care Home ,122507,EX7 ,Community Services,MH AOWA South Locali,Adult Residential Placements - Spot Purchase,Third Party Payments,REVENUE
Wiltshire,http://opendatacommunities.org/id/unitary-authority/wiltshire,06/06/2019,5107351085,1252.9,Westbury Lodge ,148299,BA13,Community Services,MH AOWA South Locali,Adult Residential Placements - Spot Purchase,Third Party Payments,REVENUE
Wiltshire,http://opendatacommunities.org/id/unitary-authority/wiltshire,06/06/2019,5107351087,5011.6,Westbury Lodge ,148299,BA13,Community Services,MH AOWA South Locali,Adult Residential Placements - Spot Purchase,Third Party Payments,REVENUE
Wiltshire,http://opendatacommunities.org/id/unitary-authority/wiltshire,06/06/2019,5107351089,5011.6,Westbury Lodge ,148299,BA13,Community Services,MH AOWA South Locali,Adult Residential Placements - Spot Purchase,Third Party Payments,REVENUE
Wiltshire,http://opendatacommunities.org/id/unitary-authority/wiltshire,06/06/2019,5107351109,1231.14,Westbury Lodge ,148299,BA13,Community Services,CTPLD Placements,Adult Residential Placements - Spot Purchase,Third Party Payments,REVENUE
Wiltshire,http://opendatacommunities.org/id/unitary-authority/wiltshire,06/06/2019,5107351111,4924.56,Westbury Lodge ,148299,BA13,Community Services,CTPLD Placements,Adult Residential Placements - Spot Purchase,Third Party Payments,REVENUE
Wiltshire,http://opendatacommunities.org/id/unitary-authority/wiltshire,06/06/2019,5107351113,4924.56,Westbury Lodge ,148299,BA13,Community Services,CTPLD Placements,Adult Residential Placements - Spot Purchase,Third Party Payments,REVENUE
Wiltshire,http://opendatacommunities.org/id/unitary-authority/wiltshire,26/06/2019,5107352390,5011.6,Westbury Lodge ,148299,BA13,Community Services,MH AOWA South Locali,Adult Residential Placements - Spot Purchase,Third Party Payments,REVENUE
Wiltshire,http://opendatacommunities.org/id/unitary-authority/wiltshire,26/06/2019,5107352941,4924.56,Westbury Lodge ,148299,BA13,Community Services,CTPLD Placements,Adult Residential Placements - Spot Purchase,Third Party Payments,REVENUE
Wiltshire,http://opendatacommunities.org/id/unitary-authority/wiltshire,26/06/2019,5107352948,6885.44,Westbury Lodge ,148299,BA13,Community Services,CTPLD Placements,Adult Residential Placements - Spot Purchase,Third Party Payments,REVENUE
Wiltshire,http://opendatacommunities.org/id/unitary-authority/wiltshire,26/06/2019,5107353349,4976.64,Westbury Lodge ,148299,BA13,Community Services,West Care Packages,Adult Residential Placements - Spot Purchase,Third Party Payments,REVENUE
Wiltshire,http://opendatacommunities.org/id/unitary-authority/wiltshire,26/06/2019,5107355874,2948.02,Westbury Lodge ,148299,BA13,Community Services,MH AOWA West Localit,Adult Residential Placements - Spot Purchase,Third Party Payments,REVENUE
Wiltshire,http://opendatacommunities.org/id/unitary-authority/wiltshire,26/06/2019,5107355876,5896.04,Westbury Lodge ,148299,BA13,Community Services,MH AOWA West Localit,Adult Residential Placements - Spot Purchase,Third Party Payments,REVENUE
Wiltshire,http://opendatacommunities.org/id/unitary-authority/wiltshire,26/06/2019,5107357745,448,Westbury Lodge ,148299,BA13,Community Services,West Care Packages,Adult Domiciliary Care,Third Party Payments,REVENUE
Wiltshire,http://opendatacommunities.org/id/unitary-authority/wiltshire,26/06/2019,5107355082,3712.8,West Oak Care Home ,141796,RG41,Community Services,North Care Packages,Adult Care Nursing Placements - Spot,Third Party Payments,REVENUE
Wiltshire,http://opendatacommunities.org/id/unitary-authority/wiltshire,11/06/2019,1902354398,2956.7,West Mercia Energy ,139176,SY2-,Resources,FM Leisure Centres,Gas,Premises Related,REVENUE
Wiltshire,http://opendatacommunities.org/id/unitary-authority/wiltshire,11/06/2019,1902354425,8303.39,West Mercia Energy ,139176,SY2-,Resources,Monkton Park,Electricity,Premises Related,REVENUE
Wiltshire,http://opendatacommunities.org/id/unitary-authority/wiltshire,11/06/2019,1902354426,8500.35,West Mercia Energy ,139176,SY2-,Resources,Monkton Park,Electricity,Premises Related,REVENUE
Wiltshire,http://opendatacommunities.org/id/unitary-authority/wiltshire,11/06/2019,1902354427,8149.47,West Mercia Energy ,139176,SY2-,Resources,Monkton Park,Electricity,Premises Related,REVENUE
Wiltshire,http://opendatacommunities.org/id/unitary-authority/wiltshire,11/06/2019,1902354428,8397.28,West Mercia Energy ,139176,SY2-,Resources,Monkton Park,Electricity,Premises Related,REVENUE
Wiltshire,http://opendatacommunities.org/id/unitary-authority/wiltshire,11/06/2019,1902354429,8401.38,West Mercia Energy ,139176,SY2-,Resources,Monkton Park,Electricity,Premises Related,REVENUE
Wiltshire,http://opendatacommunities.org/id/unitary-authority/wiltshire,11/06/2019,1902354430,8519.54,West Mercia Energy ,139176,SY2-,Resources,Monkton Park,Electricity,Premises Related,REVENUE
Wiltshire,http://opendatacommunities.org/id/unitary-authority/wiltshire,11/06/2019,1902354431,9346.14,West Mercia Energy ,139176,SY2-,Resources,Monkton Park,Electricity,Premises Related,REVENUE
Wiltshire,http://opendatacommunities.org/id/unitary-authority/wiltshire,11/06/2019,1902354432,9382.28,West Mercia Energy ,139176,SY2-,Resources,Monkton Park,Electricity,Premises Related,REVENUE
Wiltshire,http://opendatacommunities.org/id/unitary-authority/wiltshire,11/06/2019,1902354433,9056.47,West Mercia Energy ,139176,SY2-,Resources,Monkton Park,Electricity,Premises Related,REVENUE
Wiltshire,http://opendatacommunities.org/id/unitary-authority/wiltshire,11/06/2019,1902354434,9414.69,West Mercia Energy ,139176,SY2-,Resources,Monkton Park,Electricity,Premises Related,REVENUE
Wiltshire,http://opendatacommunities.org/id/unitary-authority/wiltshire,11/06/2019,1902354435,8442.16,West Mercia Energy ,139176,SY2-,Resources,Monkton Park,Electricity,Premises Related,REVENUE
Wiltshire,http://opendatacommunities.org/id/unitary-authority/wiltshire,11/06/2019,1902354436,9077.99,West Mercia Energy ,139176,SY2-,Resources,Monkton Park,Electricity,Premises Related,REVENUE
Wiltshire,http://opendatacommunities.org/id/unitary-authority/wiltshire,11/06/2019,1902354437,9272.7,West Mercia Energy ,139176,SY2-,Resources,Monkton Park,Electricity,Premises Related,REVENUE
Wiltshire,http://opendatacommunities.org/id/unitary-authority/wiltshire,11/06/2019,1902354438,9209.21,West Mercia Energy ,139176,SY2-,Resources,Monkton Park,Electricity,Premises Related,REVENUE
Wiltshire,http://opendatacommunities.org/id/unitary-authority/wiltshire,11/06/2019,1902354439,8805.51,West Mercia Energy ,139176,SY2-,Resources,Monkton Park,Electricity,Premises Related,REVENUE
Wiltshire,http://opendatacommunities.org/id/unitary-authority/wiltshire,11/06/2019,1902354440,9194.19,West Mercia Energy ,139176,SY2-,Resources,Monkton Park,Electricity,Premises Related,REVENUE
Wiltshire,http://opendatacommunities.org/id/unitary-authority/wiltshire,11/06/2019,1902354441,9466.35,West Mercia Energy ,139176,SY2-,Resources,Monkton Park,Electricity,Premises Related,REVENUE
Wiltshire,http://opendatacommunities.org/id/unitary-authority/wiltshire,11/06/2019,1902354442,9372.01,West Mercia Energy ,139176,SY2-,Resources,Monkton Park,Electricity,Premises Related,REVENUE
Wiltshire,http://opendatacommunities.org/id/unitary-authority/wiltshire,11/06/2019,1902354443,10888.97,West Mercia Energy ,139176,SY2-,Resources,Monkton Park,Electricity,Premises Related,REVENUE
Wiltshire,http://opendatacommunities.org/id/unitary-authority/wiltshire,11/06/2019,1902354444,10795.31,West Mercia Energy ,139176,SY2-,Resources,Monkton Park,Electricity,Premises Related,REVENUE
Wiltshire,http://opendatacommunities.org/id/unitary-authority/wiltshire,11/06/2019,1902354445,10455.61,West Mercia Energy ,139176,SY2-,Resources,Monkton Park,Electricity,Premises Related,REVENUE
Wiltshire,http://opendatacommunities.org/id/unitary-authority/wiltshire,11/06/2019,1902354446,11013.42,West Mercia Energy ,139176,SY2-,Resources,Monkton Park,Electricity,Premises Related,REVENUE
Wiltshire,http://opendatacommunities.org/id/unitary-authority/wiltshire,11/06/2019,1902354447,9728.23,West Mercia Energy ,139176,SY2-,Resources,Monkton Park,Electricity,Premises Related,REVENUE
Wiltshire,http://opendatacommunities.org/id/unitary-authority/wiltshire,11/06/2019,1902354448,10381.95,West Mercia Energy ,139176,SY2-,Resources,Monkton Park,Electricity,Premises Related,REVENUE
Wiltshire,http://opendatacommunities.org/id/unitary-authority/wiltshire,11/06/2019,1902354449,466.14,West Mercia Energy ,139176,SY2-,Neighbourhood & Planning,SH Clays Orchard,Electricity,Premises Related,REVENUE
Wiltshire,http://opendatacommunities.org/id/unitary-authority/wiltshire,11/06/2019,1902354461,2083.57,West Mercia Energy ,139176,SY2-,Resources,Tisbury Sports Centr,Electricity,Premises Related,REVENUE
Wiltshire,http://opendatacommunities.org/id/unitary-authority/wiltshire,11/06/2019,1902354462,2952.8,West Mercia Energy ,139176,SY2-,Resources,FM Leisure Centres,Electricity,Premises Related,REVENUE
Wiltshire,http://opendatacommunities.org/id/unitary-authority/wiltshire,11/06/2019,1902354463,3511.59,West Mercia Energy ,139176,SY2-,Neighbourhood & Planning,Oak Tree Field G&T,Electricity,Premises Related,REVENUE
Wiltshire,http://opendatacommunities.org/id/unitary-authority/wiltshire,11/06/2019,1902354464,2088.15,West Mercia Energy ,139176,SY2-,Resources,FM Libraries,Electricity,Premises Related,REVENUE
Wiltshire,http://opendatacommunities.org/id/unitary-authority/wiltshire,11/06/2019,1902354465,1687.64,West Mercia Energy ,139176,SY2-,Neighbourhood & Planning,Corsham Mansion Hse,Electricity,Premises Related,REVENUE
Wiltshire,http://opendatacommunities.org/id/unitary-authority/wiltshire,11/06/2019,1902354466,3795.98,West Mercia Energy ,139176,SY2-,Resources,Pewsey Campus,Electricity,Premises Related,REVENUE
Wiltshire,http://opendatacommunities.org/id/unitary-authority/wiltshire,11/06/2019,1902354467,590.85,West Mercia Energy ,139176,SY2-,Resources,FM Highway Depots,Electricity,Premises Related,REVENUE
Wiltshire,http://opendatacommunities.org/id/unitary-authority/wiltshire,11/06/2019,1902354468,2400.82,West Mercia Energy ,139176,SY2-,Resources,FM Leisure Centres,Electricity,Premises Related,REVENUE
Wiltshire,http://opendatacommunities.org/id/unitary-authority/wiltshire,11/06/2019,1902354469,610.88,West Mercia Energy ,139176,SY2-,Resources,FM Libraries,Electricity,Premises Related,REVENUE
Wiltshire,http://opendatacommunities.org/id/unitary-authority/wiltshire,11/06/2019,1902354470,2087.91,West Mercia Energy ,139176,SY2-,Resources,FM Leisure Centres,Electricity,Premises Related,REVENUE
Wiltshire,http://opendatacommunities.org/id/unitary-authority/wiltshire,11/06/2019,1902354471,4123,West Mercia Energy ,139176,SY2-,Resources,FM Leisure Centres,Electricity,Premises Related,REVENUE
Wiltshire,http://opendatacommunities.org/id/unitary-authority/wiltshire,11/06/2019,1902354472,1444.07,West Mercia Energy ,139176,SY2-,Resources,FM Leisure Centres,Electricity,Premises Related,REVENUE
Wiltshire,http://opendatacommunities.org/id/unitary-authority/wiltshire,11/06/2019,1902354473,2880.46,West Mercia Energy ,139176,SY2-,Resources,FM Leisure Centres,Electricity,Premises Related,REVENUE
Wiltshire,http://opendatacommunities.org/id/unitary-authority/wiltshire,11/06/2019,1902354474,421.66,West Mercia Energy ,139176,SY2-,Resources,FM Leisure Centres,Electricity,Premises Related,REVENUE
Wiltshire,http://opendatacommunities.org/id/unitary-authority/wiltshire,11/06/2019,1902354475,514.64,West Mercia Energy ,139176,SY2-,Resources,FM Highway Depots,Electricity,Premises Related,REVENUE
Wiltshire,http://opendatacommunities.org/id/unitary-authority/wiltshire,11/06/2019,1902354476,568.37,West Mercia Energy ,139176,SY2-,Resources,FM Highway Depots,Electricity,Premises Related,REVENUE
Wiltshire,http://opendatacommunities.org/id/unitary-authority/wiltshire,11/06/2019,1902354478,533.29,West Mercia Energy ,139176,SY2-,Resources,SAFM - Other Assets,Electricity,Premises Related,REVENUE
Wiltshire,http://opendatacommunities.org/id/unitary-authority/wiltshire,11/06/2019,1902354479,2943.48,West Mercia Energy ,139176,SY2-,Neighbourhood & Planning,SH Horsehill Place,Electricity,Premises Related,REVENUE
Wiltshire,http://opendatacommunities.org/id/unitary-authority/wiltshire,11/06/2019,1902354480,4320.14,West Mercia Energy ,139176,SY2-,Resources,FM Leisure Centres,Electricity,Premises Related,REVENUE
Wiltshire,http://opendatacommunities.org/id/unitary-authority/wiltshire,11/06/2019,1902354481,571.35,West Mercia Energy ,139176,SY2-,Neighbourhood & Planning,SH Lynch Close,Electricity,Premises Related,REVENUE
Wiltshire,http://opendatacommunities.org/id/unitary-authority/wiltshire,11/06/2019,1902354482,1430.41,West Mercia Energy ,139176,SY2-,Neighbourhood & Planning,SH Lanfear Close,Electricity,Premises Related,REVENUE
Wiltshire,http://opendatacommunities.org/id/unitary-authority/wiltshire,11/06/2019,1902354483,341.75,West Mercia Energy ,139176,SY2-,Neighbourhood & Planning,White Horse Enterpri,Electricity,Premises Related,REVENUE
Wiltshire,http://opendatacommunities.org/id/unitary-authority/wiltshire,11/06/2019,1902354484,1720.51,West Mercia Energy ,139176,SY2-,Resources,FM Highway Depots,Electricity,Premises Related,REVENUE
Wiltshire,http://opendatacommunities.org/id/unitary-authority/wiltshire,11/06/2019,1902354485,2688.95,West Mercia Energy ,139176,SY2-,Resources,Salisbury City Hall,Electricity,Premises Related,REVENUE
Wiltshire,http://opendatacommunities.org/id/unitary-authority/wiltshire,11/06/2019,1902354486,5625.07,West Mercia Energy ,139176,SY2-,Resources,FM Libraries,Electricity,Premises Related,REVENUE
Wiltshire,http://opendatacommunities.org/id/unitary-authority/wiltshire,11/06/2019,1902354487,8309.19,West Mercia Energy ,139176,SY2-,Resources,Corsham Campus,Electricity,Premises Related,REVENUE
Wiltshire,http://opendatacommunities.org/id/unitary-authority/wiltshire,11/06/2019,1902354488,25205.08,West Mercia Energy ,139176,SY2-,Resources,County Hall Complex,Electricity,Premises Related,REVENUE
Wiltshire,http://opendatacommunities.org/id/unitary-authority/wiltshire,11/06/2019,1902354489,580.63,West Mercia Energy ,139176,SY2-,Resources,Market Sales,Electricity,Premises Related,REVENUE
Wiltshire,http://opendatacommunities.org/id/unitary-authority/wiltshire,11/06/2019,1902354490,2929.28,West Mercia Energy ,139176,SY2-,Resources,FM Leisure Centres,Electricity,Premises Related,REVENUE
Wiltshire,http://opendatacommunities.org/id/unitary-authority/wiltshire,11/06/2019,1902354491,2332.69,West Mercia Energy ,139176,SY2-,Neighbourhood & Planning,SH Crane Lodge,Electricity,Premises Related,REVENUE
Wiltshire,http://opendatacommunities.org/id/unitary-authority/wiltshire,11/06/2019,1902354492,2873.54,West Mercia Energy ,139176,SY2-,Neighbourhood & Planning,SH Edgers Close,Electricity,Premises Related,REVENUE
Wiltshire,http://opendatacommunities.org/id/unitary-authority/wiltshire,11/06/2019,1902354493,6927.39,West Mercia Energy ,139176,SY2-,Resources,FM Leisure Centres,Electricity,Premises Related,REVENUE
Wiltshire,http://opendatacommunities.org/id/unitary-authority/wiltshire,11/06/2019,1902354494,3730.12,West Mercia Energy ,139176,SY2-,Resources,Bourne Hill,Electricity,Premises Related,REVENUE
Wiltshire,http://opendatacommunities.org/id/unitary-authority/wiltshire,11/06/2019,1902354495,4395.53,West Mercia Energy ,139176,SY2-,Resources,FM Leisure Centres,Electricity,Premises Related,REVENUE
Wiltshire,http://opendatacommunities.org/id/unitary-authority/wiltshire,11/06/2019,1902354496,2792.78,West Mercia Energy ,139176,SY2-,Community Services,HRA Neighbourhood Te,Electricity,Premises Related,REVENUE
Wiltshire,http://opendatacommunities.org/id/unitary-authority/wiltshire,11/06/2019,1902354497,4730.35,West Mercia Energy ,139176,SY2-,Resources,FM Leisure Centres,Electricity,Premises Related,REVENUE
Wiltshire,http://opendatacommunities.org/id/unitary-authority/wiltshire,11/06/2019,1902354498,3076.24,West Mercia Energy ,139176,SY2-,Resources,FM Highway Depots,Electricity,Premises Related,REVENUE
Wiltshire,http://opendatacommunities.org/id/unitary-authority/wiltshire,11/06/2019,1902354499,15131.02,West Mercia Energy ,139176,SY2-,Resources,5 Rivers LC,Electricity,Premises Related,REVENUE
Wiltshire,http://opendatacommunities.org/id/unitary-authority/wiltshire,11/06/2019,1902354500,6879.67,West Mercia Energy ,139176,SY2-,Resources,FM Leisure Centres,Electricity,Premises Related,REVENUE
Wiltshire,http://opendatacommunities.org/id/unitary-authority/wiltshire,11/06/2019,1902354502,10556.83,West Mercia Energy ,139176,SY2-,Resources,Monkton Park,Electricity,Premises Related,REVENUE
Wiltshire,http://opendatacommunities.org/id/unitary-authority/wiltshire,11/06/2019,1902354503,1982.95,West Mercia Energy ,139176,SY2-,Resources,Tisbury Sports Centr,Electricity,Premises Related,REVENUE
Wiltshire,http://opendatacommunities.org/id/unitary-authority/wiltshire,11/06/2019,1902354504,3701.56,West Mercia Energy ,139176,SY2-,Neighbourhood & Planning,Street Lighting,Electricity,Premises Related,REVENUE
Wiltshire,http://opendatacommunities.org/id/unitary-authority/wiltshire,11/06/2019,1902354505,2125.14,West Mercia Energy ,139176,SY2-,Neighbourhood & Planning,Communal Areas,Electricity,Premises Related,REVENUE
Wiltshire,http://opendatacommunities.org/id/unitary-authority/wiltshire,11/06/2019,1902354506,1997.68,West Mercia Energy ,139176,SY2-,Neighbourhood & Planning,Communal Areas,Electricity,Premises Related,REVENUE
Wiltshire,http://opendatacommunities.org/id/unitary-authority/wiltshire,11/06/2019,1902354508,609.56,West Mercia Energy ,139176,SY2-,Neighbourhood & Planning,Communal Areas,Electricity,Premises Related,REVENUE
Wiltshire,http://opendatacommunities.org/id/unitary-authority/wiltshire,11/06/2019,1902354511,444.42,West Mercia Energy ,139176,SY2-,Neighbourhood & Planning,Street Lighting,Electricity,Premises Related,REVENUE
Wiltshire,http://opendatacommunities.org/id/unitary-authority/wiltshire,11/06/2019,1902354512,423.85,West Mercia Energy ,139176,SY2-,Neighbourhood & Planning,Street Lighting,Electricity,Premises Related,REVENUE
Wiltshire,http://opendatacommunities.org/id/unitary-authority/wiltshire,11/06/2019,1902354513,135242.6,West Mercia Energy ,139176,SY2-,Neighbourhood & Planning,Street Lighting,Electricity,Premises Related,REVENUE
Wiltshire,http://opendatacommunities.org/id/unitary-authority/wiltshire,11/06/2019,1902354524,284.26,West Mercia Energy ,139176,SY2-,Resources,FM Libraries,Electricity,Premises Related,REVENUE
Wiltshire,http://opendatacommunities.org/id/unitary-authority/wiltshire,11/06/2019,1902354528,340.49,West Mercia Energy ,139176,SY2-,Resources,SAFM - Other Assets,Electricity,Premises Related,REVENUE
Wiltshire,http://opendatacommunities.org/id/unitary-authority/wiltshire,11/06/2019,1902354529,500.64,West Mercia Energy ,139176,SY2-,Resources,FM Libraries,Electricity,Premises Related,REVENUE
Wiltshire,http://opendatacommunities.org/id/unitary-authority/wiltshire,11/06/2019,1902354537,507.44,West Mercia Energy ,139176,SY2-,Resources,FM Highway Depots,Electricity,Premises Related,REVENUE
Wiltshire,http://opendatacommunities.org/id/unitary-authority/wiltshire,11/06/2019,1902354538,688.94,West Mercia Energy ,139176,SY2-,Resources,FM Leisure Centres,Electricity,Premises Related,REVENUE
Wiltshire,http://opendatacommunities.org/id/unitary-authority/wiltshire,11/06/2019,1902354539,492.11,West Mercia Energy ,139176,SY2-,Resources,FM Highway Depots,Electricity,Premises Related,REVENUE
Wiltshire,http://opendatacommunities.org/id/unitary-authority/wiltshire,11/06/2019,1902354549,385.01,West Mercia Energy ,139176,SY2-,Resources,FM Libraries,Electricity,Premises Related,REVENUE
Wiltshire,http://opendatacommunities.org/id/unitary-authority/wiltshire,11/06/2019,1902354550,633.62,West Mercia Energy ,139176,SY2-,Resources,SAFM - Other Assets,Electricity,Premises Related,REVENUE
Wiltshire,http://opendatacommunities.org/id/unitary-authority/wiltshire,11/06/2019,1902354555,353.7,West Mercia Energy ,139176,SY2-,Resources,FM Libraries,Electricity,Premises Related,REVENUE
Wiltshire,http://opendatacommunities.org/id/unitary-authority/wiltshire,11/06/2019,1902354570,279.67,West Mercia Energy ,139176,SY2-,Neighbourhood & Planning,Park & Ride Sites,Electricity,Premises Related,REVENUE
Wiltshire,http://opendatacommunities.org/id/unitary-authority/wiltshire,11/06/2019,1902354572,534.46,West Mercia Energy ,139176,SY2-,Resources,FM Libraries,Electricity,Premises Related,REVENUE
Wiltshire,http://opendatacommunities.org/id/unitary-authority/wiltshire,11/06/2019,1902354573,400.68,West Mercia Energy ,139176,SY2-,Resources,FM Highway Depots,Electricity,Premises Related,REVENUE
Wiltshire,http://opendatacommunities.org/id/unitary-authority/wiltshire,11/06/2019,1902354575,426.68,West Mercia Energy ,139176,SY2-,Resources,SAFM - Other Assets,Electricity,Premises Related,REVENUE
Wiltshire,http://opendatacommunities.org/id/unitary-authority/wiltshire,11/06/2019,1902354576,844.28,West Mercia Energy ,139176,SY2-,Resources,FM Highway Depots,Electricity,Premises Related,REVENUE
Wiltshire,http://opendatacommunities.org/id/unitary-authority/wiltshire,11/06/2019,1902354577,606.04,West Mercia Energy ,139176,SY2-,Resources,FM Highway Depots,Electricity,Premises Related,REVENUE
Wiltshire,http://opendatacommunities.org/id/unitary-authority/wiltshire,11/06/2019,1902354580,1547.85,West Mercia Energy ,139176,SY2-,Resources,FM Leisure Centres,Electricity,Premises Related,REVENUE
Wiltshire,http://opendatacommunities.org/id/unitary-authority/wiltshire,11/06/2019,1902354587,808.28,West Mercia Energy ,139176,SY2-,Neighbourhood & Planning,SH Clays Orchard,Electricity,Premises Related,REVENUE
Wiltshire,http://opendatacommunities.org/id/unitary-authority/wiltshire,11/06/2019,1902354588,326.6,West Mercia Energy ,139176,SY2-,Neighbourhood & Planning,SH Clays Orchard,Electricity,Premises Related,REVENUE
Wiltshire,http://opendatacommunities.org/id/unitary-authority/wiltshire,11/06/2019,1902354589,351.06,West Mercia Energy ,139176,SY2-,Neighbourhood & Planning,SH Clays Orchard,Electricity,Premises Related,REVENUE
Wiltshire,http://opendatacommunities.org/id/unitary-authority/wiltshire,11/06/2019,1902354596,616.54,West Mercia Energy ,139176,SY2-,Resources,FM Libraries,Electricity,Premises Related,REVENUE
Wiltshire,http://opendatacommunities.org/id/unitary-authority/wiltshire,11/06/2019,1902354598,465.52,West Mercia Energy ,139176,SY2-,Resources,SAFM - Other Assets,Electricity,Premises Related,REVENUE
Wiltshire,http://opendatacommunities.org/id/unitary-authority/wiltshire,11/06/2019,1902354601,310.72,West Mercia Energy ,139176,SY2-,Resources,FM Libraries,Electricity,Premises Related,REVENUE
Wiltshire,http://opendatacommunities.org/id/unitary-authority/wiltshire,11/06/2019,1902354604,516.58,West Mercia Energy ,139176,SY2-,Neighbourhood & Planning,Off Street Parking,Electricity,Premises Related,REVENUE
Wiltshire,http://opendatacommunities.org/id/unitary-authority/wiltshire,11/06/2019,1902354616,400.33,West Mercia Energy ,139176,SY2-,Resources,SAFM - Other Assets,Electricity,Premises Related,REVENUE
Wiltshire,http://opendatacommunities.org/id/unitary-authority/wiltshire,11/06/2019,1902354621,293.24,West Mercia Energy ,139176,SY2-,Neighbourhood & Planning,SH St. Marks House,Electricity,Premises Related,REVENUE
Wiltshire,http://opendatacommunities.org/id/unitary-authority/wiltshire,11/06/2019,1902354630,1243.64,West Mercia Energy ,139176,SY2-,Neighbourhood & Planning,Off Street Parking,Electricity,Premises Related,REVENUE
Wiltshire,http://opendatacommunities.org/id/unitary-authority/wiltshire,11/06/2019,1902354638,420.45,West Mercia Energy ,139176,SY2-,Resources,SAFM - Other Assets,Electricity,Premises Related,REVENUE
Wiltshire,http://opendatacommunities.org/id/unitary-authority/wiltshire,11/06/2019,1902354639,290.66,West Mercia Energy ,139176,SY2-,Neighbourhood & Planning,Off Street Parking,Electricity,Premises Related,REVENUE
Wiltshire,http://opendatacommunities.org/id/unitary-authority/wiltshire,11/06/2019,1902354646,395.73,West Mercia Energy ,139176,SY2-,Neighbourhood & Planning,SH Lanfear Close,Electricity,Premises Related,REVENUE
Wiltshire,http://opendatacommunities.org/id/unitary-authority/wiltshire,11/06/2019,1902354662,325.61,West Mercia Energy ,139176,SY2-,Neighbourhood & Planning,The Old Fire Sttn EC,Electricity,Premises Related,REVENUE
Wiltshire,http://opendatacommunities.org/id/unitary-authority/wiltshire,11/06/2019,1902354666,1267.51,West Mercia Energy ,139176,SY2-,Neighbourhood & Planning,SH Graham House,Electricity,Premises Related,REVENUE
Wiltshire,http://opendatacommunities.org/id/unitary-authority/wiltshire,11/06/2019,1902354674,410.54,West Mercia Energy ,139176,SY2-,Resources,Investment Estate,Electricity,Premises Related,REVENUE
Wiltshire,http://opendatacommunities.org/id/unitary-authority/wiltshire,11/06/2019,1902354683,332.53,West Mercia Energy ,139176,SY2-,Neighbourhood & Planning,SH Reindorp Lodge,Electricity,Premises Related,REVENUE
Wiltshire,http://opendatacommunities.org/id/unitary-authority/wiltshire,11/06/2019,1902354685,260.12,West Mercia Energy ,139176,SY2-,Resources,SAFM - Other Assets,Electricity,Premises Related,REVENUE
Wiltshire,http://opendatacommunities.org/id/unitary-authority/wiltshire,11/06/2019,1902354690,547.51,West Mercia Energy ,139176,SY2-,Resources,Market Sales,Electricity,Premises Related,REVENUE
Wiltshire,http://opendatacommunities.org/id/unitary-authority/wiltshire,11/06/2019,1902354712,434.52,West Mercia Energy ,139176,SY2-,Neighbourhood & Planning,SH The Orchard,Electricity,Premises Related,REVENUE
Wiltshire,http://opendatacommunities.org/id/unitary-authority/wiltshire,11/06/2019,1902354717,302.28,West Mercia Energy ,139176,SY2-,Resources,SAFM - Other Assets,Electricity,Premises Related,REVENUE
Wiltshire,http://opendatacommunities.org/id/unitary-authority/wiltshire,11/06/2019,1902354720,478.63,West Mercia Energy ,139176,SY2-,Resources,FM Leisure Centres,Electricity,Premises Related,REVENUE
Wiltshire,http://opendatacommunities.org/id/unitary-authority/wiltshire,11/06/2019,1902354721,375.28,West Mercia Energy ,139176,SY2-,Resources,CastledownBusinessPa,Electricity,Premises Related,REVENUE
Wiltshire,http://opendatacommunities.org/id/unitary-authority/wiltshire,11/06/2019,1902354737,289.82,West Mercia Energy ,139176,SY2-,Resources,FM Libraries,Electricity,Premises Related,REVENUE
Wiltshire,http://opendatacommunities.org/id/unitary-authority/wiltshire,11/06/2019,1902354750,251.64,West Mercia Energy ,139176,SY2-,Neighbourhood & Planning,Off Street Parking,Electricity,Premises Related,REVENUE
Wiltshire,http://opendatacommunities.org/id/unitary-authority/wiltshire,11/06/2019,1902354754,676.36,West Mercia Energy ,139176,SY2-,Neighbourhood & Planning,Park & Ride Sites,Electricity,Premises Related,REVENUE
Wiltshire,http://opendatacommunities.org/id/unitary-authority/wiltshire,11/06/2019,1902354769,1110.85,West Mercia Energy ,139176,SY2-,Neighbourhood & Planning,SH Graham House,Electricity,Premises Related,REVENUE
Wiltshire,http://opendatacommunities.org/id/unitary-authority/wiltshire,11/06/2019,1902354773,1407.28,West Mercia Energy ,139176,SY2-,Neighbourhood & Planning,Off Street Parking,Electricity,Premises Related,REVENUE
Wiltshire,http://opendatacommunities.org/id/unitary-authority/wiltshire,11/06/2019,1902354779,470.53,West Mercia Energy ,139176,SY2-,Community Services,CTPLD Placements,Electricity,Premises Related,REVENUE
Wiltshire,http://opendatacommunities.org/id/unitary-authority/wiltshire,11/06/2019,1902354786,290.36,West Mercia Energy ,139176,SY2-,Neighbourhood & Planning,SH The Orchard,Electricity,Premises Related,REVENUE
Wiltshire,http://opendatacommunities.org/id/unitary-authority/wiltshire,11/06/2019,1902354807,498.94,West Mercia Energy ,139176,SY2-,Resources,Cemeteries,Electricity,Premises Related,REVENUE
Wiltshire,http://opendatacommunities.org/id/unitary-authority/wiltshire,11/06/2019,1902354818,630.59,West Mercia Energy ,139176,SY2-,Neighbourhood & Planning,Corsham Mansion Hse,Electricity,Premises Related,REVENUE
Wiltshire,http://opendatacommunities.org/id/unitary-authority/wiltshire,11/06/2019,1902354821,1246.88,West Mercia Energy ,139176,SY2-,Neighbourhood & Planning,Off Street Parking,Electricity,Premises Related,REVENUE
Wiltshire,http://opendatacommunities.org/id/unitary-authority/wiltshire,11/06/2019,1902354823,1597.28,West Mercia Energy ,139176,SY2-,Neighbourhood & Planning,Dairy House Bridge,Electricity,Premises Related,REVENUE
Wiltshire,http://opendatacommunities.org/id/unitary-authority/wiltshire,11/06/2019,1902354826,1120.78,West Mercia Energy ,139176,SY2-,Neighbourhood & Planning,Off Street Parking,Electricity,Premises Related,REVENUE
Wiltshire,http://opendatacommunities.org/id/unitary-authority/wiltshire,11/06/2019,1902354839,432.96,West Mercia Energy ,139176,SY2-,Resources,Special Schools,Gas,Premises Related,REVENUE
Wiltshire,http://opendatacommunities.org/id/unitary-authority/wiltshire,11/06/2019,1902354840,3179.33,West Mercia Energy ,139176,SY2-,Resources,FM Leisure Centres,Gas,Premises Related,REVENUE
Wiltshire,http://opendatacommunities.org/id/unitary-authority/wiltshire,11/06/2019,1902354842,283.92,West Mercia Energy ,139176,SY2-,Resources,SAFM - Other Assets,Gas,Premises Related,REVENUE
Wiltshire,http://opendatacommunities.org/id/unitary-authority/wiltshire,11/06/2019,1902354843,390.73,West Mercia Energy ,139176,SY2-,Resources,SAFM - Other Assets,Gas,Premises Related,REVENUE
Wiltshire,http://opendatacommunities.org/id/unitary-authority/wiltshire,11/06/2019,1902354844,1484.33,West Mercia Energy ,139176,SY2-,Resources,FM Leisure Centres,Gas,Premises Related,REVENUE
Wiltshire,http://opendatacommunities.org/id/unitary-authority/wiltshire,11/06/2019,1902354845,449.78,West Mercia Energy ,139176,SY2-,Resources,FM Leisure Centres,Gas,Premises Related,REVENUE
Wiltshire,http://opendatacommunities.org/id/unitary-authority/wiltshire,11/06/2019,1902354846,813.6,West Mercia Energy ,139176,SY2-,Resources,Market Sales,Gas,Premises Related,REVENUE
Wiltshire,http://opendatacommunities.org/id/unitary-authority/wiltshire,11/06/2019,1902354847,1286.74,West Mercia Energy ,139176,SY2-,Resources,Salisbury City Hall,Gas,Premises Related,REVENUE
Wiltshire,http://opendatacommunities.org/id/unitary-authority/wiltshire,11/06/2019,1902354848,548.75,West Mercia Energy ,139176,SY2-,Resources,FM Leisure Centres,Gas,Premises Related,REVENUE
Wiltshire,http://opendatacommunities.org/id/unitary-authority/wiltshire,11/06/2019,1902354850,679.98,West Mercia Energy ,139176,SY2-,Neighbourhood & Planning,SH Downside,Gas,Premises Related,REVENUE
Wiltshire,http://opendatacommunities.org/id/unitary-authority/wiltshire,11/06/2019,1902354851,470.03,West Mercia Energy ,139176,SY2-,Resources,FM Leisure Centres,Gas,Premises Related,REVENUE
Wiltshire,http://opendatacommunities.org/id/unitary-authority/wiltshire,11/06/2019,1902354852,1922.98,West Mercia Energy ,139176,SY2-,Resources,FM Leisure Centres,Gas,Premises Related,REVENUE
Wiltshire,http://opendatacommunities.org/id/unitary-authority/wiltshire,11/06/2019,1902354853,344.52,West Mercia Energy ,139176,SY2-,Resources,FM Libraries,Gas,Premises Related,REVENUE
Wiltshire,http://opendatacommunities.org/id/unitary-authority/wiltshire,11/06/2019,1902354854,2090.92,West Mercia Energy ,139176,SY2-,Resources,County Hall Complex,Gas,Premises Related,REVENUE
Wiltshire,http://opendatacommunities.org/id/unitary-authority/wiltshire,11/06/2019,1902354855,6066.82,West Mercia Energy ,139176,SY2-,Resources,FM Leisure Centres,Gas,Premises Related,REVENUE
Wiltshire,http://opendatacommunities.org/id/unitary-authority/wiltshire,11/06/2019,1902354860,321.69,West Mercia Energy ,139176,SY2-,Resources,FM Libraries,Gas,Premises Related,REVENUE
Wiltshire,http://opendatacommunities.org/id/unitary-authority/wiltshire,11/06/2019,1902354861,475.18,West Mercia Energy ,139176,SY2-,Resources,FM Libraries,Gas,Premises Related,REVENUE
Wiltshire,http://opendatacommunities.org/id/unitary-authority/wiltshire,11/06/2019,1902354863,1204.29,West Mercia Energy ,139176,SY2-,Resources,Monkton Park,Gas,Premises Related,REVENUE
Wiltshire,http://opendatacommunities.org/id/unitary-authority/wiltshire,11/06/2019,1902354864,2544.27,West Mercia Energy ,139176,SY2-,Resources,FM Leisure Centres,Gas,Premises Related,REVENUE
Wiltshire,http://opendatacommunities.org/id/unitary-authority/wiltshire,11/06/2019,1902354865,2915.58,West Mercia Energy ,139176,SY2-,Resources,FM Leisure Centres,Gas,Premises Related,REVENUE
Wiltshire,http://opendatacommunities.org/id/unitary-authority/wiltshire,11/06/2019,1902354866,407.45,West Mercia Energy ,139176,SY2-,Resources,SAFM - Other Assets,Gas,Premises Related,REVENUE
Wiltshire,http://opendatacommunities.org/id/unitary-authority/wiltshire,11/06/2019,1902354867,267.06,West Mercia Energy ,139176,SY2-,Resources,SAFM - Other Assets,Gas,Premises Related,REVENUE
Wiltshire,http://opendatacommunities.org/id/unitary-authority/wiltshire,11/06/2019,1902354868,1192.23,West Mercia Energy ,139176,SY2-,Resources,Bourne Hill,Gas,Premises Related,REVENUE
Wiltshire,http://opendatacommunities.org/id/unitary-authority/wiltshire,11/06/2019,1902354869,2354.06,West Mercia Energy ,139176,SY2-,Resources,Corsham Campus,Gas,Premises Related,REVENUE
Wiltshire,http://opendatacommunities.org/id/unitary-authority/wiltshire,11/06/2019,1902354897,749.73,West Mercia Energy ,139176,SY2-,Neighbourhood & Planning,SH Reindorp Lodge,Gas,Premises Related,REVENUE
Wiltshire,http://opendatacommunities.org/id/unitary-authority/wiltshire,11/06/2019,1902354899,408.51,West Mercia Energy ,139176,SY2-,Resources,SAFM - Other Assets,Gas,Premises Related,REVENUE
Wiltshire,http://opendatacommunities.org/id/unitary-authority/wiltshire,11/06/2019,1902354900,523.01,West Mercia Energy ,139176,SY2-,Resources,SAFM - Other Assets,Gas,Premises Related,REVENUE
Wiltshire,http://opendatacommunities.org/id/unitary-authority/wiltshire,11/06/2019,1902354901,826.63,West Mercia Energy ,139176,SY2-,Resources,FM Libraries,Gas,Premises Related,REVENUE
Wiltshire,http://opendatacommunities.org/id/unitary-authority/wiltshire,11/06/2019,1902354904,1051.08,West Mercia Energy ,139176,SY2-,Community Services,HRA Neighbourhood Te,Gas,Premises Related,REVENUE
Wiltshire,http://opendatacommunities.org/id/unitary-authority/wiltshire,11/06/2019,1902354906,6721.91,West Mercia Energy ,139176,SY2-,Resources,5 Rivers LC,Gas,Premises Related,REVENUE
Wiltshire,http://opendatacommunities.org/id/unitary-authority/wiltshire,11/06/2019,1902354907,2183.05,West Mercia Energy ,139176,SY2-,Resources,FM Leisure Centres,Gas,Premises Related,REVENUE
Wiltshire,http://opendatacommunities.org/id/unitary-authority/wiltshire,11/06/2019,1902354908,619.58,West Mercia Energy ,139176,SY2-,Neighbourhood & Planning,SH Addison Square,Gas,Premises Related,REVENUE
Wiltshire,http://opendatacommunities.org/id/unitary-authority/wiltshire,11/06/2019,1902354910,2739.26,West Mercia Energy ,139176,SY2-,Resources,FM Leisure Centres,Gas,Premises Related,REVENUE
Wiltshire,http://opendatacommunities.org/id/unitary-authority/wiltshire,11/06/2019,1902354911,640.43,West Mercia Energy ,139176,SY2-,Resources,FM Libraries,Gas,Premises Related,REVENUE
Wiltshire,http://opendatacommunities.org/id/unitary-authority/wiltshire,11/06/2019,1902354913,289.02,West Mercia Energy ,139176,SY2-,Resources,FM Libraries,Gas,Premises Related,REVENUE
Wiltshire,http://opendatacommunities.org/id/unitary-authority/wiltshire,11/06/2019,1902354920,1419.66,West Mercia Energy ,139176,SY2-,Neighbourhood & Planning,Evergreen Court,Gas,Premises Related,REVENUE
Wiltshire,http://opendatacommunities.org/id/unitary-authority/wiltshire,11/06/2019,1902354921,396.09,West Mercia Energy ,139176,SY2-,Neighbourhood & Planning,SH Westwood House,Gas,Premises Related,REVENUE
Wiltshire,http://opendatacommunities.org/id/unitary-authority/wiltshire,11/06/2019,1902354922,2639.04,West Mercia Energy ,139176,SY2-,Resources,FM Leisure Centres,Gas,Premises Related,REVENUE
Wiltshire,http://opendatacommunities.org/id/unitary-authority/wiltshire,11/06/2019,1902354923,3311.06,West Mercia Energy ,139176,SY2-,Resources,FM Leisure Centres,Gas,Premises Related,REVENUE
Wiltshire,http://opendatacommunities.org/id/unitary-authority/wiltshire,26/06/2019,1902363085,414.99,West Mercia Energy ,139176,SY2-,Neighbourhood & Planning,SH Downside,Electricity,Premises Related,REVENUE
Wiltshire,http://opendatacommunities.org/id/unitary-authority/wiltshire,26/06/2019,1902363087,251.72,West Mercia Energy ,139176,SY2-,Neighbourhood & Planning,SH Downside,Electricity,Premises Related,REVENUE
Wiltshire,http://opendatacommunities.org/id/unitary-authority/wiltshire,26/06/2019,1902363089,1653.25,West Mercia Energy ,139176,SY2-,Neighbourhood & Planning,SH Downside,Electricity,Premises Related,REVENUE
Wiltshire,http://opendatacommunities.org/id/unitary-authority/wiltshire,26/06/2019,1902363091,204380.72,West Mercia Energy ,139176,SY2-,Neighbourhood & Planning,Street Lighting,Electricity,Premises Related,REVENUE
Wiltshire,http://opendatacommunities.org/id/unitary-authority/wiltshire,26/06/2019,1902363092,199246.97,West Mercia Energy ,139176,SY2-,Neighbourhood & Planning,Street Lighting,Electricity,Premises Related,REVENUE
Wiltshire,http://opendatacommunities.org/id/unitary-authority/wiltshire,26/06/2019,1902363093,158929.74,West Mercia Energy ,139176,SY2-,Neighbourhood & Planning,Street Lighting,Electricity,Premises Related,REVENUE
Wiltshire,http://opendatacommunities.org/id/unitary-authority/wiltshire,26/06/2019,1902363094,150110.38,West Mercia Energy ,139176,SY2-,Neighbourhood & Planning,Street Lighting,Electricity,Premises Related,REVENUE
Wiltshire,http://opendatacommunities.org/id/unitary-authority/wiltshire,26/06/2019,1902363095,95176.09,West Mercia Energy ,139176,SY2-,Neighbourhood & Planning,Street Lighting,Electricity,Premises Related,REVENUE
Wiltshire,http://opendatacommunities.org/id/unitary-authority/wiltshire,26/06/2019,1902363096,168375.17,West Mercia Energy ,139176,SY2-,Neighbourhood & Planning,Street Lighting,Electricity,Premises Related,REVENUE
Wiltshire,http://opendatacommunities.org/id/unitary-authority/wiltshire,26/06/2019,1902363097,107615.37,West Mercia Energy ,139176,SY2-,Neighbourhood & Planning,Street Lighting,Electricity,Premises Related,REVENUE
Wiltshire,http://opendatacommunities.org/id/unitary-authority/wiltshire,26/06/2019,1902363098,90118.94,West Mercia Energy ,139176,SY2-,Neighbourhood & Planning,Street Lighting,Electricity,Premises Related,REVENUE
Wiltshire,http://opendatacommunities.org/id/unitary-authority/wiltshire,26/06/2019,1902363099,110075.27,West Mercia Energy ,139176,SY2-,Neighbourhood & Planning,Street Lighting,Electricity,Premises Related,REVENUE
Wiltshire,http://opendatacommunities.org/id/unitary-authority/wiltshire,26/06/2019,1902363100,133907.05,West Mercia Energy ,139176,SY2-,Neighbourhood & Planning,Street Lighting,Electricity,Premises Related,REVENUE
Wiltshire,http://opendatacommunities.org/id/unitary-authority/wiltshire,26/06/2019,1902363101,166802.74,West Mercia Energy ,139176,SY2-,Neighbourhood & Planning,Street Lighting,Electricity,Premises Related,REVENUE
Wiltshire,http://opendatacommunities.org/id/unitary-authority/wiltshire,26/06/2019,1902363102,185100.76,West Mercia Energy ,139176,SY2-,Neighbourhood & Planning,Street Lighting,Electricity,Premises Related,REVENUE
Wiltshire,http://opendatacommunities.org/id/unitary-authority/wiltshire,26/06/2019,1902363103,72125.87,West Mercia Energy ,139176,SY2-,Neighbourhood & Planning,Street Lighting,Electricity,Premises Related,REVENUE
Wiltshire,http://opendatacommunities.org/id/unitary-authority/wiltshire,26/06/2019,1902363117,3047.42,West Mercia Energy ,139176,SY2-,Resources,FM Leisure Centres,Gas,Premises Related,REVENUE
Wiltshire,http://opendatacommunities.org/id/unitary-authority/wiltshire,26/06/2019,1902363120,6667.44,West Mercia Energy ,139176,SY2-,Resources,5 Rivers LC,Gas,Premises Related,REVENUE
Wiltshire,http://opendatacommunities.org/id/unitary-authority/wiltshire,26/06/2019,1902363121,341.57,West Mercia Energy ,139176,SY2-,Resources,Special Schools,Gas,Premises Related,REVENUE
Wiltshire,http://opendatacommunities.org/id/unitary-authority/wiltshire,26/06/2019,1902363123,2794.16,West Mercia Energy ,139176,SY2-,Resources,FM Leisure Centres,Gas,Premises Related,REVENUE
Wiltshire,http://opendatacommunities.org/id/unitary-authority/wiltshire,26/06/2019,1902363124,716.41,West Mercia Energy ,139176,SY2-,Resources,Market Sales,Gas,Premises Related,REVENUE
Wiltshire,http://opendatacommunities.org/id/unitary-authority/wiltshire,26/06/2019,1902363125,1064.03,West Mercia Energy ,139176,SY2-,Resources,Salisbury City Hall,Gas,Premises Related,REVENUE
Wiltshire,http://opendatacommunities.org/id/unitary-authority/wiltshire,26/06/2019,1902363126,450.64,West Mercia Energy ,139176,SY2-,Resources,FM Leisure Centres,Gas,Premises Related,REVENUE
Wiltshire,http://opendatacommunities.org/id/unitary-authority/wiltshire,26/06/2019,1902363128,581.1,West Mercia Energy ,139176,SY2-,Neighbourhood & Planning,SH Downside,Gas,Premises Related,REVENUE
Wiltshire,http://opendatacommunities.org/id/unitary-authority/wiltshire,26/06/2019,1902363129,1737.04,West Mercia Energy ,139176,SY2-,Resources,FM Leisure Centres,Gas,Premises Related,REVENUE
Wiltshire,http://opendatacommunities.org/id/unitary-authority/wiltshire,26/06/2019,1902363131,1707.3,West Mercia Energy ,139176,SY2-,Resources,County Hall Complex,Gas,Premises Related,REVENUE
Wiltshire,http://opendatacommunities.org/id/unitary-authority/wiltshire,26/06/2019,1902363132,5280.38,West Mercia Energy ,139176,SY2-,Resources,FM Leisure Centres,Gas,Premises Related,REVENUE
Wiltshire,http://opendatacommunities.org/id/unitary-authority/wiltshire,26/06/2019,1902363136,3064.28,West Mercia Energy ,139176,SY2-,Resources,FM Leisure Centres,Gas,Premises Related,REVENUE
Wiltshire,http://opendatacommunities.org/id/unitary-authority/wiltshire,26/06/2019,1902363138,334.06,West Mercia Energy ,139176,SY2-,Resources,FM Libraries,Gas,Premises Related,REVENUE
Wiltshire,http://opendatacommunities.org/id/unitary-authority/wiltshire,26/06/2019,1902363139,2613.41,West Mercia Energy ,139176,SY2-,Resources,FM Leisure Centres,Gas,Premises Related,REVENUE
Wiltshire,http://opendatacommunities.org/id/unitary-authority/wiltshire,26/06/2019,1902363140,325.04,West Mercia Energy ,139176,SY2-,Resources,SAFM - Other Assets,Gas,Premises Related,REVENUE
Wiltshire,http://opendatacommunities.org/id/unitary-authority/wiltshire,26/06/2019,1902363142,926.49,West Mercia Energy ,139176,SY2-,Resources,Bourne Hill,Gas,Premises Related,REVENUE
Wiltshire,http://opendatacommunities.org/id/unitary-authority/wiltshire,26/06/2019,1902363162,641.61,West Mercia Energy ,139176,SY2-,Neighbourhood & Planning,SH Reindorp Lodge,Gas,Premises Related,REVENUE
Wiltshire,http://opendatacommunities.org/id/unitary-authority/wiltshire,26/06/2019,1902363163,341.97,West Mercia Energy ,139176,SY2-,Resources,SAFM - Other Assets,Gas,Premises Related,REVENUE
Wiltshire,http://opendatacommunities.org/id/unitary-authority/wiltshire,26/06/2019,1902363164,403.2,West Mercia Energy ,139176,SY2-,Resources,SAFM - Other Assets,Gas,Premises Related,REVENUE
Wiltshire,http://opendatacommunities.org/id/unitary-authority/wiltshire,26/06/2019,1902363165,739.51,West Mercia Energy ,139176,SY2-,Resources,Monkton Park,Gas,Premises Related,REVENUE
Wiltshire,http://opendatacommunities.org/id/unitary-authority/wiltshire,26/06/2019,1902363166,2436.63,West Mercia Energy ,139176,SY2-,Resources,FM Leisure Centres,Gas,Premises Related,REVENUE
Wiltshire,http://opendatacommunities.org/id/unitary-authority/wiltshire,26/06/2019,1902363173,907.28,West Mercia Energy ,139176,SY2-,Community Services,HRA Neighbourhood Te,Gas,Premises Related,REVENUE
Wiltshire,http://opendatacommunities.org/id/unitary-authority/wiltshire,26/06/2019,1902363175,2098.26,West Mercia Energy ,139176,SY2-,Resources,FM Leisure Centres,Gas,Premises Related,REVENUE
Wiltshire,http://opendatacommunities.org/id/unitary-authority/wiltshire,26/06/2019,1902363176,255.12,West Mercia Energy ,139176,SY2-,Resources,SAFM - Other Assets,Gas,Premises Related,REVENUE
Wiltshire,http://opendatacommunities.org/id/unitary-authority/wiltshire,26/06/2019,1902363178,1234.88,West Mercia Energy ,139176,SY2-,Resources,FM Leisure Centres,Gas,Premises Related,REVENUE
Wiltshire,http://opendatacommunities.org/id/unitary-authority/wiltshire,26/06/2019,1902363179,320.66,West Mercia Energy ,139176,SY2-,Resources,FM Leisure Centres,Gas,Premises Related,REVENUE
Wiltshire,http://opendatacommunities.org/id/unitary-authority/wiltshire,26/06/2019,1902363183,2126.19,West Mercia Energy ,139176,SY2-,Resources,FM Leisure Centres,Gas,Premises Related,REVENUE
Wiltshire,http://opendatacommunities.org/id/unitary-authority/wiltshire,26/06/2019,1902363184,498.78,West Mercia Energy ,139176,SY2-,Resources,FM Libraries,Gas,Premises Related,REVENUE
Wiltshire,http://opendatacommunities.org/id/unitary-authority/wiltshire,26/06/2019,1902363185,360.13,West Mercia Energy ,139176,SY2-,Resources,FM Libraries,Gas,Premises Related,REVENUE
Wiltshire,http://opendatacommunities.org/id/unitary-authority/wiltshire,26/06/2019,1902363186,1127.34,West Mercia Energy ,139176,SY2-,Resources,Corsham Campus,Gas,Premises Related,REVENUE
Wiltshire,http://opendatacommunities.org/id/unitary-authority/wiltshire,26/06/2019,1902363200,686.26,West Mercia Energy ,139176,SY2-,Neighbourhood & Planning,Asset Management,Gas,Premises Related,REVENUE
Wiltshire,http://opendatacommunities.org/id/unitary-authority/wiltshire,26/06/2019,1902363201,2063.42,West Mercia Energy ,139176,SY2-,Resources,FM Leisure Centres,Gas,Premises Related,REVENUE
Wiltshire,http://opendatacommunities.org/id/unitary-authority/wiltshire,26/06/2019,1902363202,442.6,West Mercia Energy ,139176,SY2-,Neighbourhood & Planning,Street Lighting,Electricity,Premises Related,REVENUE
Wiltshire,http://opendatacommunities.org/id/unitary-authority/wiltshire,26/06/2019,1902363204,606.71,West Mercia Energy ,139176,SY2-,Neighbourhood & Planning,Communal Areas,Electricity,Premises Related,REVENUE
Wiltshire,http://opendatacommunities.org/id/unitary-authority/wiltshire,26/06/2019,1902363206,3530.09,West Mercia Energy ,139176,SY2-,Neighbourhood & Planning,Street Lighting,Electricity,Premises Related,REVENUE
Wiltshire,http://opendatacommunities.org/id/unitary-authority/wiltshire,26/06/2019,1902363207,403.95,West Mercia Energy ,139176,SY2-,Neighbourhood & Planning,Street Lighting,Electricity,Premises Related,REVENUE
Wiltshire,http://opendatacommunities.org/id/unitary-authority/wiltshire,26/06/2019,1902363208,2027,West Mercia Energy ,139176,SY2-,Neighbourhood & Planning,Communal Areas,Electricity,Premises Related,REVENUE
Wiltshire,http://opendatacommunities.org/id/unitary-authority/wiltshire,26/06/2019,1902363209,1905.44,West Mercia Energy ,139176,SY2-,Neighbourhood & Planning,Communal Areas,Electricity,Premises Related,REVENUE
Wiltshire,http://opendatacommunities.org/id/unitary-authority/wiltshire,26/06/2019,1902363219,279.25,West Mercia Energy ,139176,SY2-,Resources,FM Libraries,Electricity,Premises Related,REVENUE
Wiltshire,http://opendatacommunities.org/id/unitary-authority/wiltshire,26/06/2019,1902363222,549.69,West Mercia Energy ,139176,SY2-,Resources,SAFM - Other Assets,Electricity,Premises Related,REVENUE
Wiltshire,http://opendatacommunities.org/id/unitary-authority/wiltshire,26/06/2019,1902363223,455.88,West Mercia Energy ,139176,SY2-,Resources,FM Libraries,Electricity,Premises Related,REVENUE
Wiltshire,http://opendatacommunities.org/id/unitary-authority/wiltshire,26/06/2019,1902363232,333.89,West Mercia Energy ,139176,SY2-,Resources,FM Highway Depots,Electricity,Premises Related,REVENUE
Wiltshire,http://opendatacommunities.org/id/unitary-authority/wiltshire,26/06/2019,1902363233,684.89,West Mercia Energy ,139176,SY2-,Resources,FM Leisure Centres,Electricity,Premises Related,REVENUE
Wiltshire,http://opendatacommunities.org/id/unitary-authority/wiltshire,26/06/2019,1902363234,382.75,West Mercia Energy ,139176,SY2-,Resources,FM Highway Depots,Electricity,Premises Related,REVENUE
Wiltshire,http://opendatacommunities.org/id/unitary-authority/wiltshire,26/06/2019,1902363244,381.43,West Mercia Energy ,139176,SY2-,Resources,FM Libraries,Electricity,Premises Related,REVENUE
Wiltshire,http://opendatacommunities.org/id/unitary-authority/wiltshire,26/06/2019,1902363245,541.88,West Mercia Energy ,139176,SY2-,Resources,SAFM - Other Assets,Electricity,Premises Related,REVENUE
Wiltshire,http://opendatacommunities.org/id/unitary-authority/wiltshire,26/06/2019,1902363250,291.43,West Mercia Energy ,139176,SY2-,Resources,FM Libraries,Electricity,Premises Related,REVENUE
Wiltshire,http://opendatacommunities.org/id/unitary-authority/wiltshire,26/06/2019,1902363265,285.05,West Mercia Energy ,139176,SY2-,Neighbourhood & Planning,Park & Ride Sites,Electricity,Premises Related,REVENUE
Wiltshire,http://opendatacommunities.org/id/unitary-authority/wiltshire,26/06/2019,1902363267,556.04,West Mercia Energy ,139176,SY2-,Resources,FM Libraries,Electricity,Premises Related,REVENUE
Wiltshire,http://opendatacommunities.org/id/unitary-authority/wiltshire,26/06/2019,1902363268,361.4,West Mercia Energy ,139176,SY2-,Resources,FM Highway Depots,Electricity,Premises Related,REVENUE
Wiltshire,http://opendatacommunities.org/id/unitary-authority/wiltshire,26/06/2019,1902363270,379.58,West Mercia Energy ,139176,SY2-,Resources,SAFM - Other Assets,Electricity,Premises Related,REVENUE
Wiltshire,http://opendatacommunities.org/id/unitary-authority/wiltshire,26/06/2019,1902363271,672.19,West Mercia Energy ,139176,SY2-,Resources,FM Highway Depots,Electricity,Premises Related,REVENUE
Wiltshire,http://opendatacommunities.org/id/unitary-authority/wiltshire,26/06/2019,1902363272,352.97,West Mercia Energy ,139176,SY2-,Resources,FM Highway Depots,Electricity,Premises Related,REVENUE
Wiltshire,http://opendatacommunities.org/id/unitary-authority/wiltshire,26/06/2019,1902363275,1597.77,West Mercia Energy ,139176,SY2-,Resources,FM Leisure Centres,Electricity,Premises Related,REVENUE
Wiltshire,http://opendatacommunities.org/id/unitary-authority/wiltshire,26/06/2019,1902363284,400.23,West Mercia Energy ,139176,SY2-,Resources,SAFM - Other Assets,Electricity,Premises Related,REVENUE
Wiltshire,http://opendatacommunities.org/id/unitary-authority/wiltshire,26/06/2019,1902363287,311.19,West Mercia Energy ,139176,SY2-,Resources,FM Libraries,Electricity,Premises Related,REVENUE
Wiltshire,http://opendatacommunities.org/id/unitary-authority/wiltshire,26/06/2019,1902363290,445.06,West Mercia Energy ,139176,SY2-,Neighbourhood & Planning,Off Street Parking,Electricity,Premises Related,REVENUE
Wiltshire,http://opendatacommunities.org/id/unitary-authority/wiltshire,26/06/2019,1902363295,1207.06,West Mercia Energy ,139176,SY2-,Neighbourhood & Planning,Off Street Parking,Electricity,Premises Related,REVENUE
Wiltshire,http://opendatacommunities.org/id/unitary-authority/wiltshire,26/06/2019,1902363303,530.03,West Mercia Energy ,139176,SY2-,Resources,SAFM - Other Assets,Electricity,Premises Related,REVENUE
Wiltshire,http://opendatacommunities.org/id/unitary-authority/wiltshire,26/06/2019,1902363305,1284.42,West Mercia Energy ,139176,SY2-,Neighbourhood & Planning,Off Street Parking,Electricity,Premises Related,REVENUE
Wiltshire,http://opendatacommunities.org/id/unitary-authority/wiltshire,26/06/2019,1902363318,1238.95,West Mercia Energy ,139176,SY2-,Neighbourhood & Planning,Off Street Parking,Electricity,Premises Related,REVENUE
Wiltshire,http://opendatacommunities.org/id/unitary-authority/wiltshire,26/06/2019,1902363326,459.51,West Mercia Energy ,139176,SY2-,Resources,SAFM - Other Assets,Electricity,Premises Related,REVENUE
Wiltshire,http://opendatacommunities.org/id/unitary-authority/wiltshire,26/06/2019,1902363327,292.28,West Mercia Energy ,139176,SY2-,Neighbourhood & Planning,Off Street Parking,Electricity,Premises Related,REVENUE
Wiltshire,http://opendatacommunities.org/id/unitary-authority/wiltshire,26/06/2019,1902363334,573.6,West Mercia Energy ,139176,SY2-,Neighbourhood & Planning,SH Clays Orchard,Electricity,Premises Related,REVENUE
Wiltshire,http://opendatacommunities.org/id/unitary-authority/wiltshire,26/06/2019,1902363336,302.66,West Mercia Energy ,139176,SY2-,Neighbourhood & Planning,SH Clays Orchard,Electricity,Premises Related,REVENUE
Wiltshire,http://opendatacommunities.org/id/unitary-authority/wiltshire,26/06/2019,1902363343,299.22,West Mercia Energy ,139176,SY2-,Neighbourhood & Planning,Off Street Parking,Electricity,Premises Related,REVENUE
Wiltshire,http://opendatacommunities.org/id/unitary-authority/wiltshire,26/06/2019,1902363357,324.93,West Mercia Energy ,139176,SY2-,Neighbourhood & Planning,The Old Fire Sttn EC,Electricity,Premises Related,REVENUE
Wiltshire,http://opendatacommunities.org/id/unitary-authority/wiltshire,26/06/2019,1902363361,1086.17,West Mercia Energy ,139176,SY2-,Neighbourhood & Planning,SH Graham House,Electricity,Premises Related,REVENUE
Wiltshire,http://opendatacommunities.org/id/unitary-authority/wiltshire,26/06/2019,1902363369,586.63,West Mercia Energy ,139176,SY2-,Resources,Investment Estate,Electricity,Premises Related,REVENUE
Wiltshire,http://opendatacommunities.org/id/unitary-authority/wiltshire,26/06/2019,1902363376,331.95,West Mercia Energy ,139176,SY2-,Neighbourhood & Planning,SH Reindorp Lodge,Electricity,Premises Related,REVENUE
Wiltshire,http://opendatacommunities.org/id/unitary-authority/wiltshire,26/06/2019,1902363377,261.33,West Mercia Energy ,139176,SY2-,Resources,SAFM - Other Assets,Electricity,Premises Related,REVENUE
Wiltshire,http://opendatacommunities.org/id/unitary-authority/wiltshire,26/06/2019,1902363382,453.87,West Mercia Energy ,139176,SY2-,Resources,Market Sales,Electricity,Premises Related,REVENUE
Wiltshire,http://opendatacommunities.org/id/unitary-authority/wiltshire,26/06/2019,1902363400,312.89,West Mercia Energy ,139176,SY2-,Neighbourhood & Planning,SH The Orchard,Electricity,Premises Related,REVENUE
Wiltshire,http://opendatacommunities.org/id/unitary-authority/wiltshire,26/06/2019,1902363401,438.04,West Mercia Energy ,139176,SY2-,Resources,SAFM - Other Assets,Electricity,Premises Related,REVENUE
Wiltshire,http://opendatacommunities.org/id/unitary-authority/wiltshire,26/06/2019,1902363407,344.52,West Mercia Energy ,139176,SY2-,Resources,CastledownBusinessPa,Electricity,Premises Related,REVENUE
Wiltshire,http://opendatacommunities.org/id/unitary-authority/wiltshire,26/06/2019,1902363423,250.2,West Mercia Energy ,139176,SY2-,Resources,FM Libraries,Electricity,Premises Related,REVENUE
Wiltshire,http://opendatacommunities.org/id/unitary-authority/wiltshire,26/06/2019,1902363439,298.2,West Mercia Energy ,139176,SY2-,Neighbourhood & Planning,Off Street Parking,Electricity,Premises Related,REVENUE
Wiltshire,http://opendatacommunities.org/id/unitary-authority/wiltshire,26/06/2019,1902363459,938.15,West Mercia Energy ,139176,SY2-,Neighbourhood & Planning,SH Graham House,Electricity,Premises Related,REVENUE
Wiltshire,http://opendatacommunities.org/id/unitary-authority/wiltshire,26/06/2019,1902363463,1406.89,West Mercia Energy ,139176,SY2-,Neighbourhood & Planning,Off Street Parking,Electricity,Premises Related,REVENUE
Wiltshire,http://opendatacommunities.org/id/unitary-authority/wiltshire,26/06/2019,1902363478,598.47,West Mercia Energy ,139176,SY2-,Neighbourhood & Planning,SH Downside,Electricity,Premises Related,REVENUE
Wiltshire,http://opendatacommunities.org/id/unitary-authority/wiltshire,26/06/2019,1902363490,515.89,West Mercia Energy ,139176,SY2-,Resources,Cemeteries,Electricity,Premises Related,REVENUE
Wiltshire,http://opendatacommunities.org/id/unitary-authority/wiltshire,26/06/2019,1902363503,1548.55,West Mercia Energy ,139176,SY2-,Neighbourhood & Planning,Dairy House Bridge,Electricity,Premises Related,REVENUE
Wiltshire,http://opendatacommunities.org/id/unitary-authority/wiltshire,26/06/2019,1902363527,2037.51,West Mercia Energy ,139176,SY2-,Resources,FM Leisure Centres,Electricity,Premises Related,REVENUE
Wiltshire,http://opendatacommunities.org/id/unitary-authority/wiltshire,26/06/2019,1902363531,442.5,West Mercia Energy ,139176,SY2-,Neighbourhood & Planning,Park & Ride Sites,Electricity,Premises Related,REVENUE
Wiltshire,http://opendatacommunities.org/id/unitary-authority/wiltshire,26/06/2019,1902363532,277.09,West Mercia Energy ,139176,SY2-,Neighbourhood & Planning,Kingsbury Hostel,Electricity,Premises Related,REVENUE
Wiltshire,http://opendatacommunities.org/id/unitary-authority/wiltshire,26/06/2019,1902363541,498.81,West Mercia Energy ,139176,SY2-,Neighbourhood & Planning,Wilts Incubation Env,Electricity,Premises Related,REVENUE
Wiltshire,http://opendatacommunities.org/id/unitary-authority/wiltshire,26/06/2019,1902363545,2958.25,West Mercia Energy ,139176,SY2-,Resources,FM Leisure Centres,Electricity,Premises Related,REVENUE
Wiltshire,http://opendatacommunities.org/id/unitary-authority/wiltshire,26/06/2019,1902363546,2896.39,West Mercia Energy ,139176,SY2-,Neighbourhood & Planning,Oak Tree Field G&T,Electricity,Premises Related,REVENUE
Wiltshire,http://opendatacommunities.org/id/unitary-authority/wiltshire,26/06/2019,1902363547,2094.51,West Mercia Energy ,139176,SY2-,Resources,FM Libraries,Electricity,Premises Related,REVENUE
Wiltshire,http://opendatacommunities.org/id/unitary-authority/wiltshire,26/06/2019,1902363548,1009.11,West Mercia Energy ,139176,SY2-,Neighbourhood & Planning,Wilts Incubation Env,Electricity,Premises Related,REVENUE
Wiltshire,http://opendatacommunities.org/id/unitary-authority/wiltshire,26/06/2019,1902363549,3806.46,West Mercia Energy ,139176,SY2-,Resources,Pewsey Campus,Electricity,Premises Related,REVENUE
Wiltshire,http://opendatacommunities.org/id/unitary-authority/wiltshire,26/06/2019,1902363550,547.18,West Mercia Energy ,139176,SY2-,Resources,FM Highway Depots,Electricity,Premises Related,REVENUE
Wiltshire,http://opendatacommunities.org/id/unitary-authority/wiltshire,26/06/2019,1902363551,2500.16,West Mercia Energy ,139176,SY2-,Resources,FM Leisure Centres,Electricity,Premises Related,REVENUE
Wiltshire,http://opendatacommunities.org/id/unitary-authority/wiltshire,26/06/2019,1902363552,580.05,West Mercia Energy ,139176,SY2-,Resources,FM Libraries,Electricity,Premises Related,REVENUE
Wiltshire,http://opendatacommunities.org/id/unitary-authority/wiltshire,26/06/2019,1902363553,2206.32,West Mercia Energy ,139176,SY2-,Resources,FM Leisure Centres,Electricity,Premises Related,REVENUE
Wiltshire,http://opendatacommunities.org/id/unitary-authority/wiltshire,26/06/2019,1902363554,1520.72,West Mercia Energy ,139176,SY2-,Resources,FM Leisure Centres,Electricity,Premises Related,REVENUE
Wiltshire,http://opendatacommunities.org/id/unitary-authority/wiltshire,26/06/2019,1902363555,352.94,West Mercia Energy ,139176,SY2-,Resources,FM Leisure Centres,Electricity,Premises Related,REVENUE
Wiltshire,http://opendatacommunities.org/id/unitary-authority/wiltshire,26/06/2019,1902363556,366.69,West Mercia Energy ,139176,SY2-,Resources,FM Highway Depots,Electricity,Premises Related,REVENUE
Wiltshire,http://opendatacommunities.org/id/unitary-authority/wiltshire,26/06/2019,1902363557,433.84,West Mercia Energy ,139176,SY2-,Resources,FM Highway Depots,Electricity,Premises Related,REVENUE
Wiltshire,http://opendatacommunities.org/id/unitary-authority/wiltshire,26/06/2019,1902363559,376.83,West Mercia Energy ,139176,SY2-,Resources,SAFM - Other Assets,Electricity,Premises Related,REVENUE
Wiltshire,http://opendatacommunities.org/id/unitary-authority/wiltshire,26/06/2019,1902363560,2282.27,West Mercia Energy ,139176,SY2-,Neighbourhood & Planning,SH Horsehill Place,Electricity,Premises Related,REVENUE
Wiltshire,http://opendatacommunities.org/id/unitary-authority/wiltshire,26/06/2019,1902363561,4253.05,West Mercia Energy ,139176,SY2-,Resources,FM Leisure Centres,Electricity,Premises Related,REVENUE
Wiltshire,http://opendatacommunities.org/id/unitary-authority/wiltshire,26/06/2019,1902363562,496.04,West Mercia Energy ,139176,SY2-,Neighbourhood & Planning,SH Lynch Close,Electricity,Premises Related,REVENUE
Wiltshire,http://opendatacommunities.org/id/unitary-authority/wiltshire,26/06/2019,1902363563,1452.24,West Mercia Energy ,139176,SY2-,Neighbourhood & Planning,SH Lanfear Close,Electricity,Premises Related,REVENUE
Wiltshire,http://opendatacommunities.org/id/unitary-authority/wiltshire,26/06/2019,1902363564,400.8,West Mercia Energy ,139176,SY2-,Neighbourhood & Planning,White Horse Enterpri,Electricity,Premises Related,REVENUE
Wiltshire,http://opendatacommunities.org/id/unitary-authority/wiltshire,26/06/2019,1902363565,1543.83,West Mercia Energy ,139176,SY2-,Resources,FM Highway Depots,Electricity,Premises Related,REVENUE
Wiltshire,http://opendatacommunities.org/id/unitary-authority/wiltshire,26/06/2019,1902363566,2644.82,West Mercia Energy ,139176,SY2-,Resources,Salisbury City Hall,Electricity,Premises Related,REVENUE
Wiltshire,http://opendatacommunities.org/id/unitary-authority/wiltshire,26/06/2019,1902363567,5887.69,West Mercia Energy ,139176,SY2-,Resources,FM Libraries,Electricity,Premises Related,REVENUE
Wiltshire,http://opendatacommunities.org/id/unitary-authority/wiltshire,26/06/2019,1902363568,8248.38,West Mercia Energy ,139176,SY2-,Resources,Corsham Campus,Electricity,Premises Related,REVENUE
Wiltshire,http://opendatacommunities.org/id/unitary-authority/wiltshire,26/06/2019,1902363569,28373.54,West Mercia Energy ,139176,SY2-,Resources,County Hall Complex,Electricity,Premises Related,REVENUE
Wiltshire,http://opendatacommunities.org/id/unitary-authority/wiltshire,26/06/2019,1902363570,470.01,West Mercia Energy ,139176,SY2-,Resources,Market Sales,Electricity,Premises Related,REVENUE
Wiltshire,http://opendatacommunities.org/id/unitary-authority/wiltshire,26/06/2019,1902363571,3072.82,West Mercia Energy ,139176,SY2-,Resources,FM Leisure Centres,Electricity,Premises Related,REVENUE
Wiltshire,http://opendatacommunities.org/id/unitary-authority/wiltshire,26/06/2019,1902363572,1844.34,West Mercia Energy ,139176,SY2-,Neighbourhood & Planning,SH Crane Lodge,Electricity,Premises Related,REVENUE
Wiltshire,http://opendatacommunities.org/id/unitary-authority/wiltshire,26/06/2019,1902363573,2256.29,West Mercia Energy ,139176,SY2-,Neighbourhood & Planning,SH Edgers Close,Electricity,Premises Related,REVENUE
Wiltshire,http://opendatacommunities.org/id/unitary-authority/wiltshire,26/06/2019,1902363574,6623.99,West Mercia Energy ,139176,SY2-,Resources,FM Leisure Centres,Electricity,Premises Related,REVENUE
Wiltshire,http://opendatacommunities.org/id/unitary-authority/wiltshire,26/06/2019,1902363575,3751.31,West Mercia Energy ,139176,SY2-,Resources,Bourne Hill,Electricity,Premises Related,REVENUE
Wiltshire,http://opendatacommunities.org/id/unitary-authority/wiltshire,26/06/2019,1902363576,4331.76,West Mercia Energy ,139176,SY2-,Resources,FM Leisure Centres,Electricity,Premises Related,REVENUE
Wiltshire,http://opendatacommunities.org/id/unitary-authority/wiltshire,26/06/2019,1902363577,2684.84,West Mercia Energy ,139176,SY2-,Community Services,HRA Neighbourhood Te,Electricity,Premises Related,REVENUE
Wiltshire,http://opendatacommunities.org/id/unitary-authority/wiltshire,26/06/2019,1902363578,4791.71,West Mercia Energy ,139176,SY2-,Resources,FM Leisure Centres,Electricity,Premises Related,REVENUE
Wiltshire,http://opendatacommunities.org/id/unitary-authority/wiltshire,26/06/2019,1902363579,2426.89,West Mercia Energy ,139176,SY2-,Resources,FM Highway Depots,Electricity,Premises Related,REVENUE
Wiltshire,http://opendatacommunities.org/id/unitary-authority/wiltshire,26/06/2019,1902363580,14440.99,West Mercia Energy ,139176,SY2-,Resources,5 Rivers LC,Electricity,Premises Related,REVENUE
Wiltshire,http://opendatacommunities.org/id/unitary-authority/wiltshire,26/06/2019,1902363581,6928.87,West Mercia Energy ,139176,SY2-,Resources,FM Leisure Centres,Electricity,Premises Related,REVENUE
Wiltshire,http://opendatacommunities.org/id/unitary-authority/wiltshire,26/06/2019,1902363582,1865.43,West Mercia Energy ,139176,SY2-,Resources,Tisbury Sports Centr,Electricity,Premises Related,REVENUE
Wiltshire,http://opendatacommunities.org/id/unitary-authority/wiltshire,26/06/2019,1902363583,4167.79,West Mercia Energy ,139176,SY2-,Resources,FM Leisure Centres,Electricity,Premises Related,REVENUE
Wiltshire,http://opendatacommunities.org/id/unitary-authority/wiltshire,26/06/2019,1902363584,10805.84,West Mercia Energy ,139176,SY2-,Resources,Monkton Park,Electricity,Premises Related,REVENUE
Wiltshire,http://opendatacommunities.org/id/unitary-authority/wiltshire,05/06/2019,5107343979,1081.2,Wessex Tree Care Ltd ,101128,SN10,Neighbourhood & Planning,Highw Hedges & Trees,Materials,Supplies and Services,REVENUE
Wiltshire,http://opendatacommunities.org/id/unitary-authority/wiltshire,12/06/2019,5107351768,630,Wessex Tree Care Ltd ,101128,SN10,Neighbourhood & Planning,Other Weather Emerg,Materials,Supplies and Services,REVENUE
Wiltshire,http://opendatacommunities.org/id/unitary-authority/wiltshire,26/06/2019,5107357238,1255.4,Wessex Tree Care Ltd ,101128,SN10,Neighbourhood & Planning,Highw Hedges & Trees,Materials,Supplies and Services,REVENUE
Wiltshire,http://opendatacommunities.org/id/unitary-authority/wiltshire,24/06/2019,5107357258,731.2,Wessex Tree Care Ltd ,101128,SN10,Neighbourhood & Planning,Highw Hedges & Trees,Materials,Supplies and Services,REVENUE
Wiltshire,http://opendatacommunities.org/id/unitary-authority/wiltshire,11/06/2019,5107351706,260,Wessex Rural Crafts Ltd ,130627,BA12,Neighbourhood & Planning,Countryside,Grounds Maintenance,Premises Related,REVENUE
Wiltshire,http://opendatacommunities.org/id/unitary-authority/wiltshire,13/06/2019,5107352060,2200,Wessex Rural Crafts Ltd ,130627,BA12,Neighbourhood & Planning,Countryside,Grounds Maintenance,Premises Related,REVENUE
Wiltshire,http://opendatacommunities.org/id/unitary-authority/wiltshire,07/06/2019,5107343691,18702,Wessex Petroleum ,112921,SO45,Neighbourhood & Planning,Fleet,Vehicle Fuel,Transport Related,REVENUE
Wiltshire,http://opendatacommunities.org/id/unitary-authority/wiltshire,27/06/2019,5107354543,14379.68,Wessex Petroleum ,112921,SO45,Neighbourhood & Planning,Fleet,Vehicle Fuel,Transport Related,REVENUE
Wiltshire,http://opendatacommunities.org/id/unitary-authority/wiltshire,04/06/2019,1902347487,646.03,Wessex Electricals (Shaftesbury0 Lt Tom Chandler,141322,SP7 ,Neighbourhood & Planning,Responsive Repairs,Premises Related Other Maintenance Costs,Premises Related,REVENUE
Wiltshire,http://opendatacommunities.org/id/unitary-authority/wiltshire,04/06/2019,1902347488,360.38,Wessex Electricals (Shaftesbury0 Lt Tom Chandler,141322,SP7 ,Neighbourhood & Planning,Responsive Repairs,Premises Related Other Maintenance Costs,Premises Related,REVENUE
Wiltshire,http://opendatacommunities.org/id/unitary-authority/wiltshire,04/06/2019,1902347579,1099.73,Wessex Electricals (Shaftesbury0 Lt Tom Chandler,141322,SP7 ,Neighbourhood & Planning,Responsive Repairs,Premises Related Other Maintenance Costs,Premises Related,REVENUE
Wiltshire,http://opendatacommunities.org/id/unitary-authority/wiltshire,04/06/2019,1902347580,1782.11,Wessex Electricals (Shaftesbury0 Lt Tom Chandler,141322,SP7 ,Neighbourhood & Planning,Void Repairs-Contrct,Premises Related Other Maintenance Costs,Premises Related,REVENUE
Wiltshire,http://opendatacommunities.org/id/unitary-authority/wiltshire,04/06/2019,1902347581,1051.33,Wessex Electricals (Shaftesbury0 Lt Tom Chandler,141322,SP7 ,Neighbourhood & Planning,Void Repairs-Contrct,Premises Related Other Maintenance Costs,Premises Related,REVENUE
Wiltshire,http://opendatacommunities.org/id/unitary-authority/wiltshire,04/06/2019,1902347617,286.02,Wessex Electricals (Shaftesbury0 Lt Tom Chandler,141322,SP7 ,Neighbourhood & Planning,Responsive Repairs,Premises Related Other Maintenance Costs,Premises Related,REVENUE
Wiltshire,http://opendatacommunities.org/id/unitary-authority/wiltshire,06/06/2019,1902353405,445.88,Wessex Electricals (Shaftesbury0 Lt Tom Chandler,141322,SP7 ,Neighbourhood & Planning,Responsive Repairs,Premises Related Other Maintenance Costs,Premises Related,REVENUE
Wiltshire,http://opendatacommunities.org/id/unitary-authority/wiltshire,06/06/2019,1902353407,407.22,Wessex Electricals (Shaftesbury0 Lt Tom Chandler,141322,SP7 ,Neighbourhood & Planning,Responsive Repairs,Premises Related Other Maintenance Costs,Premises Related,REVENUE
Wiltshire,http://opendatacommunities.org/id/unitary-authority/wiltshire,06/06/2019,1902353850,647.14,Wessex Electricals (Shaftesbury0 Lt Tom Chandler,141322,SP7 ,Neighbourhood & Planning,Responsive Repairs,Premises Related Other Maintenance Costs,Premises Related,REVENUE
Wiltshire,http://opendatacommunities.org/id/unitary-authority/wiltshire,07/06/2019,1902354110,1369.76,Wessex Electricals (Shaftesbury0 Lt Tom Chandler,141322,SP7 ,Neighbourhood & Planning,Void Repairs-Contrct,Premises Related Other Maintenance Costs,Premises Related,REVENUE
Wiltshire,http://opendatacommunities.org/id/unitary-authority/wiltshire,12/06/2019,1902356721,409.22,Wessex Electricals (Shaftesbury0 Lt Tom Chandler,141322,SP7 ,Neighbourhood & Planning,Void Repairs-Contrct,Premises Related Other Maintenance Costs,Premises Related,REVENUE
Wiltshire,http://opendatacommunities.org/id/unitary-authority/wiltshire,12/06/2019,1902356722,327.12,Wessex Electricals (Shaftesbury0 Lt Tom Chandler,141322,SP7 ,Neighbourhood & Planning,Responsive Repairs,Premises Related Other Maintenance Costs,Premises Related,REVENUE
Wiltshire,http://opendatacommunities.org/id/unitary-authority/wiltshire,13/06/2019,1902357202,1312,Wessex Electricals (Shaftesbury0 Lt Tom Chandler,141322,SP7 ,Neighbourhood & Planning,Void Repairs-Contrct,Premises Related Other Maintenance Costs,Premises Related,REVENUE
Wiltshire,http://opendatacommunities.org/id/unitary-authority/wiltshire,13/06/2019,1902357219,397.43,Wessex Electricals (Shaftesbury0 Lt Tom Chandler,141322,SP7 ,Neighbourhood & Planning,Responsive Repairs,Premises Related Other Maintenance Costs,Premises Related,REVENUE
Wiltshire,http://opendatacommunities.org/id/unitary-authority/wiltshire,13/06/2019,1902357223,340.61,Wessex Electricals (Shaftesbury0 Lt Tom Chandler,141322,SP7 ,Neighbourhood & Planning,Responsive Repairs,Premises Related Other Maintenance Costs,Premises Related,REVENUE
Wiltshire,http://opendatacommunities.org/id/unitary-authority/wiltshire,18/06/2019,1902358317,420.19,Wessex Electricals (Shaftesbury0 Lt Tom Chandler,141322,SP7 ,Neighbourhood & Planning,DLO,Premises Related Other Maintenance Costs,Premises Related,REVENUE
Wiltshire,http://opendatacommunities.org/id/unitary-authority/wiltshire,18/06/2019,1902358322,348.49,Wessex Electricals (Shaftesbury0 Lt Tom Chandler,141322,SP7 ,Neighbourhood & Planning,DLO,Premises Related Other Maintenance Costs,Premises Related,REVENUE
Wiltshire,http://opendatacommunities.org/id/unitary-authority/wiltshire,18/06/2019,1902358323,378.51,Wessex Electricals (Shaftesbury0 Lt Tom Chandler,141322,SP7 ,Neighbourhood & Planning,DLO,Premises Related Other Maintenance Costs,Premises Related,REVENUE
Wiltshire,http://opendatacommunities.org/id/unitary-authority/wiltshire,19/06/2019,1902359502,322.08,Wessex Electricals (Shaftesbury0 Lt Tom Chandler,141322,SP7 ,Neighbourhood & Planning,Responsive Repairs,Premises Related Other Maintenance Costs,Premises Related,REVENUE
Wiltshire,http://opendatacommunities.org/id/unitary-authority/wiltshire,19/06/2019,1902359503,653.64,Wessex Electricals (Shaftesbury0 Lt Tom Chandler,141322,SP7 ,Neighbourhood & Planning,DLO,Premises Related Other Maintenance Costs,Premises Related,REVENUE
Wiltshire,http://opendatacommunities.org/id/unitary-authority/wiltshire,21/06/2019,1902360152,348.49,Wessex Electricals (Shaftesbury0 Lt Tom Chandler,141322,SP7 ,Neighbourhood & Planning,DLO,Premises Related Other Maintenance Costs,Premises Related,REVENUE
Wiltshire,http://opendatacommunities.org/id/unitary-authority/wiltshire,21/06/2019,1902360161,347.09,Wessex Electricals (Shaftesbury0 Lt Tom Chandler,141322,SP7 ,Neighbourhood & Planning,DLO,Premises Related Other Maintenance Costs,Premises Related,REVENUE
Wiltshire,http://opendatacommunities.org/id/unitary-authority/wiltshire,24/06/2019,1902360720,469.21,Wessex Electricals (Shaftesbury0 Lt Tom Chandler,141322,SP7 ,Neighbourhood & Planning,DLO,Premises Related Other Maintenance Costs,Premises Related,REVENUE
Wiltshire,http://opendatacommunities.org/id/unitary-authority/wiltshire,04/06/2019,1902347506,477.82,Wessex Electricals (Shaftesbury) Lt ,101690,SP7 ,Neighbourhood & Planning,Void Repairs-Contrct,Premises Related Other Maintenance Costs,Premises Related,REVENUE
Wiltshire,http://opendatacommunities.org/id/unitary-authority/wiltshire,04/06/2019,1902347509,250.7,Wessex Electricals (Shaftesbury) Lt ,101690,SP7 ,Neighbourhood & Planning,Responsive Repairs,Premises Related Other Maintenance Costs,Premises Related,REVENUE
Wiltshire,http://opendatacommunities.org/id/unitary-authority/wiltshire,04/06/2019,1902347514,488.03,Wessex Electricals (Shaftesbury) Lt ,101690,SP7 ,Neighbourhood & Planning,Responsive Repairs,Premises Related Other Maintenance Costs,Premises Related,REVENUE
Wiltshire,http://opendatacommunities.org/id/unitary-authority/wiltshire,04/06/2019,1902347541,383.5,Wessex Electricals (Shaftesbury) Lt ,101690,SP7 ,Neighbourhood & Planning,Responsive Repairs,Premises Related Other Maintenance Costs,Premises Related,REVENUE
Wiltshire,http://opendatacommunities.org/id/unitary-authority/wiltshire,04/06/2019,1902347550,250.7,Wessex Electricals (Shaftesbury) Lt ,101690,SP7 ,Neighbourhood & Planning,Responsive Repairs,Premises Related Other Maintenance Costs,Premises Related,REVENUE
Wiltshire,http://opendatacommunities.org/id/unitary-authority/wiltshire,04/06/2019,1902347553,346.11,Wessex Electricals (Shaftesbury) Lt ,101690,SP7 ,Neighbourhood & Planning,Responsive Repairs,Premises Related Other Maintenance Costs,Premises Related,REVENUE
Wiltshire,http://opendatacommunities.org/id/unitary-authority/wiltshire,04/06/2019,1902347566,250.7,Wessex Electricals (Shaftesbury) Lt ,101690,SP7 ,Neighbourhood & Planning,Responsive Repairs,Premises Related Other Maintenance Costs,Premises Related,REVENUE
Wiltshire,http://opendatacommunities.org/id/unitary-authority/wiltshire,04/06/2019,1902347567,250.7,Wessex Electricals (Shaftesbury) Lt ,101690,SP7 ,Neighbourhood & Planning,Responsive Repairs,Premises Related Other Maintenance Costs,Premises Related,REVENUE
Wiltshire,http://opendatacommunities.org/id/unitary-authority/wiltshire,04/06/2019,1902347568,357.68,Wessex Electricals (Shaftesbury) Lt ,101690,SP7 ,Neighbourhood & Planning,Void Repairs-Contrct,Premises Related Other Maintenance Costs,Premises Related,REVENUE
Wiltshire,http://opendatacommunities.org/id/unitary-authority/wiltshire,04/06/2019,1902347573,270.9,Wessex Electricals (Shaftesbury) Lt ,101690,SP7 ,Neighbourhood & Planning,Responsive Repairs,Premises Related Other Maintenance Costs,Premises Related,REVENUE
Wiltshire,http://opendatacommunities.org/id/unitary-authority/wiltshire,04/06/2019,1902347583,496.22,Wessex Electricals (Shaftesbury) Lt ,101690,SP7 ,Neighbourhood & Planning,Responsive Repairs,Premises Related Other Maintenance Costs,Premises Related,REVENUE
Wiltshire,http://opendatacommunities.org/id/unitary-authority/wiltshire,04/06/2019,1902347588,346.11,Wessex Electricals (Shaftesbury) Lt ,101690,SP7 ,Neighbourhood & Planning,Responsive Repairs,Premises Related Other Maintenance Costs,Premises Related,REVENUE
Wiltshire,http://opendatacommunities.org/id/unitary-authority/wiltshire,04/06/2019,1902347589,492.76,Wessex Electricals (Shaftesbury) Lt ,101690,SP7 ,Neighbourhood & Planning,Void Repairs-Contrct,Premises Related Other Maintenance Costs,Premises Related,REVENUE
Wiltshire,http://opendatacommunities.org/id/unitary-authority/wiltshire,04/06/2019,1902347595,346.11,Wessex Electricals (Shaftesbury) Lt ,101690,SP7 ,Neighbourhood & Planning,Responsive Repairs,Premises Related Other Maintenance Costs,Premises Related,REVENUE
Wiltshire,http://opendatacommunities.org/id/unitary-authority/wiltshire,04/06/2019,1902347609,329.26,Wessex Electricals (Shaftesbury) Lt ,101690,SP7 ,Neighbourhood & Planning,Void Repairs-Contrct,Premises Related Other Maintenance Costs,Premises Related,REVENUE
Wiltshire,http://opendatacommunities.org/id/unitary-authority/wiltshire,04/06/2019,1902347627,507.55,Wessex Electricals (Shaftesbury) Lt ,101690,SP7 ,Neighbourhood & Planning,Responsive Repairs,Premises Related Other Maintenance Costs,Premises Related,REVENUE
Wiltshire,http://opendatacommunities.org/id/unitary-authority/wiltshire,06/06/2019,1902353343,395.87,Wessex Electricals (Shaftesbury) Lt ,101690,SP7 ,Neighbourhood & Planning,Responsive Repairs,Premises Related Other Maintenance Costs,Premises Related,REVENUE
Wiltshire,http://opendatacommunities.org/id/unitary-authority/wiltshire,06/06/2019,1902353349,250.7,Wessex Electricals (Shaftesbury) Lt ,101690,SP7 ,Neighbourhood & Planning,Responsive Repairs,Premises Related Other Maintenance Costs,Premises Related,REVENUE
Wiltshire,http://opendatacommunities.org/id/unitary-authority/wiltshire,06/06/2019,1902353350,250.7,Wessex Electricals (Shaftesbury) Lt ,101690,SP7 ,Neighbourhood & Planning,Responsive Repairs,Premises Related Other Maintenance Costs,Premises Related,REVENUE
Wiltshire,http://opendatacommunities.org/id/unitary-authority/wiltshire,06/06/2019,1902353354,261.4,Wessex Electricals (Shaftesbury) Lt ,101690,SP7 ,Neighbourhood & Planning,Responsive Repairs,Premises Related Other Maintenance Costs,Premises Related,REVENUE
Wiltshire,http://opendatacommunities.org/id/unitary-authority/wiltshire,06/06/2019,1902353356,313.41,Wessex Electricals (Shaftesbury) Lt ,101690,SP7 ,Neighbourhood & Planning,Void Repairs-Contrct,Premises Related Other Maintenance Costs,Premises Related,REVENUE
Wiltshire,http://opendatacommunities.org/id/unitary-authority/wiltshire,06/06/2019,1902353363,327.94,Wessex Electricals (Shaftesbury) Lt ,101690,SP7 ,Neighbourhood & Planning,Void Repairs-Contrct,Premises Related Other Maintenance Costs,Premises Related,REVENUE
Wiltshire,http://opendatacommunities.org/id/unitary-authority/wiltshire,06/06/2019,1902353367,287.11,Wessex Electricals (Shaftesbury) Lt ,101690,SP7 ,Neighbourhood & Planning,Responsive Repairs,Premises Related Other Maintenance Costs,Premises Related,REVENUE
Wiltshire,http://opendatacommunities.org/id/unitary-authority/wiltshire,06/06/2019,1902353368,444.78,Wessex Electricals (Shaftesbury) Lt ,101690,SP7 ,Neighbourhood & Planning,Responsive Repairs,Premises Related Other Maintenance Costs,Premises Related,REVENUE
Wiltshire,http://opendatacommunities.org/id/unitary-authority/wiltshire,06/06/2019,1902353371,379.15,Wessex Electricals (Shaftesbury) Lt ,101690,SP7 ,Neighbourhood & Planning,Responsive Repairs,Premises Related Other Maintenance Costs,Premises Related,REVENUE
Wiltshire,http://opendatacommunities.org/id/unitary-authority/wiltshire,06/06/2019,1902353372,359.63,Wessex Electricals (Shaftesbury) Lt ,101690,SP7 ,Neighbourhood & Planning,Responsive Repairs,Premises Related Other Maintenance Costs,Premises Related,REVENUE
Wiltshire,http://opendatacommunities.org/id/unitary-authority/wiltshire,06/06/2019,1902353389,346.11,Wessex Electricals (Shaftesbury) Lt ,101690,SP7 ,Neighbourhood & Planning,Responsive Repairs,Premises Related Other Maintenance Costs,Premises Related,REVENUE
Wiltshire,http://opendatacommunities.org/id/unitary-authority/wiltshire,06/06/2019,1902353391,359.63,Wessex Electricals (Shaftesbury) Lt ,101690,SP7 ,Neighbourhood & Planning,Responsive Repairs,Premises Related Other Maintenance Costs,Premises Related,REVENUE
Wiltshire,http://opendatacommunities.org/id/unitary-authority/wiltshire,06/06/2019,1902353397,346.11,Wessex Electricals (Shaftesbury) Lt ,101690,SP7 ,Neighbourhood & Planning,Responsive Repairs,Premises Related Other Maintenance Costs,Premises Related,REVENUE
Wiltshire,http://opendatacommunities.org/id/unitary-authority/wiltshire,06/06/2019,1902353403,346.11,Wessex Electricals (Shaftesbury) Lt ,101690,SP7 ,Neighbourhood & Planning,Responsive Repairs,Premises Related Other Maintenance Costs,Premises Related,REVENUE
Wiltshire,http://opendatacommunities.org/id/unitary-authority/wiltshire,06/06/2019,1902353415,491.42,Wessex Electricals (Shaftesbury) Lt ,101690,SP7 ,Neighbourhood & Planning,Void Repairs-Contrct,Premises Related Other Maintenance Costs,Premises Related,REVENUE
Wiltshire,http://opendatacommunities.org/id/unitary-authority/wiltshire,06/06/2019,1902353417,419.97,Wessex Electricals (Shaftesbury) Lt ,101690,SP7 ,Neighbourhood & Planning,Responsive Repairs,Premises Related Other Maintenance Costs,Premises Related,REVENUE
Wiltshire,http://opendatacommunities.org/id/unitary-authority/wiltshire,06/06/2019,1902353423,474.66,Wessex Electricals (Shaftesbury) Lt ,101690,SP7 ,Neighbourhood & Planning,Void Repairs-Contrct,Premises Related Other Maintenance Costs,Premises Related,REVENUE
Wiltshire,http://opendatacommunities.org/id/unitary-authority/wiltshire,06/06/2019,1902353425,314.26,Wessex Electricals (Shaftesbury) Lt ,101690,SP7 ,Neighbourhood & Planning,Void Repairs-Contrct,Premises Related Other Maintenance Costs,Premises Related,REVENUE
Wiltshire,http://opendatacommunities.org/id/unitary-authority/wiltshire,06/06/2019,1902353427,488.03,Wessex Electricals (Shaftesbury) Lt ,101690,SP7 ,Neighbourhood & Planning,Responsive Repairs,Premises Related Other Maintenance Costs,Premises Related,REVENUE
Wiltshire,http://opendatacommunities.org/id/unitary-authority/wiltshire,06/06/2019,1902353431,261.4,Wessex Electricals (Shaftesbury) Lt ,101690,SP7 ,Neighbourhood & Planning,Responsive Repairs,Premises Related Other Maintenance Costs,Premises Related,REVENUE
Wiltshire,http://opendatacommunities.org/id/unitary-authority/wiltshire,06/06/2019,1902353437,346.11,Wessex Electricals (Shaftesbury) Lt ,101690,SP7 ,Neighbourhood & Planning,Responsive Repairs,Premises Related Other Maintenance Costs,Premises Related,REVENUE
Wiltshire,http://opendatacommunities.org/id/unitary-authority/wiltshire,06/06/2019,1902353438,346.11,Wessex Electricals (Shaftesbury) Lt ,101690,SP7 ,Neighbourhood & Planning,Responsive Repairs,Premises Related Other Maintenance Costs,Premises Related,REVENUE
Wiltshire,http://opendatacommunities.org/id/unitary-authority/wiltshire,06/06/2019,1902353444,250.7,Wessex Electricals (Shaftesbury) Lt ,101690,SP7 ,Neighbourhood & Planning,Responsive Repairs,Premises Related Other Maintenance Costs,Premises Related,REVENUE
Wiltshire,http://opendatacommunities.org/id/unitary-authority/wiltshire,06/06/2019,1902353455,261.54,Wessex Electricals (Shaftesbury) Lt ,101690,SP7 ,Neighbourhood & Planning,Responsive Repairs,Premises Related Other Maintenance Costs,Premises Related,REVENUE
Wiltshire,http://opendatacommunities.org/id/unitary-authority/wiltshire,06/06/2019,1902353462,426.22,Wessex Electricals (Shaftesbury) Lt ,101690,SP7 ,Neighbourhood & Planning,Responsive Repairs,Premises Related Other Maintenance Costs,Premises Related,REVENUE
Wiltshire,http://opendatacommunities.org/id/unitary-authority/wiltshire,06/06/2019,1902353849,1465.36,Wessex Electricals (Shaftesbury) Lt ,101690,SP7 ,Neighbourhood & Planning,Responsive Repairs,Premises Related Other Maintenance Costs,Premises Related,REVENUE
Wiltshire,http://opendatacommunities.org/id/unitary-authority/wiltshire,06/06/2019,1902353851,784.34,Wessex Electricals (Shaftesbury) Lt ,101690,SP7 ,Neighbourhood & Planning,Void Repairs-Contrct,Premises Related Other Maintenance Costs,Premises Related,REVENUE
Wiltshire,http://opendatacommunities.org/id/unitary-authority/wiltshire,06/06/2019,1902353852,689.22,Wessex Electricals (Shaftesbury) Lt ,101690,SP7 ,Neighbourhood & Planning,Responsive Repairs,Premises Related Other Maintenance Costs,Premises Related,REVENUE
Wiltshire,http://opendatacommunities.org/id/unitary-authority/wiltshire,06/06/2019,1902353853,673.66,Wessex Electricals (Shaftesbury) Lt ,101690,SP7 ,Neighbourhood & Planning,Void Repairs-Contrct,Premises Related Other Maintenance Costs,Premises Related,REVENUE
Wiltshire,http://opendatacommunities.org/id/unitary-authority/wiltshire,06/06/2019,1902353854,781.04,Wessex Electricals (Shaftesbury) Lt ,101690,SP7 ,Neighbourhood & Planning,Void Repairs-Contrct,Premises Related Other Maintenance Costs,Premises Related,REVENUE
Wiltshire,http://opendatacommunities.org/id/unitary-authority/wiltshire,06/06/2019,1902353855,943.43,Wessex Electricals (Shaftesbury) Lt ,101690,SP7 ,Neighbourhood & Planning,Void Repairs-Contrct,Premises Related Other Maintenance Costs,Premises Related,REVENUE
Wiltshire,http://opendatacommunities.org/id/unitary-authority/wiltshire,06/06/2019,1902353856,250.7,Wessex Electricals (Shaftesbury) Lt ,101690,SP7 ,Neighbourhood & Planning,Responsive Repairs,Premises Related Other Maintenance Costs,Premises Related,REVENUE
Wiltshire,http://opendatacommunities.org/id/unitary-authority/wiltshire,06/06/2019,1902353859,426.22,Wessex Electricals (Shaftesbury) Lt ,101690,SP7 ,Neighbourhood & Planning,Responsive Repairs,Premises Related Other Maintenance Costs,Premises Related,REVENUE
Wiltshire,http://opendatacommunities.org/id/unitary-authority/wiltshire,06/06/2019,1902353861,432.56,Wessex Electricals (Shaftesbury) Lt ,101690,SP7 ,Neighbourhood & Planning,Responsive Repairs,Premises Related Other Maintenance Costs,Premises Related,REVENUE
Wiltshire,http://opendatacommunities.org/id/unitary-authority/wiltshire,06/06/2019,1902353865,481.64,Wessex Electricals (Shaftesbury) Lt ,101690,SP7 ,Neighbourhood & Planning,Void Repairs-Contrct,Premises Related Other Maintenance Costs,Premises Related,REVENUE
Wiltshire,http://opendatacommunities.org/id/unitary-authority/wiltshire,06/06/2019,1902353872,346.11,Wessex Electricals (Shaftesbury) Lt ,101690,SP7 ,Neighbourhood & Planning,Responsive Repairs,Premises Related Other Maintenance Costs,Premises Related,REVENUE
Wiltshire,http://opendatacommunities.org/id/unitary-authority/wiltshire,06/06/2019,1902353873,346.11,Wessex Electricals (Shaftesbury) Lt ,101690,SP7 ,Neighbourhood & Planning,Responsive Repairs,Premises Related Other Maintenance Costs,Premises Related,REVENUE
Wiltshire,http://opendatacommunities.org/id/unitary-authority/wiltshire,06/06/2019,1902353875,399.32,Wessex Electricals (Shaftesbury) Lt ,101690,SP7 ,Neighbourhood & Planning,Void Repairs-Contrct,Premises Related Other Maintenance Costs,Premises Related,REVENUE
Wiltshire,http://opendatacommunities.org/id/unitary-authority/wiltshire,06/06/2019,1902353879,250.7,Wessex Electricals (Shaftesbury) Lt ,101690,SP7 ,Neighbourhood & Planning,Responsive Repairs,Premises Related Other Maintenance Costs,Premises Related,REVENUE
Wiltshire,http://opendatacommunities.org/id/unitary-authority/wiltshire,12/06/2019,1902356563,25320.77,Wessex Electricals (Shaftesbury) Lt ,101690,SP7 ,Wiltshire Council,Wiltshire Council,Buildings Minor Alterations,Premises Related,CAPITAL
Wiltshire,http://opendatacommunities.org/id/unitary-authority/wiltshire,12/06/2019,1902356707,1535.63,Wessex Electricals (Shaftesbury) Lt ,101690,SP7 ,Neighbourhood & Planning,Responsive Repairs,Premises Related Other Maintenance Costs,Premises Related,REVENUE
Wiltshire,http://opendatacommunities.org/id/unitary-authority/wiltshire,12/06/2019,1902356712,269.56,Wessex Electricals (Shaftesbury) Lt ,101690,SP7 ,Neighbourhood & Planning,Responsive Repairs,Premises Related Other Maintenance Costs,Premises Related,REVENUE
Wiltshire,http://opendatacommunities.org/id/unitary-authority/wiltshire,12/06/2019,1902356731,572.75,Wessex Electricals (Shaftesbury) Lt ,101690,SP7 ,Neighbourhood & Planning,Void Repairs-Contrct,Premises Related Other Maintenance Costs,Premises Related,REVENUE
Wiltshire,http://opendatacommunities.org/id/unitary-authority/wiltshire,12/06/2019,1902356737,250.7,Wessex Electricals (Shaftesbury) Lt ,101690,SP7 ,Neighbourhood & Planning,Responsive Repairs,Premises Related Other Maintenance Costs,Premises Related,REVENUE
Wiltshire,http://opendatacommunities.org/id/unitary-authority/wiltshire,12/06/2019,1902356739,306.12,Wessex Electricals (Shaftesbury) Lt ,101690,SP7 ,Neighbourhood & Planning,Responsive Repairs,Premises Related Other Maintenance Costs,Premises Related,REVENUE
Wiltshire,http://opendatacommunities.org/id/unitary-authority/wiltshire,12/06/2019,1902356742,250.7,Wessex Electricals (Shaftesbury) Lt ,101690,SP7 ,Neighbourhood & Planning,Responsive Repairs,Premises Related Other Maintenance Costs,Premises Related,REVENUE
Wiltshire,http://opendatacommunities.org/id/unitary-authority/wiltshire,12/06/2019,1902356744,250.7,Wessex Electricals (Shaftesbury) Lt ,101690,SP7 ,Neighbourhood & Planning,Responsive Repairs,Premises Related Other Maintenance Costs,Premises Related,REVENUE
Wiltshire,http://opendatacommunities.org/id/unitary-authority/wiltshire,12/06/2019,1902356747,346.11,Wessex Electricals (Shaftesbury) Lt ,101690,SP7 ,Neighbourhood & Planning,Responsive Repairs,Premises Related Other Maintenance Costs,Premises Related,REVENUE
Wiltshire,http://opendatacommunities.org/id/unitary-authority/wiltshire,13/06/2019,1902357206,346.11,Wessex Electricals (Shaftesbury) Lt ,101690,SP7 ,Neighbourhood & Planning,Responsive Repairs,Premises Related Other Maintenance Costs,Premises Related,REVENUE
Wiltshire,http://opendatacommunities.org/id/unitary-authority/wiltshire,13/06/2019,1902357216,487.93,Wessex Electricals (Shaftesbury) Lt ,101690,SP7 ,Neighbourhood & Planning,Void Repairs-Contrct,Premises Related Other Maintenance Costs,Premises Related,REVENUE
Wiltshire,http://opendatacommunities.org/id/unitary-authority/wiltshire,18/06/2019,1902358258,608.92,Wessex Electricals (Shaftesbury) Lt ,101690,SP7 ,Neighbourhood & Planning,DLO,Premises Related Other Maintenance Costs,Premises Related,REVENUE
Wiltshire,http://opendatacommunities.org/id/unitary-authority/wiltshire,18/06/2019,1902358260,346.11,Wessex Electricals (Shaftesbury) Lt ,101690,SP7 ,Neighbourhood & Planning,DLO,Premises Related Other Maintenance Costs,Premises Related,REVENUE
Wiltshire,http://opendatacommunities.org/id/unitary-authority/wiltshire,18/06/2019,1902358261,325.86,Wessex Electricals (Shaftesbury) Lt ,101690,SP7 ,Neighbourhood & Planning,DLO,Premises Related Other Maintenance Costs,Premises Related,REVENUE
Wiltshire,http://opendatacommunities.org/id/unitary-authority/wiltshire,18/06/2019,1902358262,350.98,Wessex Electricals (Shaftesbury) Lt ,101690,SP7 ,Neighbourhood & Planning,DLO,Premises Related Other Maintenance Costs,Premises Related,REVENUE
Wiltshire,http://opendatacommunities.org/id/unitary-authority/wiltshire,18/06/2019,1902358263,250.7,Wessex Electricals (Shaftesbury) Lt ,101690,SP7 ,Neighbourhood & Planning,DLO,Premises Related Other Maintenance Costs,Premises Related,REVENUE
Wiltshire,http://opendatacommunities.org/id/unitary-authority/wiltshire,18/06/2019,1902358265,405.48,Wessex Electricals (Shaftesbury) Lt ,101690,SP7 ,Neighbourhood & Planning,DLO,Premises Related Other Maintenance Costs,Premises Related,REVENUE
Wiltshire,http://opendatacommunities.org/id/unitary-authority/wiltshire,18/06/2019,1902358268,250.7,Wessex Electricals (Shaftesbury) Lt ,101690,SP7 ,Neighbourhood & Planning,DLO,Premises Related Other Maintenance Costs,Premises Related,REVENUE
Wiltshire,http://opendatacommunities.org/id/unitary-authority/wiltshire,18/06/2019,1902358270,310.94,Wessex Electricals (Shaftesbury) Lt ,101690,SP7 ,Neighbourhood & Planning,Void Repairs-Contrct,Premises Related Other Maintenance Costs,Premises Related,REVENUE
Wiltshire,http://opendatacommunities.org/id/unitary-authority/wiltshire,18/06/2019,1902358272,367.43,Wessex Electricals (Shaftesbury) Lt ,101690,SP7 ,Neighbourhood & Planning,Void Repairs-Contrct,Premises Related Other Maintenance Costs,Premises Related,REVENUE
Wiltshire,http://opendatacommunities.org/id/unitary-authority/wiltshire,18/06/2019,1902358274,346.11,Wessex Electricals (Shaftesbury) Lt ,101690,SP7 ,Neighbourhood & Planning,DLO,Premises Related Other Maintenance Costs,Premises Related,REVENUE
Wiltshire,http://opendatacommunities.org/id/unitary-authority/wiltshire,18/06/2019,1902358275,346.11,Wessex Electricals (Shaftesbury) Lt ,101690,SP7 ,Neighbourhood & Planning,DLO,Premises Related Other Maintenance Costs,Premises Related,REVENUE
Wiltshire,http://opendatacommunities.org/id/unitary-authority/wiltshire,18/06/2019,1902358278,359.63,Wessex Electricals (Shaftesbury) Lt ,101690,SP7 ,Neighbourhood & Planning,DLO,Premises Related Other Maintenance Costs,Premises Related,REVENUE
Wiltshire,http://opendatacommunities.org/id/unitary-authority/wiltshire,18/06/2019,1902358283,346.11,Wessex Electricals (Shaftesbury) Lt ,101690,SP7 ,Neighbourhood & Planning,DLO,Premises Related Other Maintenance Costs,Premises Related,REVENUE
Wiltshire,http://opendatacommunities.org/id/unitary-authority/wiltshire,18/06/2019,1902358292,346.11,Wessex Electricals (Shaftesbury) Lt ,101690,SP7 ,Neighbourhood & Planning,DLO,Premises Related Other Maintenance Costs,Premises Related,REVENUE
Wiltshire,http://opendatacommunities.org/id/unitary-authority/wiltshire,18/06/2019,1902358303,346.11,Wessex Electricals (Shaftesbury) Lt ,101690,SP7 ,Neighbourhood & Planning,DLO,Premises Related Other Maintenance Costs,Premises Related,REVENUE
Wiltshire,http://opendatacommunities.org/id/unitary-authority/wiltshire,18/06/2019,1902358307,346.11,Wessex Electricals (Shaftesbury) Lt ,101690,SP7 ,Neighbourhood & Planning,DLO,Premises Related Other Maintenance Costs,Premises Related,REVENUE
Wiltshire,http://opendatacommunities.org/id/unitary-authority/wiltshire,18/06/2019,1902359229,269.61,Wessex Electricals (Shaftesbury) Lt ,101690,SP7 ,Neighbourhood & Planning,Void Repairs-Contrct,Premises Related Other Maintenance Costs,Premises Related,REVENUE
Wiltshire,http://opendatacommunities.org/id/unitary-authority/wiltshire,21/06/2019,1902360136,250.7,Wessex Electricals (Shaftesbury) Lt ,101690,SP7 ,Neighbourhood & Planning,DLO,Premises Related Other Maintenance Costs,Premises Related,REVENUE
Wiltshire,http://opendatacommunities.org/id/unitary-authority/wiltshire,21/06/2019,1902360143,426.22,Wessex Electricals (Shaftesbury) Lt ,101690,SP7 ,Neighbourhood & Planning,DLO,Premises Related Other Maintenance Costs,Premises Related,REVENUE
Wiltshire,http://opendatacommunities.org/id/unitary-authority/wiltshire,21/06/2019,1902360144,426.22,Wessex Electricals (Shaftesbury) Lt ,101690,SP7 ,Neighbourhood & Planning,DLO,Premises Related Other Maintenance Costs,Premises Related,REVENUE
Wiltshire,http://opendatacommunities.org/id/unitary-authority/wiltshire,12/06/2019,5107351734,9605.68,Wessex Electricals (Shaftesbury) Lt ,101690,SP7 ,Neighbourhood & Planning,Housg Rprs Contracts,Property Maintenance,Premises Related,REVENUE
Wiltshire,http://opendatacommunities.org/id/unitary-authority/wiltshire,12/06/2019,5107351735,27351.7,Wessex Electricals (Shaftesbury) Lt ,101690,SP7 ,Wiltshire Council,Wiltshire Council,Property Maintenance,Premises Related,CAPITAL
Wiltshire,http://opendatacommunities.org/id/unitary-authority/wiltshire,24/06/2019,5107356814,1630.23,Wessex Electricals (Shaftesbury) Lt ,101690,SP7 ,Neighbourhood & Planning,Housg Rprs Contracts,Property Maintenance,Premises Related,REVENUE
Wiltshire,http://opendatacommunities.org/id/unitary-authority/wiltshire,24/06/2019,5107356815,2638.97,Wessex Electricals (Shaftesbury) Lt ,101690,SP7 ,Neighbourhood & Planning,Housg Rprs Contracts,Property Maintenance,Premises Related,REVENUE
Wiltshire,http://opendatacommunities.org/id/unitary-authority/wiltshire,24/06/2019,5107356816,410.09,Wessex Electricals (Shaftesbury) Lt ,101690,SP7 ,Neighbourhood & Planning,Housg Rprs Contracts,Property Maintenance,Premises Related,REVENUE
Wiltshire,http://opendatacommunities.org/id/unitary-authority/wiltshire,24/06/2019,5107356817,1021.99,Wessex Electricals (Shaftesbury) Lt ,101690,SP7 ,Neighbourhood & Planning,Housg Rprs Contracts,Property Maintenance,Premises Related,REVENUE
Wiltshire,http://opendatacommunities.org/id/unitary-authority/wiltshire,24/06/2019,5107356818,2430.99,Wessex Electricals (Shaftesbury) Lt ,101690,SP7 ,Neighbourhood & Planning,Housg Rprs Contracts,Property Maintenance,Premises Related,REVENUE
Wiltshire,http://opendatacommunities.org/id/unitary-authority/wiltshire,24/06/2019,5107356819,274.08,Wessex Electricals (Shaftesbury) Lt ,101690,SP7 ,Neighbourhood & Planning,Housg Rprs Contracts,Property Maintenance,Premises Related,REVENUE
Wiltshire,http://opendatacommunities.org/id/unitary-authority/wiltshire,24/06/2019,5107356820,5369.47,Wessex Electricals (Shaftesbury) Lt ,101690,SP7 ,Neighbourhood & Planning,Housg Rprs Contracts,Property Maintenance,Premises Related,REVENUE
Wiltshire,http://opendatacommunities.org/id/unitary-authority/wiltshire,20/06/2019,1902360000,400.42,Wessex Community Action ,100262,SP2 ,Neighbourhood & Planning,DCS Rechargeable Exp,Transport Contracts,Third Party Payments,REVENUE
Wiltshire,http://opendatacommunities.org/id/unitary-authority/wiltshire,20/06/2019,1902360000,1001.06,Wessex Community Action ,100262,SP2 ,Community Services,MH OP South Locality,Transport Contracts,Third Party Payments,REVENUE
Wiltshire,http://opendatacommunities.org/id/unitary-authority/wiltshire,20/06/2019,1902360000,1401.49,Wessex Community Action ,100262,SP2 ,Community Services,CTPLD Placements,Transport Contracts,Third Party Payments,REVENUE
Wiltshire,http://opendatacommunities.org/id/unitary-authority/wiltshire,20/06/2019,1902360000,5072.03,Wessex Community Action ,100262,SP2 ,Community Services,South Care Packages,Transport Contracts,Third Party Payments,REVENUE
Wiltshire,http://opendatacommunities.org/id/unitary-authority/wiltshire,12/06/2019,5107351852,15750,Wessex College ,112915,BA12,Children & Education,Ext Placement & IFA,Childrens Agency Placement,Third Party Payments,REVENUE
Wiltshire,http://opendatacommunities.org/id/unitary-authority/wiltshire,12/06/2019,5107351853,15750,Wessex College ,112915,BA12,Children & Education,Ext Placement & IFA,Childrens Agency Placement,Third Party Payments,REVENUE
Wiltshire,http://opendatacommunities.org/id/unitary-authority/wiltshire,12/06/2019,5107351854,14708.7,Wessex College ,112915,BA12,Children & Education,Ext Placement & IFA,Childrens Agency Placement,Third Party Payments,REVENUE
Wiltshire,http://opendatacommunities.org/id/unitary-authority/wiltshire,26/06/2019,5107353197,2880,Wessex Care Ltd (Milford Manor) ,111598,SP1 ,Community Services,South Care Packages,Adult Domiciliary Care,Third Party Payments,REVENUE
Wiltshire,http://opendatacommunities.org/id/unitary-authority/wiltshire,26/06/2019,5107353609,3604.96,Wessex Care Ltd (Milford Manor) ,111598,SP1 ,Community Services,South Care Packages,Adult Residential Placements - Spot Purchase,Third Party Payments,REVENUE
Wiltshire,http://opendatacommunities.org/id/unitary-authority/wiltshire,26/06/2019,5107353793,4118.8,Wessex Care Ltd (Milford Manor) ,111598,SP1 ,Community Services,Adult Care Gross Loa,Adult Care Loans,Capital charges and Expenditure,REVENUE
Wiltshire,http://opendatacommunities.org/id/unitary-authority/wiltshire,26/06/2019,5107353824,4241.12,Wessex Care Ltd (Milford Manor) ,111598,SP1 ,Community Services,MH OP South Locality,Adult Residential Placements - Spot Purchase,Third Party Payments,REVENUE
Wiltshire,http://opendatacommunities.org/id/unitary-authority/wiltshire,26/06/2019,5107353855,4241.12,Wessex Care Ltd (Milford Manor) ,111598,SP1 ,Community Services,South Care Packages,Adult Residential Placements - Spot Purchase,Third Party Payments,REVENUE
Wiltshire,http://opendatacommunities.org/id/unitary-authority/wiltshire,26/06/2019,5107353951,4241.12,Wessex Care Ltd (Milford Manor) ,111598,SP1 ,Community Services,MH AOWA South Locali,Adult Residential Placements - Spot Purchase,Third Party Payments,REVENUE
Wiltshire,http://opendatacommunities.org/id/unitary-authority/wiltshire,26/06/2019,5107353979,4118.8,Wessex Care Ltd (Milford Manor) ,111598,SP1 ,Community Services,Adult Care Gross Loa,Adult Care Loans,Capital charges and Expenditure,REVENUE
Wiltshire,http://opendatacommunities.org/id/unitary-authority/wiltshire,26/06/2019,5107353980,4241.12,Wessex Care Ltd (Milford Manor) ,111598,SP1 ,Community Services,South Care Packages,Adult Residential Placements - Spot Purchase,Third Party Payments,REVENUE
Wiltshire,http://opendatacommunities.org/id/unitary-authority/wiltshire,26/06/2019,5107354039,4241.12,Wessex Care Ltd (Milford Manor) ,111598,SP1 ,Community Services,MH AOWA South Locali,Adult Residential Placements - Spot Purchase,Third Party Payments,REVENUE
Wiltshire,http://opendatacommunities.org/id/unitary-authority/wiltshire,26/06/2019,5107354203,840,Wessex Care Ltd (Milford Manor) ,111598,SP1 ,Community Services,South Care Packages,Adult Domiciliary Care,Third Party Payments,REVENUE
Wiltshire,http://opendatacommunities.org/id/unitary-authority/wiltshire,26/06/2019,5107354302,4241.12,Wessex Care Ltd (Milford Manor) ,111598,SP1 ,Community Services,South Care Packages,Adult Residential Placements - Spot Purchase,Third Party Payments,REVENUE
Wiltshire,http://opendatacommunities.org/id/unitary-authority/wiltshire,26/06/2019,5107354668,3400,Wessex Care Ltd (Milford Manor) ,111598,SP1 ,Community Services,MH OP South Locality,Adult Residential Placements - Spot Purchase,Third Party Payments,REVENUE
Wiltshire,http://opendatacommunities.org/id/unitary-authority/wiltshire,26/06/2019,5107354742,3030,Wessex Care Ltd (Milford Manor) ,111598,SP1 ,Community Services,MH OP South Locality,Adult Residential Placements - Spot Purchase,Third Party Payments,REVENUE
Wiltshire,http://opendatacommunities.org/id/unitary-authority/wiltshire,26/06/2019,5107354880,4241.12,Wessex Care Ltd (Milford Manor) ,111598,SP1 ,Community Services,MH OP West Locality,Adult Residential Placements - Spot Purchase,Third Party Payments,REVENUE
Wiltshire,http://opendatacommunities.org/id/unitary-authority/wiltshire,26/06/2019,5107355026,4241.12,Wessex Care Ltd (Milford Manor) ,111598,SP1 ,Community Services,MH OP South Locality,Adult Residential Placements - Spot Purchase,Third Party Payments,REVENUE
Wiltshire,http://opendatacommunities.org/id/unitary-authority/wiltshire,26/06/2019,5107355146,3400,Wessex Care Ltd (Milford Manor) ,111598,SP1 ,Community Services,South Care Packages,Adult Residential Placements - Spot Purchase,Third Party Payments,REVENUE
Wiltshire,http://opendatacommunities.org/id/unitary-authority/wiltshire,26/06/2019,5107355349,4118.8,Wessex Care Ltd (Milford Manor) ,111598,SP1 ,Community Services,Adult Care Gross Loa,Adult Care Loans,Capital charges and Expenditure,REVENUE
Wiltshire,http://opendatacommunities.org/id/unitary-authority/wiltshire,26/06/2019,5107357534,1680,Wessex Care Ltd (Milford Manor) ,111598,SP1 ,Community Services,South Care Packages,Adult Domiciliary Care,Third Party Payments,REVENUE
Wiltshire,http://opendatacommunities.org/id/unitary-authority/wiltshire,26/06/2019,5107357743,4241.12,Wessex Care Ltd (Milford Manor) ,111598,SP1 ,Community Services,South Care Packages,Adult Residential Placements - Spot Purchase,Third Party Payments,REVENUE
Wiltshire,http://opendatacommunities.org/id/unitary-authority/wiltshire,26/06/2019,5107357786,4241.12,Wessex Care Ltd (Milford Manor) ,111598,SP1 ,Community Services,South Care Packages,Adult Residential Placements - Spot Purchase,Third Party Payments,REVENUE
Wiltshire,http://opendatacommunities.org/id/unitary-authority/wiltshire,26/06/2019,5107357810,4241.12,Wessex Care Ltd (Milford Manor) ,111598,SP1 ,Community Services,MH OP South Locality,Adult Residential Placements - Spot Purchase,Third Party Payments,REVENUE
Wiltshire,http://opendatacommunities.org/id/unitary-authority/wiltshire,26/06/2019,5107357879,4241.12,Wessex Care Ltd (Milford Manor) ,111598,SP1 ,Community Services,MH OP West Locality,Adult Residential Placements - Spot Purchase,Third Party Payments,REVENUE
Wiltshire,http://opendatacommunities.org/id/unitary-authority/wiltshire,26/06/2019,5107357880,4241.12,Wessex Care Ltd (Milford Manor) ,111598,SP1 ,Community Services,MH OP West Locality,Adult Residential Placements - Spot Purchase,Third Party Payments,REVENUE
Wiltshire,http://opendatacommunities.org/id/unitary-authority/wiltshire,26/06/2019,5107357881,4241.12,Wessex Care Ltd (Milford Manor) ,111598,SP1 ,Community Services,MH OP West Locality,Adult Residential Placements - Spot Purchase,Third Party Payments,REVENUE
Wiltshire,http://opendatacommunities.org/id/unitary-authority/wiltshire,26/06/2019,5107357888,4241.12,Wessex Care Ltd (Milford Manor) ,111598,SP1 ,Community Services,South Care Packages,Adult Residential Placements - Spot Purchase,Third Party Payments,REVENUE
Wiltshire,http://opendatacommunities.org/id/unitary-authority/wiltshire,26/06/2019,5107358371,3604.96,Wessex Care Ltd (Milford Manor) ,111598,SP1 ,Community Services,MH OP South Locality,Adult Residential Placements - Spot Purchase,Third Party Payments,REVENUE
Wiltshire,http://opendatacommunities.org/id/unitary-authority/wiltshire,26/06/2019,5107358998,3180.87,Wessex Care Ltd (Milford Manor) ,111598,SP1 ,Community Services,MH AOWA South Locali,Adult Residential Placements - Spot Purchase,Third Party Payments,REVENUE
Wiltshire,http://opendatacommunities.org/id/unitary-authority/wiltshire,26/06/2019,5107352383,23750.44,Wessex Care Ltd (Little Manor) ,112914,SP1 ,Community Services,BCF-Intermediate Cr,Adult Care Nursing Placements- Block Contract,Third Party Payments,REVENUE
Wiltshire,http://opendatacommunities.org/id/unitary-authority/wiltshire,26/06/2019,5107353938,2379.24,Wessex Care Ltd (Little Manor) ,112914,SP1 ,Community Services,Placement Block Cont,Adult Care Nursing Placements- Block Contract,Third Party Payments,REVENUE
Wiltshire,http://opendatacommunities.org/id/unitary-authority/wiltshire,26/06/2019,5107353992,2379.24,Wessex Care Ltd (Little Manor) ,112914,SP1 ,Community Services,Placement Block Cont,Adult Care Nursing Placements- Block Contract,Third Party Payments,REVENUE
Wiltshire,http://opendatacommunities.org/id/unitary-authority/wiltshire,26/06/2019,5107354021,2379.24,Wessex Care Ltd (Little Manor) ,112914,SP1 ,Community Services,Placement Block Cont,Adult Care Nursing Placements- Block Contract,Third Party Payments,REVENUE
Wiltshire,http://opendatacommunities.org/id/unitary-authority/wiltshire,26/06/2019,5107355220,5480,Wessex Care Ltd (Little Manor) ,112914,SP1 ,Community Services,South Care Packages,Adult Care Nursing Placements - Spot,Third Party Payments,REVENUE
Wiltshire,http://opendatacommunities.org/id/unitary-authority/wiltshire,26/06/2019,5107355240,2513.32,Wessex Care Ltd (Little Manor) ,112914,SP1 ,Community Services,Placement Block Cont,Adult Care Nursing Placements- Block Contract,Third Party Payments,REVENUE
Wiltshire,http://opendatacommunities.org/id/unitary-authority/wiltshire,26/06/2019,5107355259,2379.24,Wessex Care Ltd (Little Manor) ,112914,SP1 ,Community Services,Placement Block Cont,Adult Care Nursing Placements- Block Contract,Third Party Payments,REVENUE
Wiltshire,http://opendatacommunities.org/id/unitary-authority/wiltshire,26/06/2019,5107355291,2513.32,Wessex Care Ltd (Little Manor) ,112914,SP1 ,Community Services,Placement Block Cont,Adult Care Nursing Placements- Block Contract,Third Party Payments,REVENUE
Wiltshire,http://opendatacommunities.org/id/unitary-authority/wiltshire,26/06/2019,5107355295,2379.24,Wessex Care Ltd (Little Manor) ,112914,SP1 ,Community Services,Placement Block Cont,Adult Care Nursing Placements- Block Contract,Third Party Payments,REVENUE
Wiltshire,http://opendatacommunities.org/id/unitary-authority/wiltshire,26/06/2019,5107355299,2379.24,Wessex Care Ltd (Little Manor) ,112914,SP1 ,Community Services,Placement Block Cont,Adult Care Nursing Placements- Block Contract,Third Party Payments,REVENUE
Wiltshire,http://opendatacommunities.org/id/unitary-authority/wiltshire,26/06/2019,5107355301,3375,Wessex Care Ltd (Little Manor) ,112914,SP1 ,Community Services,Adult Care Gross Loa,Adult Care Loans,Capital charges and Expenditure,REVENUE
Wiltshire,http://opendatacommunities.org/id/unitary-authority/wiltshire,26/06/2019,5107355303,2379.24,Wessex Care Ltd (Little Manor) ,112914,SP1 ,Community Services,Placement Block Cont,Adult Care Nursing Placements- Block Contract,Third Party Payments,REVENUE
Wiltshire,http://opendatacommunities.org/id/unitary-authority/wiltshire,26/06/2019,5107355306,4002.56,Wessex Care Ltd (Little Manor) ,112914,SP1 ,Community Services,South Care Packages,Adult Care Nursing Placements - Spot,Third Party Payments,REVENUE
Wiltshire,http://opendatacommunities.org/id/unitary-authority/wiltshire,26/06/2019,5107355308,2513.32,Wessex Care Ltd (Little Manor) ,112914,SP1 ,Community Services,Placement Block Cont,Adult Care Nursing Placements- Block Contract,Third Party Payments,REVENUE
Wiltshire,http://opendatacommunities.org/id/unitary-authority/wiltshire,26/06/2019,5107355312,2513.32,Wessex Care Ltd (Little Manor) ,112914,SP1 ,Community Services,Placement Block Cont,Adult Care Nursing Placements- Block Contract,Third Party Payments,REVENUE
Wiltshire,http://opendatacommunities.org/id/unitary-authority/wiltshire,26/06/2019,5107355334,2513.32,Wessex Care Ltd (Little Manor) ,112914,SP1 ,Community Services,Placement Block Cont,Adult Care Nursing Placements- Block Contract,Third Party Payments,REVENUE
Wiltshire,http://opendatacommunities.org/id/unitary-authority/wiltshire,26/06/2019,5107355336,2513.32,Wessex Care Ltd (Little Manor) ,112914,SP1 ,Community Services,Placement Block Cont,Adult Care Nursing Placements- Block Contract,Third Party Payments,REVENUE
Wiltshire,http://opendatacommunities.org/id/unitary-authority/wiltshire,26/06/2019,5107355345,2379.24,Wessex Care Ltd (Little Manor) ,112914,SP1 ,Community Services,Placement Block Cont,Adult Care Nursing Placements- Block Contract,Third Party Payments,REVENUE
Wiltshire,http://opendatacommunities.org/id/unitary-authority/wiltshire,26/06/2019,5107355363,5480,Wessex Care Ltd (Little Manor) ,112914,SP1 ,Community Services,South Care Packages,Adult Care Nursing Placements - Spot,Third Party Payments,REVENUE
Wiltshire,http://opendatacommunities.org/id/unitary-authority/wiltshire,26/06/2019,5107352468,2034.56,Wessex Care Ltd (Holmwood) ,116475,SP1 ,Community Services,MH OP South Locality,Adult Residential Placements - Spot Purchase,Third Party Payments,REVENUE
Wiltshire,http://opendatacommunities.org/id/unitary-authority/wiltshire,26/06/2019,5107353432,2868.4,Wessex Care Ltd (Holmwood) ,116475,SP1 ,Community Services,MH OP N&E Locality,Adult Residential Placements - Spot Purchase,Third Party Payments,REVENUE
Wiltshire,http://opendatacommunities.org/id/unitary-authority/wiltshire,26/06/2019,5107354252,3200,Wessex Care Ltd (Holmwood) ,116475,SP1 ,Community Services,MH AOWA South Locali,Adult Residential Placements - Spot Purchase,Third Party Payments,REVENUE
Wiltshire,http://opendatacommunities.org/id/unitary-authority/wiltshire,26/06/2019,5107354680,2900.2,Wessex Care Ltd (Holmwood) ,116475,SP1 ,Community Services,South Care Packages,Adult Residential Placements - Spot Purchase,Third Party Payments,REVENUE
Wiltshire,http://opendatacommunities.org/id/unitary-authority/wiltshire,26/06/2019,5107355144,2121.8,Wessex Care Ltd (Holmwood) ,116475,SP1 ,Community Services,MH OP South Locality,Adult Residential Placements - Spot Purchase,Third Party Payments,REVENUE
Wiltshire,http://opendatacommunities.org/id/unitary-authority/wiltshire,26/06/2019,5107356166,2968.76,Wessex Care Ltd (Holmwood) ,116475,SP1 ,Community Services,MH AOWA South Locali,Adult Residential Placements - Spot Purchase,Third Party Payments,REVENUE
Wiltshire,http://opendatacommunities.org/id/unitary-authority/wiltshire,26/06/2019,5107357371,3604.96,Wessex Care Ltd (Holmwood) ,116475,SP1 ,Community Services,South Care Packages,Adult Residential Placements - Spot Purchase,Third Party Payments,REVENUE
Wiltshire,http://opendatacommunities.org/id/unitary-authority/wiltshire,26/06/2019,5107357580,2968.76,Wessex Care Ltd (Holmwood) ,116475,SP1 ,Community Services,South Care Packages,Adult Residential Placements - Spot Purchase,Third Party Payments,REVENUE
Wiltshire,http://opendatacommunities.org/id/unitary-authority/wiltshire,26/06/2019,5107352384,23750.44,Wessex Care ltd (Castle View) ,112913,SP1 ,Community Services,BCF-Intermediate Cr,Adult Care Nursing Placements- Block Contract,Third Party Payments,REVENUE
Wiltshire,http://opendatacommunities.org/id/unitary-authority/wiltshire,26/06/2019,5107353085,1189.6,Wessex Care ltd (Castle View) ,112913,SP1 ,Community Services,Placement Block Cont,Adult Care Nursing Placements- Block Contract,Third Party Payments,REVENUE
Wiltshire,http://opendatacommunities.org/id/unitary-authority/wiltshire,26/06/2019,5107353774,2379.2,Wessex Care ltd (Castle View) ,112913,SP1 ,Community Services,Placement Block Cont,Adult Care Nursing Placements- Block Contract,Third Party Payments,REVENUE
Wiltshire,http://opendatacommunities.org/id/unitary-authority/wiltshire,26/06/2019,5107354052,2379.2,Wessex Care ltd (Castle View) ,112913,SP1 ,Community Services,Placement Block Cont,Adult Care Nursing Placements- Block Contract,Third Party Payments,REVENUE
Wiltshire,http://opendatacommunities.org/id/unitary-authority/wiltshire,26/06/2019,5107354318,2942.24,Wessex Care ltd (Castle View) ,112913,SP1 ,Community Services,South Care Packages,Adult Care Nursing Placements - Spot,Third Party Payments,REVENUE
Wiltshire,http://opendatacommunities.org/id/unitary-authority/wiltshire,26/06/2019,5107354694,2513.36,Wessex Care ltd (Castle View) ,112913,SP1 ,Community Services,Placement Block Cont,Adult Care Nursing Placements- Block Contract,Third Party Payments,REVENUE
Wiltshire,http://opendatacommunities.org/id/unitary-authority/wiltshire,26/06/2019,5107354908,2379.2,Wessex Care ltd (Castle View) ,112913,SP1 ,Community Services,Placement Block Cont,Adult Care Nursing Placements- Block Contract,Third Party Payments,REVENUE
Wiltshire,http://opendatacommunities.org/id/unitary-authority/wiltshire,26/06/2019,5107354950,2379.2,Wessex Care ltd (Castle View) ,112913,SP1 ,Community Services,Placement Block Cont,Adult Care Nursing Placements- Block Contract,Third Party Payments,REVENUE
Wiltshire,http://opendatacommunities.org/id/unitary-authority/wiltshire,26/06/2019,5107355039,2513.36,Wessex Care ltd (Castle View) ,112913,SP1 ,Community Services,Placement Block Cont,Adult Care Nursing Placements- Block Contract,Third Party Payments,REVENUE
Wiltshire,http://opendatacommunities.org/id/unitary-authority/wiltshire,26/06/2019,5107355162,2379.2,Wessex Care ltd (Castle View) ,112913,SP1 ,Community Services,Placement Block Cont,Adult Care Nursing Placements- Block Contract,Third Party Payments,REVENUE
Wiltshire,http://opendatacommunities.org/id/unitary-authority/wiltshire,26/06/2019,5107355225,2513.36,Wessex Care ltd (Castle View) ,112913,SP1 ,Community Services,Placement Block Cont,Adult Care Nursing Placements- Block Contract,Third Party Payments,REVENUE
Wiltshire,http://opendatacommunities.org/id/unitary-authority/wiltshire,26/06/2019,5107357622,2379.2,Wessex Care ltd (Castle View) ,112913,SP1 ,Community Services,Placement Block Cont,Adult Care Nursing Placements- Block Contract,Third Party Payments,REVENUE
Wiltshire,http://opendatacommunities.org/id/unitary-authority/wiltshire,26/06/2019,5107357686,2310.6,Wessex Care ltd (Castle View) ,112913,SP1 ,Community Services,Adult Care Gross Loa,Adult Care Loans,Capital charges and Expenditure,REVENUE
Wiltshire,http://opendatacommunities.org/id/unitary-authority/wiltshire,26/06/2019,5107358435,2379.2,Wessex Care ltd (Castle View) ,112913,SP1 ,Community Services,Placement Block Cont,Adult Care Nursing Placements- Block Contract,Third Party Payments,REVENUE
Wiltshire,http://opendatacommunities.org/id/unitary-authority/wiltshire,26/06/2019,5107358946,1155.88,Wessex Care ltd (Castle View) ,112913,SP1 ,Community Services,South Care Packages,Adult Care Nursing Placements - Spot,Third Party Payments,REVENUE
Wiltshire,http://opendatacommunities.org/id/unitary-authority/wiltshire,26/06/2019,5107352387,32910.72,Wessex Care Ltd  (Kimberley House) ,113064,SP1 ,Community Services,BCF-Intermediate Cr,Adult Care Nursing Placements- Block Contract,Third Party Payments,REVENUE
Wiltshire,http://opendatacommunities.org/id/unitary-authority/wiltshire,26/06/2019,5107352944,2379.2,Wessex Care Ltd  (Kimberley House) ,113064,SP1 ,Community Services,Placement Block Cont,Adult Care Nursing Placements- Block Contract,Third Party Payments,REVENUE
Wiltshire,http://opendatacommunities.org/id/unitary-authority/wiltshire,26/06/2019,5107357680,2379.2,Wessex Care Ltd  (Kimberley House) ,113064,SP1 ,Community Services,Placement Block Cont,Adult Care Nursing Placements- Block Contract,Third Party Payments,REVENUE
Wiltshire,http://opendatacommunities.org/id/unitary-authority/wiltshire,26/06/2019,5107357696,2513.36,Wessex Care Ltd  (Kimberley House) ,113064,SP1 ,Community Services,Placement Block Cont,Adult Care Nursing Placements- Block Contract,Third Party Payments,REVENUE
Wiltshire,http://opendatacommunities.org/id/unitary-authority/wiltshire,13/06/2019,1902344891,442.86,Wessex Care Community Services ,142281,SP1 ,Community Services,South Care Packages,Adult Domiciliary Care,Third Party Payments,REVENUE
Wiltshire,http://opendatacommunities.org/id/unitary-authority/wiltshire,13/06/2019,1902344965,1107.14,Wessex Care Community Services ,142281,SP1 ,Community Services,South Care Packages,Adult Domiciliary Care,Third Party Payments,REVENUE
Wiltshire,http://opendatacommunities.org/id/unitary-authority/wiltshire,05/06/2019,1902352853,321.61,Wessex Care Community Services ,142281,SP1 ,Community Services,South Care Packages,Adult Domiciliary Care,Third Party Payments,REVENUE
Wiltshire,http://opendatacommunities.org/id/unitary-authority/wiltshire,05/06/2019,1902352854,293.46,Wessex Care Community Services ,142281,SP1 ,Community Services,MH OP South Locality,Adult Domiciliary Care,Third Party Payments,REVENUE
Wiltshire,http://opendatacommunities.org/id/unitary-authority/wiltshire,05/06/2019,1902352936,266.97,Wessex Care Community Services ,142281,SP1 ,Community Services,South Care Packages,Adult Domiciliary Care,Third Party Payments,REVENUE
Wiltshire,http://opendatacommunities.org/id/unitary-authority/wiltshire,10/06/2019,1902354322,1079.2,Wessex Care Community Services ,142281,SP1 ,Community Services,South Care Packages,Adult Domiciliary Care Contribution,Income,REVENUE
Wiltshire,http://opendatacommunities.org/id/unitary-authority/wiltshire,10/06/2019,1902354323,742.16,Wessex Care Community Services ,142281,SP1 ,Community Services,South Care Packages,Adult Domiciliary Care Contribution,Income,REVENUE
Wiltshire,http://opendatacommunities.org/id/unitary-authority/wiltshire,10/06/2019,1902354324,3277.98,Wessex Care Community Services ,142281,SP1 ,Community Services,South Care Packages,Adult Domiciliary Care Contribution,Income,REVENUE
Wiltshire,http://opendatacommunities.org/id/unitary-authority/wiltshire,11/06/2019,1902355294,658.64,Wessex Care Community Services ,142281,SP1 ,Community Services,South Care Packages,Adult Domiciliary Care Contribution,Income,REVENUE
Wiltshire,http://opendatacommunities.org/id/unitary-authority/wiltshire,11/06/2019,1902355295,1559.04,Wessex Care Community Services ,142281,SP1 ,Community Services,MH OP South Locality,Adult Domiciliary Care,Third Party Payments,REVENUE
Wiltshire,http://opendatacommunities.org/id/unitary-authority/wiltshire,11/06/2019,1902355296,1421.28,Wessex Care Community Services ,142281,SP1 ,Community Services,South Care Packages,Adult Domiciliary Care,Third Party Payments,REVENUE
Wiltshire,http://opendatacommunities.org/id/unitary-authority/wiltshire,11/06/2019,1902355297,934,Wessex Care Community Services ,142281,SP1 ,Community Services,South Care Packages,Adult Domiciliary Care,Third Party Payments,REVENUE
Wiltshire,http://opendatacommunities.org/id/unitary-authority/wiltshire,11/06/2019,1902355299,2216.88,Wessex Care Community Services ,142281,SP1 ,Community Services,South Care Packages,Adult Domiciliary Care,Third Party Payments,REVENUE
Wiltshire,http://opendatacommunities.org/id/unitary-authority/wiltshire,11/06/2019,1902355300,1676.92,Wessex Care Community Services ,142281,SP1 ,Community Services,South Care Packages,Adult Domiciliary Care,Third Party Payments,REVENUE
Wiltshire,http://opendatacommunities.org/id/unitary-authority/wiltshire,11/06/2019,1902355301,1815.08,Wessex Care Community Services ,142281,SP1 ,Community Services,MH OP South Locality,Adult Domiciliary Care,Third Party Payments,REVENUE
Wiltshire,http://opendatacommunities.org/id/unitary-authority/wiltshire,26/06/2019,5107355510,9780,Wessex Autism ,137648,BH25,Community Services,CTPLD Placements,Adult Residential Placements - Spot Purchase,Third Party Payments,REVENUE
Wiltshire,http://opendatacommunities.org/id/unitary-authority/wiltshire,17/06/2019,5107352217,1240,Wessex Archaeology Ltd ,112909,SP4 ,Wiltshire Council,Wiltshire Council,Consultants Fees,Supplies and Services,CAPITAL
Wiltshire,http://opendatacommunities.org/id/unitary-authority/wiltshire,28/06/2019,1902356562,483.72,Wernick Hire Ltd ,112908,SS11,Resources,FM Highway Depots,Equipment Hire,Supplies and Services,REVENUE
Wiltshire,http://opendatacommunities.org/id/unitary-authority/wiltshire,26/06/2019,5107353787,3400,Wentworth Grange Nursing Home ,134872,NE44,Community Services,MH OP N&E Locality,Adult Care Nursing Placements - Spot,Third Party Payments,REVENUE
Wiltshire,http://opendatacommunities.org/id/unitary-authority/wiltshire,26/06/2019,5107357813,2967.36,Wemyss Lodge ,124807,SN3 ,Community Services,North Care Packages,Adult Care Nursing Placements - Spot,Third Party Payments,REVENUE
Wiltshire,http://opendatacommunities.org/id/unitary-authority/wiltshire,18/06/2019,1902358936,10055.46,Wellington Academy Enterprises Ltd ,141751,SP9 ,Children & Education,Free Enttlmnt 3 & 4y,Childcare Free Entitlement Early Years,Supplies and Services,REVENUE
Wiltshire,http://opendatacommunities.org/id/unitary-authority/wiltshire,18/06/2019,1902358937,331.97,Wellington Academy Enterprises Ltd ,141751,SP9 ,Children & Education,Free Entitlement 2 Y,Childcare Free Entitlement Early Years,Supplies and Services,REVENUE
Wiltshire,http://opendatacommunities.org/id/unitary-authority/wiltshire,26/06/2019,5107352457,9787.84,Wellhead Lane Ltd ,142651,BA13,Community Services,CTPLD Placements,Adult Residential Placements - Spot Purchase,Third Party Payments,REVENUE
Wiltshire,http://opendatacommunities.org/id/unitary-authority/wiltshire,26/06/2019,5107354903,7782.4,Wellhead Lane Ltd ,142651,BA13,Community Services,West Care Packages,Adult Residential Placements - Spot Purchase,Third Party Payments,REVENUE
Wiltshire,http://opendatacommunities.org/id/unitary-authority/wiltshire,13/06/2019,1902356809,270,Well ,126618,SN15,Community Services,Subs Misuse Contract,Public Health Commissioning,Supplies and Services,REVENUE
Wiltshire,http://opendatacommunities.org/id/unitary-authority/wiltshire,13/06/2019,1902356814,270,Well ,129116,BA12,Community Services,Subs Misuse Contract,Public Health Commissioning,Supplies and Services,REVENUE
Wiltshire,http://opendatacommunities.org/id/unitary-authority/wiltshire,25/06/2019,1902362339,291.27,Well ,129116,BA12,Neighbourhood & Planning,Smoking-Mgt & Commss,Conference Fees,Supplies and Services,REVENUE
Wiltshire,http://opendatacommunities.org/id/unitary-authority/wiltshire,13/06/2019,1902356781,378,Well ,137575,SN11,Community Services,Subs Misuse Contract,Public Health Commissioning,Supplies and Services,REVENUE
Wiltshire,http://opendatacommunities.org/id/unitary-authority/wiltshire,14/06/2019,1902357316,15064.85,Weightmans LLP ,140523,L3 9,Resources,Insurance,Legal Fees,Supplies and Services,REVENUE
Wiltshire,http://opendatacommunities.org/id/unitary-authority/wiltshire,26/06/2019,5107353778,5000,Waypoints (Verwood) Ltd ,131485,BH31,Community Services,MH OP West Locality,Adult Residential Placements - Spot Purchase,Third Party Payments,REVENUE
Wiltshire,http://opendatacommunities.org/id/unitary-authority/wiltshire,26/06/2019,5107354001,4600,Waypoints (Verwood) Ltd ,131485,BH31,Community Services,Adult Care Gross Loa,Adult Care Loans,Capital charges and Expenditure,REVENUE
Wiltshire,http://opendatacommunities.org/id/unitary-authority/wiltshire,26/06/2019,5107354038,4400,Waypoints (Verwood) Ltd ,131485,BH31,Community Services,MH OP South Locality,Adult Residential Placements - Spot Purchase,Third Party Payments,REVENUE
Wiltshire,http://opendatacommunities.org/id/unitary-authority/wiltshire,26/06/2019,5107354619,4155,Waypoints (Verwood) Ltd ,131485,BH31,Community Services,MH OP South Locality,Adult Care Nursing Placements - Spot,Third Party Payments,REVENUE
Wiltshire,http://opendatacommunities.org/id/unitary-authority/wiltshire,26/06/2019,5107354877,4467.76,Waypoints (Verwood) Ltd ,131485,BH31,Community Services,MH AOWA South Locali,Adult Care Nursing Placements - Spot,Third Party Payments,REVENUE
Wiltshire,http://opendatacommunities.org/id/unitary-authority/wiltshire,26/06/2019,5107355386,4400,Waypoints (Verwood) Ltd ,131485,BH31,Community Services,MH OP South Locality,Adult Care Nursing Placements - Spot,Third Party Payments,REVENUE
Wiltshire,http://opendatacommunities.org/id/unitary-authority/wiltshire,26/06/2019,5107352490,3979.8,Waypoints (Upton) Limited ,141642,BH16,Community Services,MH AOWA N&E Locality,Adult Care Nursing Placements - Spot,Third Party Payments,REVENUE
Wiltshire,http://opendatacommunities.org/id/unitary-authority/wiltshire,26/06/2019,5107354012,3400,Waters Park House ,144260,PL1 ,Community Services,West Care Packages,Adult Residential Placements - Spot Purchase,Third Party Payments,REVENUE
Wiltshire,http://opendatacommunities.org/id/unitary-authority/wiltshire,25/06/2019,1902361443,4992.54,Water2Business Ltd ,145562,BS48,Resources,SAFM - Other Assets,Water,Premises Related,REVENUE
Wiltshire,http://opendatacommunities.org/id/unitary-authority/wiltshire,25/06/2019,1902361445,853.15,Water2Business Ltd ,145562,BS48,Resources,FM Highway Depots,Water,Premises Related,REVENUE
Wiltshire,http://opendatacommunities.org/id/unitary-authority/wiltshire,25/06/2019,1902361455,352.74,Water2Business Ltd ,145562,BS48,Resources,SAFM - Other Assets,Water,Premises Related,REVENUE
Wiltshire,http://opendatacommunities.org/id/unitary-authority/wiltshire,25/06/2019,1902361458,2690.08,Water2Business Ltd ,145562,BS48,Resources,Pewsey Campus,Water,Premises Related,REVENUE
Wiltshire,http://opendatacommunities.org/id/unitary-authority/wiltshire,25/06/2019,1902361485,600.86,Water2Business Ltd ,145562,BS48,Resources,FM Leisure Centres,Water,Premises Related,REVENUE
Wiltshire,http://opendatacommunities.org/id/unitary-authority/wiltshire,25/06/2019,1902361487,319.72,Water2Business Ltd ,145562,BS48,Resources,SAFM - Other Assets,Water,Premises Related,REVENUE
Wiltshire,http://opendatacommunities.org/id/unitary-authority/wiltshire,25/06/2019,1902361495,279.98,Water2Business Ltd ,145562,BS48,Resources,FM Leisure Centres,Water,Premises Related,REVENUE
Wiltshire,http://opendatacommunities.org/id/unitary-authority/wiltshire,25/06/2019,1902361497,703.43,Water2Business Ltd ,145562,BS48,Resources,FM Leisure Centres,Water,Premises Related,REVENUE
Wiltshire,http://opendatacommunities.org/id/unitary-authority/wiltshire,25/06/2019,1902361498,885.15,Water2Business Ltd ,145562,BS48,Resources,FM Leisure Centres,Water,Premises Related,REVENUE
Wiltshire,http://opendatacommunities.org/id/unitary-authority/wiltshire,25/06/2019,1902361499,681.72,Water2Business Ltd ,145562,BS48,Resources,FM Leisure Centres,Water,Premises Related,REVENUE
Wiltshire,http://opendatacommunities.org/id/unitary-authority/wiltshire,25/06/2019,1902361502,1029.84,Water2Business Ltd ,145562,BS48,Resources,Monkton Park,Water,Premises Related,REVENUE
Wiltshire,http://opendatacommunities.org/id/unitary-authority/wiltshire,25/06/2019,1902361505,296.25,Water2Business Ltd ,145562,BS48,Resources,Investment Estate,Water,Premises Related,REVENUE
Wiltshire,http://opendatacommunities.org/id/unitary-authority/wiltshire,25/06/2019,1902361506,269.2,Water2Business Ltd ,145562,BS48,Resources,Market Sales,Water,Premises Related,REVENUE
Wiltshire,http://opendatacommunities.org/id/unitary-authority/wiltshire,25/06/2019,1902361510,583.57,Water2Business Ltd ,145562,BS48,Resources,FM Leisure Centres,Water,Premises Related,REVENUE
Wiltshire,http://opendatacommunities.org/id/unitary-authority/wiltshire,25/06/2019,1902361514,538.12,Water2Business Ltd ,145562,BS48,Resources,FM Leisure Centres,Water,Premises Related,REVENUE
Wiltshire,http://opendatacommunities.org/id/unitary-authority/wiltshire,25/06/2019,1902361519,3741.02,Water2Business Ltd ,145562,BS48,Resources,5 Rivers LC,Water,Premises Related,REVENUE
Wiltshire,http://opendatacommunities.org/id/unitary-authority/wiltshire,25/06/2019,1902361536,614.05,Water2Business Ltd ,145562,BS48,Resources,FM Highway Depots,Water,Premises Related,REVENUE
Wiltshire,http://opendatacommunities.org/id/unitary-authority/wiltshire,25/06/2019,1902361539,782.65,Water2Business Ltd ,145562,BS48,Resources,FM Leisure Centres,Water,Premises Related,REVENUE
Wiltshire,http://opendatacommunities.org/id/unitary-authority/wiltshire,25/06/2019,1902361540,1188.77,Water2Business Ltd ,145562,BS48,Resources,County Hall Complex,Water,Premises Related,REVENUE
Wiltshire,http://opendatacommunities.org/id/unitary-authority/wiltshire,25/06/2019,1902361543,537.12,Water2Business Ltd ,145562,BS48,Resources,FM Leisure Centres,Water,Premises Related,REVENUE
Wiltshire,http://opendatacommunities.org/id/unitary-authority/wiltshire,25/06/2019,1902361544,645.45,Water2Business Ltd ,145562,BS48,Resources,FM Leisure Centres,Water,Premises Related,REVENUE
Wiltshire,http://opendatacommunities.org/id/unitary-authority/wiltshire,25/06/2019,1902361552,1852.29,Water2Business Ltd ,145562,BS48,Resources,SAFM - Other Assets,Water,Premises Related,REVENUE
Wiltshire,http://opendatacommunities.org/id/unitary-authority/wiltshire,25/06/2019,1902361557,2109.35,Water2Business Ltd ,145562,BS48,Resources,SAFM - Other Assets,Water,Premises Related,REVENUE
Wiltshire,http://opendatacommunities.org/id/unitary-authority/wiltshire,25/06/2019,1902361561,250.19,Water2Business Ltd ,145562,BS48,Resources,FM Leisure Centres,Water,Premises Related,REVENUE
Wiltshire,http://opendatacommunities.org/id/unitary-authority/wiltshire,25/06/2019,1902361567,602.09,Water2Business Ltd ,145562,BS48,Resources,FM Leisure Centres,Water,Premises Related,REVENUE
Wiltshire,http://opendatacommunities.org/id/unitary-authority/wiltshire,25/06/2019,1902361573,1172.57,Water2Business Ltd ,145562,BS48,Resources,FM Highway Depots,Water,Premises Related,REVENUE
Wiltshire,http://opendatacommunities.org/id/unitary-authority/wiltshire,25/06/2019,1902362474,311.63,Water2Business Ltd ,145562,BS48,Resources,Investment Estate,Water,Premises Related,REVENUE
Wiltshire,http://opendatacommunities.org/id/unitary-authority/wiltshire,25/06/2019,1902362491,5096.65,Water2Business Ltd ,145562,BS48,Resources,Rural Estates,Water,Premises Related,REVENUE
Wiltshire,http://opendatacommunities.org/id/unitary-authority/wiltshire,25/06/2019,1902362494,621.39,Water2Business Ltd ,145562,BS48,Resources,SAFM - Other Assets,Water,Premises Related,REVENUE
Wiltshire,http://opendatacommunities.org/id/unitary-authority/wiltshire,25/06/2019,1902362496,3944.01,Water2Business Ltd ,145562,BS48,Resources,Corsham Campus,Water,Premises Related,REVENUE
Wiltshire,http://opendatacommunities.org/id/unitary-authority/wiltshire,25/06/2019,1902362497,1438.69,Water2Business Ltd ,145562,BS48,Resources,Pewsey Campus,Water,Premises Related,REVENUE
Wiltshire,http://opendatacommunities.org/id/unitary-authority/wiltshire,25/06/2019,1902362500,999.21,Water2Business Ltd ,145562,BS48,Resources,FM Highway Depots,Water,Premises Related,REVENUE
Wiltshire,http://opendatacommunities.org/id/unitary-authority/wiltshire,25/06/2019,1902362510,289.57,Water2Business Ltd ,145562,BS48,Resources,Tisbury Sports Centr,Water,Premises Related,REVENUE
Wiltshire,http://opendatacommunities.org/id/unitary-authority/wiltshire,25/06/2019,1902362512,552.33,Water2Business Ltd ,145562,BS48,Neighbourhood & Planning,Lode Hill G&T Site,Water,Premises Related,REVENUE
Wiltshire,http://opendatacommunities.org/id/unitary-authority/wiltshire,25/06/2019,1902362515,557.69,Water2Business Ltd ,145562,BS48,Resources,FM Leisure Centres,Water,Premises Related,REVENUE
Wiltshire,http://opendatacommunities.org/id/unitary-authority/wiltshire,25/06/2019,1902362525,476.76,Water2Business Ltd ,145562,BS48,Resources,SAFM - Other Assets,Water,Premises Related,REVENUE
Wiltshire,http://opendatacommunities.org/id/unitary-authority/wiltshire,25/06/2019,1902362526,981.53,Water2Business Ltd ,145562,BS48,Resources,FM Highway Depots,Water,Premises Related,REVENUE
Wiltshire,http://opendatacommunities.org/id/unitary-authority/wiltshire,25/06/2019,1902362527,669.3,Water2Business Ltd ,145562,BS48,Resources,FM Libraries,Water,Premises Related,REVENUE
Wiltshire,http://opendatacommunities.org/id/unitary-authority/wiltshire,25/06/2019,1902362530,309.8,Water2Business Ltd ,145562,BS48,Resources,SAFM - Other Assets,Water,Premises Related,REVENUE
Wiltshire,http://opendatacommunities.org/id/unitary-authority/wiltshire,25/06/2019,1902362535,1947.35,Water2Business Ltd ,145562,BS48,Resources,FM Leisure Centres,Water,Premises Related,REVENUE
Wiltshire,http://opendatacommunities.org/id/unitary-authority/wiltshire,25/06/2019,1902362543,323,Water2Business Ltd ,145562,BS48,Resources,Market Sales,Water,Premises Related,REVENUE
Wiltshire,http://opendatacommunities.org/id/unitary-authority/wiltshire,25/06/2019,1902362545,806.74,Water2Business Ltd ,145562,BS48,Resources,FM Leisure Centres,Water,Premises Related,REVENUE
Wiltshire,http://opendatacommunities.org/id/unitary-authority/wiltshire,25/06/2019,1902362547,2720.21,Water2Business Ltd ,145562,BS48,Resources,FM Leisure Centres,Water,Premises Related,REVENUE
Wiltshire,http://opendatacommunities.org/id/unitary-authority/wiltshire,25/06/2019,1902362548,3516.86,Water2Business Ltd ,145562,BS48,Resources,FM Leisure Centres,Water,Premises Related,REVENUE
Wiltshire,http://opendatacommunities.org/id/unitary-authority/wiltshire,25/06/2019,1902362549,2112.79,Water2Business Ltd ,145562,BS48,Resources,FM Leisure Centres,Water,Premises Related,REVENUE
Wiltshire,http://opendatacommunities.org/id/unitary-authority/wiltshire,25/06/2019,1902362550,995.28,Water2Business Ltd ,145562,BS48,Resources,Market Sales,Water,Premises Related,REVENUE
Wiltshire,http://opendatacommunities.org/id/unitary-authority/wiltshire,25/06/2019,1902362552,2586.05,Water2Business Ltd ,145562,BS48,Resources,Monkton Park,Water,Premises Related,REVENUE
Wiltshire,http://opendatacommunities.org/id/unitary-authority/wiltshire,25/06/2019,1902362554,464.43,Water2Business Ltd ,145562,BS48,Resources,FM Highway Depots,Water,Premises Related,REVENUE
Wiltshire,http://opendatacommunities.org/id/unitary-authority/wiltshire,25/06/2019,1902362556,375.59,Water2Business Ltd ,145562,BS48,Resources,Market Sales,Water,Premises Related,REVENUE
Wiltshire,http://opendatacommunities.org/id/unitary-authority/wiltshire,25/06/2019,1902362558,577.69,Water2Business Ltd ,145562,BS48,Resources,SAFM - Other Assets,Water,Premises Related,REVENUE
Wiltshire,http://opendatacommunities.org/id/unitary-authority/wiltshire,25/06/2019,1902362560,2739.16,Water2Business Ltd ,145562,BS48,Resources,FM Leisure Centres,Water,Premises Related,REVENUE
Wiltshire,http://opendatacommunities.org/id/unitary-authority/wiltshire,25/06/2019,1902362577,1030.71,Water2Business Ltd ,145562,BS48,Resources,FM Leisure Centres,Water,Premises Related,REVENUE
Wiltshire,http://opendatacommunities.org/id/unitary-authority/wiltshire,25/06/2019,1902362580,2264.64,Water2Business Ltd ,145562,BS48,Neighbourhood & Planning,SH Lanfear Close,Water,Premises Related,REVENUE
Wiltshire,http://opendatacommunities.org/id/unitary-authority/wiltshire,25/06/2019,1902362582,9089.42,Water2Business Ltd ,145562,BS48,Resources,5 Rivers LC,Water,Premises Related,REVENUE
Wiltshire,http://opendatacommunities.org/id/unitary-authority/wiltshire,25/06/2019,1902362585,1391.95,Water2Business Ltd ,145562,BS48,Resources,Salisbury City Hall,Water,Premises Related,REVENUE
Wiltshire,http://opendatacommunities.org/id/unitary-authority/wiltshire,25/06/2019,1902362593,3600,Water2Business Ltd ,145562,BS48,Neighbourhood & Planning,Dairy House Bridge,Water,Premises Related,REVENUE
Wiltshire,http://opendatacommunities.org/id/unitary-authority/wiltshire,25/06/2019,1902362594,917.84,Water2Business Ltd ,145562,BS48,Neighbourhood & Planning,Oak Tree Field G&T,Water,Premises Related,REVENUE
Wiltshire,http://opendatacommunities.org/id/unitary-authority/wiltshire,25/06/2019,1902362599,336.63,Water2Business Ltd ,145562,BS48,Resources,FM Highway Depots,Water,Premises Related,REVENUE
Wiltshire,http://opendatacommunities.org/id/unitary-authority/wiltshire,25/06/2019,1902362602,6792.33,Water2Business Ltd ,145562,BS48,Resources,FM Leisure Centres,Water,Premises Related,REVENUE
Wiltshire,http://opendatacommunities.org/id/unitary-authority/wiltshire,25/06/2019,1902362603,6399.84,Water2Business Ltd ,145562,BS48,Resources,County Hall Complex,Water,Premises Related,REVENUE
Wiltshire,http://opendatacommunities.org/id/unitary-authority/wiltshire,25/06/2019,1902362604,557.69,Water2Business Ltd ,145562,BS48,Resources,FM Highway Depots,Water,Premises Related,REVENUE
Wiltshire,http://opendatacommunities.org/id/unitary-authority/wiltshire,25/06/2019,1902362605,2733.43,Water2Business Ltd ,145562,BS48,Resources,FM Leisure Centres,Water,Premises Related,REVENUE
Wiltshire,http://opendatacommunities.org/id/unitary-authority/wiltshire,25/06/2019,1902362606,4230.21,Water2Business Ltd ,145562,BS48,Resources,FM Leisure Centres,Water,Premises Related,REVENUE
Wiltshire,http://opendatacommunities.org/id/unitary-authority/wiltshire,25/06/2019,1902362610,266.33,Water2Business Ltd ,145562,BS48,Resources,Special Schools,Water,Premises Related,REVENUE
Wiltshire,http://opendatacommunities.org/id/unitary-authority/wiltshire,25/06/2019,1902362614,954.93,Water2Business Ltd ,145562,BS48,Resources,SAFM - Other Assets,Water,Premises Related,REVENUE
Wiltshire,http://opendatacommunities.org/id/unitary-authority/wiltshire,25/06/2019,1902362619,1840.46,Water2Business Ltd ,145562,BS48,Resources,SAFM - Other Assets,Water,Premises Related,REVENUE
Wiltshire,http://opendatacommunities.org/id/unitary-authority/wiltshire,25/06/2019,1902362623,1471.87,Water2Business Ltd ,145562,BS48,Resources,FM Leisure Centres,Water,Premises Related,REVENUE
Wiltshire,http://opendatacommunities.org/id/unitary-authority/wiltshire,25/06/2019,1902362629,3432.01,Water2Business Ltd ,145562,BS48,Resources,FM Leisure Centres,Water,Premises Related,REVENUE
Wiltshire,http://opendatacommunities.org/id/unitary-authority/wiltshire,25/06/2019,1902362631,323,Water2Business Ltd ,145562,BS48,Resources,SAFM - Other Assets,Water,Premises Related,REVENUE
Wiltshire,http://opendatacommunities.org/id/unitary-authority/wiltshire,25/06/2019,1902362635,973.56,Water2Business Ltd ,145562,BS48,Resources,FM Highway Depots,Water,Premises Related,REVENUE
Wiltshire,http://opendatacommunities.org/id/unitary-authority/wiltshire,25/06/2019,1902362636,751.92,Water2Business Ltd ,145562,BS48,Resources,Market Sales,Water,Premises Related,REVENUE
Wiltshire,http://opendatacommunities.org/id/unitary-authority/wiltshire,25/06/2019,1902362638,521.27,Water2Business Ltd ,145562,BS48,Resources,SAFM - Car Parks,Water,Premises Related,REVENUE
Wiltshire,http://opendatacommunities.org/id/unitary-authority/wiltshire,25/06/2019,1902362639,614.12,Water2Business Ltd ,145562,BS48,Resources,SAFM - Other Assets,Water,Premises Related,REVENUE
Wiltshire,http://opendatacommunities.org/id/unitary-authority/wiltshire,25/06/2019,1902362643,329.08,Water2Business Ltd ,145562,BS48,Resources,SAFM - Car Parks,Water,Premises Related,REVENUE
Wiltshire,http://opendatacommunities.org/id/unitary-authority/wiltshire,14/06/2019,5107352102,1816.23,Warrington Lodge ,132279,SN13,Community Services,Home Loans,Adult Residential Placements - Spot Purchase,Third Party Payments,REVENUE
Wiltshire,http://opendatacommunities.org/id/unitary-authority/wiltshire,14/06/2019,5107352104,3911.96,Warrington Lodge ,132279,SN13,Community Services,Home Loans,Adult Residential Placements - Spot Purchase,Third Party Payments,REVENUE
Wiltshire,http://opendatacommunities.org/id/unitary-authority/wiltshire,14/06/2019,5107352106,3911.96,Warrington Lodge ,132279,SN13,Community Services,Home Loans,Adult Residential Placements - Spot Purchase,Third Party Payments,REVENUE
Wiltshire,http://opendatacommunities.org/id/unitary-authority/wiltshire,14/06/2019,5107352108,3911.96,Warrington Lodge ,132279,SN13,Community Services,Home Loans,Adult Residential Placements - Spot Purchase,Third Party Payments,REVENUE
Wiltshire,http://opendatacommunities.org/id/unitary-authority/wiltshire,14/06/2019,5107352110,3911.96,Warrington Lodge ,132279,SN13,Community Services,Home Loans,Adult Residential Placements - Spot Purchase,Third Party Payments,REVENUE
Wiltshire,http://opendatacommunities.org/id/unitary-authority/wiltshire,14/06/2019,5107352112,2933.91,Warrington Lodge ,132279,SN13,Community Services,Home Loans,Adult Residential Placements - Spot Purchase,Third Party Payments,REVENUE
Wiltshire,http://opendatacommunities.org/id/unitary-authority/wiltshire,14/06/2019,5107352114,977.99,Warrington Lodge ,132279,SN13,Community Services,Home Loans,Adult Residential Placements - Spot Purchase,Third Party Payments,REVENUE
Wiltshire,http://opendatacommunities.org/id/unitary-authority/wiltshire,14/06/2019,5107352116,3119.95,Warrington Lodge ,132279,SN13,Community Services,Home Loans,Adult Residential Placements - Spot Purchase,Third Party Payments,REVENUE
Wiltshire,http://opendatacommunities.org/id/unitary-authority/wiltshire,14/06/2019,5107352117,698.55,Warrington Lodge ,132279,SN13,Community Services,Home Loans,Adult Residential Placements - Spot Purchase,Third Party Payments,REVENUE
Wiltshire,http://opendatacommunities.org/id/unitary-authority/wiltshire,14/06/2019,5107352119,3911.96,Warrington Lodge ,132279,SN13,Community Services,Home Loans,Adult Residential Placements - Spot Purchase,Third Party Payments,REVENUE
Wiltshire,http://opendatacommunities.org/id/unitary-authority/wiltshire,14/06/2019,5107352121,3911.96,Warrington Lodge ,132279,SN13,Community Services,Home Loans,Adult Residential Placements - Spot Purchase,Third Party Payments,REVENUE
Wiltshire,http://opendatacommunities.org/id/unitary-authority/wiltshire,26/06/2019,5107353760,3180,Warrington Lodge ,132279,SN13,Community Services,North Care Packages,Adult Residential Placements - Spot Purchase,Third Party Payments,REVENUE
Wiltshire,http://opendatacommunities.org/id/unitary-authority/wiltshire,26/06/2019,5107355944,1214.3,Warrington Lodge ,132279,SN13,Community Services,North Care Packages,Adult Residential Placements - Spot Purchase,Third Party Payments,REVENUE
Wiltshire,http://opendatacommunities.org/id/unitary-authority/wiltshire,26/06/2019,5107355946,2550.03,Warrington Lodge ,132279,SN13,Community Services,North Care Packages,Adult Residential Placements - Spot Purchase,Third Party Payments,REVENUE
Wiltshire,http://opendatacommunities.org/id/unitary-authority/wiltshire,26/06/2019,5107355949,850,Warrington Lodge ,132279,SN13,Community Services,North Care Packages,Adult Residential Placements - Spot Purchase,Third Party Payments,REVENUE
Wiltshire,http://opendatacommunities.org/id/unitary-authority/wiltshire,26/06/2019,5107355951,3400,Warrington Lodge ,132279,SN13,Community Services,North Care Packages,Adult Residential Placements - Spot Purchase,Third Party Payments,REVENUE
Wiltshire,http://opendatacommunities.org/id/unitary-authority/wiltshire,26/06/2019,5107355953,3400,Warrington Lodge ,132279,SN13,Community Services,North Care Packages,Adult Residential Placements - Spot Purchase,Third Party Payments,REVENUE
Wiltshire,http://opendatacommunities.org/id/unitary-authority/wiltshire,26/06/2019,5107355955,3400,Warrington Lodge ,132279,SN13,Community Services,North Care Packages,Adult Residential Placements - Spot Purchase,Third Party Payments,REVENUE
Wiltshire,http://opendatacommunities.org/id/unitary-authority/wiltshire,26/06/2019,5107356001,3911.96,Warrington Lodge ,132279,SN13,Community Services,Home Loans,Adult Residential Placements - Spot Purchase,Third Party Payments,REVENUE
Wiltshire,http://opendatacommunities.org/id/unitary-authority/wiltshire,06/06/2019,1902353736,350,Wansdyke Energy Services Ltd ,147683,SN13,Resources,Market Sales,Professional Fees,Supplies and Services,REVENUE
Wiltshire,http://opendatacommunities.org/id/unitary-authority/wiltshire,04/06/2019,1902343279,900,Wansbrough Solicitors ,112888,SN10,Resources,Insurance,Legal Fees,Supplies and Services,REVENUE
Wiltshire,http://opendatacommunities.org/id/unitary-authority/wiltshire,28/06/2019,1902364015,828,Wansbrough Solicitors ,112888,SN10,Resources,Insurance,Legal Fees,Supplies and Services,REVENUE
Wiltshire,http://opendatacommunities.org/id/unitary-authority/wiltshire,18/06/2019,1902358674,11501.7,Wallys Day Nursery 1037 ,112884,BA14,Children & Education,Free Enttlmnt 3 & 4y,Childcare Free Entitlement Early Years,Supplies and Services,REVENUE
Wiltshire,http://opendatacommunities.org/id/unitary-authority/wiltshire,18/06/2019,1902358675,829.92,Wallys Day Nursery 1037 ,112884,BA14,Children & Education,Free Entitlement 2 Y,Childcare Free Entitlement Early Years,Supplies and Services,REVENUE
Wiltshire,http://opendatacommunities.org/id/unitary-authority/wiltshire,17/06/2019,1902357481,12987.19,Wales & West Utilities ,131799,NP10,Wiltshire Council,Wiltshire Council,Materials,Supplies and Services,CAPITAL
Wiltshire,http://opendatacommunities.org/id/unitary-authority/wiltshire,26/06/2019,5107357763,2191,Wadhurst Manor ,147031,TN5 ,Community Services,South Care Packages,Adult Care Nursing Placements - Spot,Third Party Payments,REVENUE
Wiltshire,http://opendatacommunities.org/id/unitary-authority/wiltshire,06/06/2019,5107351063,11015.35,W Shipsey and Sons Ltd ,122358,SP4 ,Resources,Armed Forces Day,Marketing and Promotions,Supplies and Services,REVENUE
Wiltshire,http://opendatacommunities.org/id/unitary-authority/wiltshire,07/06/2019,1902353919,5750.49,W F Howes Ltd ,100948,LE7 ,Community Services,Libraries,Books & Publications,Supplies and Services,REVENUE
Wiltshire,http://opendatacommunities.org/id/unitary-authority/wiltshire,13/06/2019,1902357070,957.13,W F Howes Ltd ,100948,LE7 ,Community Services,Libraries,Books & Publications,Supplies and Services,REVENUE
Wiltshire,http://opendatacommunities.org/id/unitary-authority/wiltshire,03/06/2019,1902347063,2758.24,VP Forensic Limited ,141697,NG15,Community Services,MH AOWA West Localit,Adult Domiciliary Care,Third Party Payments,REVENUE
Wiltshire,http://opendatacommunities.org/id/unitary-authority/wiltshire,03/06/2019,1902347064,3075.04,VP Forensic Limited ,141697,NG15,Community Services,MH AOWA West Localit,Adult Domiciliary Care,Third Party Payments,REVENUE
Wiltshire,http://opendatacommunities.org/id/unitary-authority/wiltshire,03/06/2019,1902347065,3075.04,VP Forensic Limited ,141697,NG15,Community Services,MH AOWA West Localit,Adult Domiciliary Care,Third Party Payments,REVENUE
Wiltshire,http://opendatacommunities.org/id/unitary-authority/wiltshire,03/06/2019,1902347066,3075.04,VP Forensic Limited ,141697,NG15,Community Services,MH AOWA West Localit,Adult Domiciliary Care,Third Party Payments,REVENUE
Wiltshire,http://opendatacommunities.org/id/unitary-authority/wiltshire,12/06/2019,5107351861,2788,Voyage DCA Wiltshire ,100870,BA14,Community Services,West Care Packages,Supported Living,Third Party Payments,REVENUE
Wiltshire,http://opendatacommunities.org/id/unitary-authority/wiltshire,12/06/2019,5107351867,7649.64,Voyage DCA Wiltshire ,100870,BA14,Children & Education,0-25 extnl disabty p,Other Social & Welfare Costs,Third Party Payments,REVENUE
Wiltshire,http://opendatacommunities.org/id/unitary-authority/wiltshire,12/06/2019,5107351868,1408.41,Voyage DCA Wiltshire ,100870,BA14,Children & Education,0-25 extnl disabty p,Other Social & Welfare Costs,Third Party Payments,REVENUE
Wiltshire,http://opendatacommunities.org/id/unitary-authority/wiltshire,26/06/2019,5107352399,9211.36,Voyage DCA Wiltshire ,100870,BA14,Community Services,CTPLD Placements,Adult Residential Placements - Spot Purchase,Third Party Payments,REVENUE
Wiltshire,http://opendatacommunities.org/id/unitary-authority/wiltshire,26/06/2019,5107352417,5709.88,Voyage DCA Wiltshire ,100870,BA14,Community Services,CTPLD Placements,Adult Residential Placements - Spot Purchase,Third Party Payments,REVENUE
Wiltshire,http://opendatacommunities.org/id/unitary-authority/wiltshire,26/06/2019,5107352422,5985.64,Voyage DCA Wiltshire ,100870,BA14,Community Services,CTPLD Placements,Adult Residential Placements - Spot Purchase,Third Party Payments,REVENUE
Wiltshire,http://opendatacommunities.org/id/unitary-authority/wiltshire,26/06/2019,5107352426,5604.28,Voyage DCA Wiltshire ,100870,BA14,Community Services,CTPLD Placements,Adult Residential Placements - Spot Purchase,Third Party Payments,REVENUE
Wiltshire,http://opendatacommunities.org/id/unitary-authority/wiltshire,26/06/2019,5107352428,604.56,Voyage DCA Wiltshire ,100870,BA14,Community Services,CTPLD Placements,Adult Residential Placements - Spot Purchase,Third Party Payments,REVENUE
Wiltshire,http://opendatacommunities.org/id/unitary-authority/wiltshire,26/06/2019,5107352433,5759.32,Voyage DCA Wiltshire ,100870,BA14,Community Services,North Care Packages,Adult Residential Placements - Spot Purchase,Third Party Payments,REVENUE
Wiltshire,http://opendatacommunities.org/id/unitary-authority/wiltshire,26/06/2019,5107352474,6628.08,Voyage DCA Wiltshire ,100870,BA14,Community Services,CTPLD Placements,Adult Residential Placements - Spot Purchase,Third Party Payments,REVENUE
Wiltshire,http://opendatacommunities.org/id/unitary-authority/wiltshire,26/06/2019,5107352530,8410.76,Voyage DCA Wiltshire ,100870,BA14,Community Services,CTPLD Placements,Adult Residential Placements - Spot Purchase,Third Party Payments,REVENUE
Wiltshire,http://opendatacommunities.org/id/unitary-authority/wiltshire,26/06/2019,5107352972,5809.56,Voyage DCA Wiltshire ,100870,BA14,Community Services,CTPLD Placements,Adult Residential Placements - Spot Purchase,Third Party Payments,REVENUE
Wiltshire,http://opendatacommunities.org/id/unitary-authority/wiltshire,26/06/2019,5107352975,5724.76,Voyage DCA Wiltshire ,100870,BA14,Community Services,CTPLD Placements,Adult Residential Placements - Spot Purchase,Third Party Payments,REVENUE
Wiltshire,http://opendatacommunities.org/id/unitary-authority/wiltshire,26/06/2019,5107352978,6023.52,Voyage DCA Wiltshire ,100870,BA14,Community Services,CTPLD Placements,Adult Residential Placements - Spot Purchase,Third Party Payments,REVENUE
Wiltshire,http://opendatacommunities.org/id/unitary-authority/wiltshire,26/06/2019,5107352981,7048.16,Voyage DCA Wiltshire ,100870,BA14,Community Services,CTPLD Placements,Adult Residential Placements - Spot Purchase,Third Party Payments,REVENUE
Wiltshire,http://opendatacommunities.org/id/unitary-authority/wiltshire,26/06/2019,5107352987,7136.2,Voyage DCA Wiltshire ,100870,BA14,Community Services,CTPLD Placements,Adult Residential Placements - Spot Purchase,Third Party Payments,REVENUE
Wiltshire,http://opendatacommunities.org/id/unitary-authority/wiltshire,26/06/2019,5107352994,6855,Voyage DCA Wiltshire ,100870,BA14,Community Services,CTPLD Placements,Adult Residential Placements - Spot Purchase,Third Party Payments,REVENUE
Wiltshire,http://opendatacommunities.org/id/unitary-authority/wiltshire,26/06/2019,5107353001,8480.44,Voyage DCA Wiltshire ,100870,BA14,Community Services,CTPLD Placements,Adult Residential Placements - Spot Purchase,Third Party Payments,REVENUE
Wiltshire,http://opendatacommunities.org/id/unitary-authority/wiltshire,26/06/2019,5107353353,3823.28,Voyage DCA Wiltshire ,100870,BA14,Community Services,CTPLD Placements,Adult Residential Placements - Spot Purchase,Third Party Payments,REVENUE
Wiltshire,http://opendatacommunities.org/id/unitary-authority/wiltshire,26/06/2019,5107353362,5839.92,Voyage DCA Wiltshire ,100870,BA14,Community Services,CTPLD Placements,Adult Residential Placements - Spot Purchase,Third Party Payments,REVENUE
Wiltshire,http://opendatacommunities.org/id/unitary-authority/wiltshire,26/06/2019,5107353370,7048.16,Voyage DCA Wiltshire ,100870,BA14,Community Services,CTPLD Placements,Adult Residential Placements - Spot Purchase,Third Party Payments,REVENUE
Wiltshire,http://opendatacommunities.org/id/unitary-authority/wiltshire,26/06/2019,5107353418,6170.32,Voyage DCA Wiltshire ,100870,BA14,Community Services,CTPLD Placements,Adult Residential Placements - Spot Purchase,Third Party Payments,REVENUE
Wiltshire,http://opendatacommunities.org/id/unitary-authority/wiltshire,26/06/2019,5107353424,10222.6,Voyage DCA Wiltshire ,100870,BA14,Community Services,CTPLD Placements,Adult Residential Placements - Spot Purchase,Third Party Payments,REVENUE
Wiltshire,http://opendatacommunities.org/id/unitary-authority/wiltshire,26/06/2019,5107353571,5889.04,Voyage DCA Wiltshire ,100870,BA14,Community Services,North Care Packages,Adult Care Nursing Placements - Spot,Third Party Payments,REVENUE
Wiltshire,http://opendatacommunities.org/id/unitary-authority/wiltshire,26/06/2019,5107353846,7798.2,Voyage DCA Wiltshire ,100870,BA14,Community Services,CTPLD Placements,Adult Residential Placements - Spot Purchase,Third Party Payments,REVENUE
Wiltshire,http://opendatacommunities.org/id/unitary-authority/wiltshire,26/06/2019,5107353889,8661.8,Voyage DCA Wiltshire ,100870,BA14,Community Services,CTPLD Placements,Adult Residential Placements - Spot Purchase,Third Party Payments,REVENUE
Wiltshire,http://opendatacommunities.org/id/unitary-authority/wiltshire,26/06/2019,5107353973,6310,Voyage DCA Wiltshire ,100870,BA14,Community Services,CTPLD Placements,Adult Residential Placements - Spot Purchase,Third Party Payments,REVENUE
Wiltshire,http://opendatacommunities.org/id/unitary-authority/wiltshire,26/06/2019,5107353975,6755.44,Voyage DCA Wiltshire ,100870,BA14,Community Services,CTPLD Placements,Adult Residential Placements - Spot Purchase,Third Party Payments,REVENUE
Wiltshire,http://opendatacommunities.org/id/unitary-authority/wiltshire,26/06/2019,5107354054,7601,Voyage DCA Wiltshire ,100870,BA14,Community Services,CTPLD Placements,Adult Residential Placements - Spot Purchase,Third Party Payments,REVENUE
Wiltshire,http://opendatacommunities.org/id/unitary-authority/wiltshire,26/06/2019,5107354060,6554.8,Voyage DCA Wiltshire ,100870,BA14,Community Services,CTPLD Placements,Adult Residential Placements - Spot Purchase,Third Party Payments,REVENUE
Wiltshire,http://opendatacommunities.org/id/unitary-authority/wiltshire,26/06/2019,5107354062,5985.6,Voyage DCA Wiltshire ,100870,BA14,Community Services,CTPLD Placements,Adult Residential Placements - Spot Purchase,Third Party Payments,REVENUE
Wiltshire,http://opendatacommunities.org/id/unitary-authority/wiltshire,26/06/2019,5107354068,6874.6,Voyage DCA Wiltshire ,100870,BA14,Community Services,CTPLD Placements,Adult Residential Placements - Spot Purchase,Third Party Payments,REVENUE
Wiltshire,http://opendatacommunities.org/id/unitary-authority/wiltshire,26/06/2019,5107354074,6874.6,Voyage DCA Wiltshire ,100870,BA14,Community Services,CTPLD Placements,Adult Residential Placements - Spot Purchase,Third Party Payments,REVENUE
Wiltshire,http://opendatacommunities.org/id/unitary-authority/wiltshire,26/06/2019,5107354086,6349.52,Voyage DCA Wiltshire ,100870,BA14,Community Services,CTPLD Placements,Adult Residential Placements - Spot Purchase,Third Party Payments,REVENUE
Wiltshire,http://opendatacommunities.org/id/unitary-authority/wiltshire,26/06/2019,5107354093,5971.12,Voyage DCA Wiltshire ,100870,BA14,Community Services,CTPLD Placements,Adult Residential Placements - Spot Purchase,Third Party Payments,REVENUE
Wiltshire,http://opendatacommunities.org/id/unitary-authority/wiltshire,26/06/2019,5107354095,6349.56,Voyage DCA Wiltshire ,100870,BA14,Community Services,CTPLD Placements,Adult Residential Placements - Spot Purchase,Third Party Payments,REVENUE
Wiltshire,http://opendatacommunities.org/id/unitary-authority/wiltshire,26/06/2019,5107354101,6146.52,Voyage DCA Wiltshire ,100870,BA14,Community Services,CTPLD Placements,Adult Residential Placements - Spot Purchase,Third Party Payments,REVENUE
Wiltshire,http://opendatacommunities.org/id/unitary-authority/wiltshire,26/06/2019,5107354105,6874.12,Voyage DCA Wiltshire ,100870,BA14,Community Services,CTPLD Placements,Adult Residential Placements - Spot Purchase,Third Party Payments,REVENUE
Wiltshire,http://opendatacommunities.org/id/unitary-authority/wiltshire,26/06/2019,5107354125,5522.64,Voyage DCA Wiltshire ,100870,BA14,Community Services,CTPLD Placements,Adult Residential Placements - Spot Purchase,Third Party Payments,REVENUE
Wiltshire,http://opendatacommunities.org/id/unitary-authority/wiltshire,26/06/2019,5107354134,6855,Voyage DCA Wiltshire ,100870,BA14,Community Services,CTPLD Placements,Adult Residential Placements - Spot Purchase,Third Party Payments,REVENUE
Wiltshire,http://opendatacommunities.org/id/unitary-authority/wiltshire,26/06/2019,5107354286,5848,Voyage DCA Wiltshire ,100870,BA14,Community Services,CTPLD Placements,Adult Residential Placements - Spot Purchase,Third Party Payments,REVENUE
Wiltshire,http://opendatacommunities.org/id/unitary-authority/wiltshire,26/06/2019,5107354298,6361.52,Voyage DCA Wiltshire ,100870,BA14,Community Services,CTPLD Placements,Adult Residential Placements - Spot Purchase,Third Party Payments,REVENUE
Wiltshire,http://opendatacommunities.org/id/unitary-authority/wiltshire,26/06/2019,5107354574,4869.2,Voyage DCA Wiltshire ,100870,BA14,Community Services,CTPLD Placements,Adult Residential Placements - Spot Purchase,Third Party Payments,REVENUE
Wiltshire,http://opendatacommunities.org/id/unitary-authority/wiltshire,26/06/2019,5107354585,8098.32,Voyage DCA Wiltshire ,100870,BA14,Community Services,CTPLD Placements,Adult Residential Placements - Spot Purchase,Third Party Payments,REVENUE
